Workbook

Sheet Menu General
A10: =NOW() -> 2016-10-10T11:00:07.550

Sheet CDE CLT
A1: 152093920R | B1: 200987643 | C1: JANIN BRUNO | D1: 1.1 | E1: CARTOUCHE FILTRE HUILE | F1: 1 | G1: ST
A2: 282158477R | B2: 200987646 | C2: MILLEREAU JEAN LUC | D2: 1.76 | E2: FOUET ANTENNE | F2: 2 | G2: ST
A3: 282160099R | B3: 200987646 | C3: MILLEREAU JEAN LUC | D3: 28.9 | E3: EMBASE ANTENNE RADIO | F3: 3 | G3: ST
A4: 282309093R | B4: 200987646 | C4: MILLEREAU JEAN LUC | D4: 10.38 | E4: AMPLIFICATEUR ANTENNE RADIO | F4: 2 | G4: ST
A5: 282433602R | B5: 200987646 | C5: MILLEREAU JEAN LUC | D5: 93.68 | E5: CABLAGE COAX ANT RADIO HBT | F5: 8 | G5: ST
A6: X723011450 | B6: 200987647 | C6: CASANOVA PHILIPPE | D6: 60.67 | E6: GAINE TRESSEE POLYESTER D.INT.10MM EXPA | F6: 100 | G6: M
A7: X756004476 | B7: 200987647 | C7: CASANOVA PHILIPPE | D7: 11.77 | E7: CONNECTEUR SUBMINIATURE FEMELLE 9 CONTAC | F7: 20 | G7: ST
A8: 283128032R | B8: 200987647 | C8: CASANOVA PHILIPPE | D8: 31.41 | E8: MICROPHONE | F8: 10 | G8: ST
A9: 281489095R | B9: 200987647 | C9: CASANOVA PHILIPPE | D9: 13.62 | E9: HAUT-PARLEUR TWEETER | F9: 10 | G9: ST
A10: 259752753R | B10: 200987647 | C10: CASANOVA PHILIPPE | D10: 13.24 | E10: ANTENNE GPS | F10: 5 | G10: ST
A11: R100187167 | B11: 200987650 | C11: MELOTTE DIDIER | D11: 1757.72 | E11: ROULEAU DI-NOC GRIS METALLISE LARG:0,91 | F11: 1 | G11: ST
A12: R100496604 | B12: 200987650 | C12: MELOTTE DIDIER | D12: 1430 | E12: ROULEAU DI-NOC GRIS FONCE 20MX96CM POUR | F12: 1 | G12: ST
A13: T732120876 | B13: 200987650 | C13: MELOTTE DIDIER | D13: 9.75 | E13: PLAQUE DE MOUSSE POLYURETHANE RIGIDE ENT | F13: 2 | G13: ST
A14: X974137773 | B14: 200987650 | C14: MELOTTE DIDIER | D14: 39.48 | E14: BLOC PAPIER XL MARKER CANSON FORMAT A3 D | F14: 2 | G14: ST
A15: X974137175 | B15: 200987650 | C15: MELOTTE DIDIER | D15: 12.14 | E15: BLOC PAPIER XL MARKER CANSON FORMAT A4 D | F15: 1 | G15: ST
A16: X971117361 | B16: 200987650 | C16: MELOTTE DIDIER | D16: 4.12 | E16: CRAYON DE COULEUR DERWENT STUDIO COPPER | F16: 1 | G16: ST
A17: X971117367 | B17: 200987650 | C17: MELOTTE DIDIER | D17: 3.26 | E17: CRAYON DE COULEUR FABER-CASTELL POLYCHRO | F17: 2 | G17: ST
A18: 341049798R | B18: 200987652 | C18: RUELLAN ANDRE | D18: 91.86 | E18: BOITIER COMMANDE VITESSE | F18: 2 | G18: ST
A19: 7711576267 | B19: 200987653 | C19: ROSA JOSE | D19: 40 | E19: POLAIRE RENAULT CORPORATE M | F19: 2 | G19: ST
A20: R100525176 | B20: 200987655 | C20: BLANGER ALAIN | D20: 520 | E20: BIDON 10L ADBLUE (D=1,1) SOLUTION UREE 3 | F20: 20 | G20: ST
A21: 8200830500 | B21: 200987656 | C21: CAGNY CHRISTOPHE FERNAND | D21: 1.56 | E21: RELAIS CABLAGE 25A | F21: 2 | G21: ST
A22: R100553988 | B22: 200987657 | C22: PEAUD SYLVIE | D22: 597.18 | E22: ECRAN PLAT 24" WIDE 16/10 PC CAD HP | F22: 2 | G22: ST
A23: 7711573600 | B23: 200987658 | C23: POEYDOMENGE BRUNO | D23: 10.6 | E23: BOB BLEU 1000F | F23: 2 | G23: ST
A24: R100295824 | B24: 200987664 | C24: BOUTAULT MICHEL | D24: 371.84 | E24: PERCEUSE VISSEUSE A BATTERIE 18V 2,2AH C | F24: 1 | G24: ST
A25: R100503232 | B25: 200987665 | C25: HAREL PATRICE | D25: 5.98 | E25: BOITE DE 100 GANTS JETABLES POUDRES EN V | F25: 2 | G25: ST
A26: 7711427906 | B26: 200987665 | C26: HAREL PATRICE | D26: 11.88 | E26: MASTIC ECHAPPEMENT | F26: 6 | G26: ST
A27: 7711229362 | B27: 200987665 | C27: HAREL PATRICE | D27: 21.6 | E27: POLISH RENOVATEUR IXTAR | F27: 12 | G27: ST
A28: 7711579085 | B28: 200987665 | C28: HAREL PATRICE | D28: 14.64 | E28: JOINT SILIC 1217P | F28: 6 | G28: ST
A29: 7711781024 | B29: 200987666 | C29: VALENTIN BENOIT | D29: 126 | E29: POLAIRE RENAULT CORPORATE M | F29: 6 | G29: ST
A30: 7711781027 | B30: 200987666 | C30: VALENTIN BENOIT | D30: 126 | E30: POLAIRE RENAULT CORPORATE XXL | F30: 6 | G30: ST
A31: R100364315 | B31: 200987668 | C31: PROUTEAU CHRISTELLE | D31: 33.4 | E31: PAIRE DE CHAUSSURES BASSE FEMME A LACET | F31: 1 | G31: ST
A32: 215580321R | B32: 200987669 | C32: PILLAUD PATRICE | D32: 35.14 | E32: GUIDE AIR D | F32: 12 | G32: ST
A33: X413203001 | B33: 200987670 | C33: LABORIE GIL | D33: 60.42 | E33: VIS A TETE CARREE POUR RAINURE T Q M 6 L | F33: 2 | G33: ST
A34: X413204101 | B34: 200987670 | C34: LABORIE GIL | D34: 10.54 | E34: VIS A TETE CARREE POUR RAINURE T Q M 6 L | F34: 2 | G34: ST
A35: X413253700 | B35: 200987670 | C35: LABORIE GIL | D35: 50 | E35: VIS A TETE CARREE M8 LG:40 FILETEE:3 | F35: 2 | G35: ST
A36: X413254101 | B36: 200987670 | C36: LABORIE GIL | D36: 26.2 | E36: VIS A TETE CARREE POUR RAINURE T Q M 8 L | F36: 2 | G36: ST
A37: R100364715 | B37: 200987672 | C37: LE MOUZER YANNICK CARMEL | D37: 62.6 | E37: PAIRE DE CHAUSSURES BASSE EN CUIR NOIR,T | F37: 2 | G37: ST
A38: R100518629 | B38: 200987672 | C38: LE MOUZER YANNICK CARMEL | D38: 89.06 | E38: CHAUSSURES DE SECURITE "VILLE" TYPE MOCA | F38: 3 | G38: ST
A39: R100518628 | B39: 200987672 | C39: LE MOUZER YANNICK CARMEL | D39: 58.43 | E39: CHAUSSURES DE SECURITE "VILLE" TYPE MOCA | F39: 2 | G39: ST
A40: R100518627 | B40: 200987672 | C40: LE MOUZER YANNICK CARMEL | D40: 58.53 | E40: CHAUSSURES DE SECURITE "VILLE" TYPE MOCA | F40: 2 | G40: ST
A41: R100518626 | B41: 200987672 | C41: LE MOUZER YANNICK CARMEL | D41: 55 | E41: CHAUSSURES DE SECURITE "VILLE" TYPE MOCA | F41: 2 | G41: ST
A42: R100147915 | B42: 200987672 | C42: LE MOUZER YANNICK CARMEL | D42: 553 | E42: VESTE CUIR COL OFFICIER.POIGNETS SERRAGE | F42: 10 | G42: ST
A43: R100147914 | B43: 200987672 | C43: LE MOUZER YANNICK CARMEL | D43: 396.4 | E43: VESTE CUIR COL OFFICIER.POIGNETS SERRAGE | F43: 10 | G43: ST
A44: 805030009R | B44: 200987674 | C44: PODEVIN LUC HERVE | D44: 7.09 | E44: SERRURE PORTE AV G ELCT | F44: 1 | G44: ST
A45: P672415273 | B45: 200987675 | C45: MELOTTE DIDIER | D45: 6.9 | E45: TOURNEVIS LAME RONDE PR.VIS A FENTE LA:6 | F45: 3 | G45: ST
A46: R100127700 | B46: 200987675 | C46: MELOTTE DIDIER | D46: 5.7 | E46: ROND RIGIDE EN POLYCHLORURE DE VINYLE (P | F46: 10 | G46: M
A47: T533515452 | B47: 200987675 | C47: MELOTTE DIDIER | D47: 329.7 | E47: TOILE ADHESIVE PLASTIFIEE NOIRE EP: 0,3M | F47: 30 | G47: ST
A48: T533610453 | B48: 200987675 | C48: MELOTTE DIDIER | D48: 890.16 | E48: RUBAN ADHESIF ALUMINIUM NATURE ADHES.ACR | F48: 20 | G48: ST
A49: 7711419871 | B49: 200987675 | C49: MELOTTE DIDIER | D49: 200 | E49: IXTAR CHIFFON MICROFIBRE | F49: 100 | G49: ST
A50: T533201453 | B50: 200987675 | C50: MELOTTE DIDIER | D50: 43.92 | E50: RUBAN ADHESIF PVC HAVANE FORT LARG:50 | F50: 36 | G50: ST
A51: R100215870 | B51: 200987675 | C51: MELOTTE DIDIER | D51: 4.89 | E51: TOURNEVIS LAME FRAISEE CYLINDRIQUE LARG. | F51: 3 | G51: ST
A52: R100157509 | B52: 200987675 | C52: MELOTTE DIDIER | D52: 6.69 | E52: TOURNEVIS PR.VIS A FENTE LAME CYLIN.LG.U | F52: 3 | G52: ST
A53: 7711574475 | B53: 200987677 | C53: RIVAS ERIC | D53: 50 | E53: CLÉ USB RENAULT Z.E. 4 GO | F53: 50 | G53: ST
A54: R100212994 | B54: 200987679 | C54: GUERIN JEAN PIERRE GERARD | D54: 23.81 | E54: CAFETIERE 'DESIGN' POUR 15 TASSES ,CAPAC | F54: 1 | G54: ST
A55: R100453587 | B55: 200987681 | C55: COMMUNIER THIERRY | D55: 113.33 | E55: FUT 209L SHELL PC 1033 D:0,850 | F55: 2 | G55: ST
A56: 260609429R | B56: 200987682 | C56: DENIS CEDRIC | D56: 48.89 | E56: PROJECTEUR HALOGENE G | F56: 1 | G56: ST
A57: 8200661049 | B57: 200987682 | C57: DENIS CEDRIC | D57: 5.66 | E57: ELECTROVANNE PILOTAGE TURBOCOMPRESSEUR | F57: 1 | G57: ST
A58: 8200280060 | B58: 200987682 | C58: DENIS CEDRIC | D58: 9.92 | E58: DEBITMETRE AIR | F58: 1 | G58: ST
A59: R100518619 | B59: 200987683 | C59: TRIFAULT MARIE-CHRISTINE | D59: 33.34 | E59: CHAUSSURES DE SECURITE AMAGNETIQUES "VIL | F59: 1 | G59: ST
A60: R100582895 | B60: 200987683 | C60: TRIFAULT MARIE-CHRISTINE | D60: 100.19 | E60: CASQUETTE COTON POLYESTER NOIR VISIERE R | F60: 10 | G60: ST
A61: 687603138R | B61: 200987684 | C61: DECAUDAIN JEAN FRANCOIS | D61: 3.38 | E61: AERATEUR PLANCHE BORD | F61: 1 | G61: ST
A62: 280387878R | B62: 200987684 | C62: DECAUDAIN JEAN FRANCOIS | D62: 1.42 | E62: SUPPORT AFFICHEUR | F62: 1 | G62: ST
A63: 253B08400R | B63: 200987684 | C63: DECAUDAIN JEAN FRANCOIS | D63: 10.6 | E63: CLAVIER MULTIMEDIA | F63: 1 | G63: ST
A64: 259158357R | B64: 200987684 | C64: DECAUDAIN JEAN FRANCOIS | D64: 191.22 | E64: CALCULATEUR NAVIGATION | F64: 1 | G64: ST
A65: R100364717 | B65: 200987685 | C65: MALGUY STEPHANE | D65: 31.3 | E65: PAIRE DE CHAUSSURES BASSE EN CUIR NOIR,T | F65: 1 | G65: ST
A66: R100529763 | B66: 200987689 | C66: TOUDIC JACQUES CHRISTO | D66: 125.85 | E66: HUILE BOITE MANUELLE | F66: 60 | G66: L
A67: R100690627 | B67: 200987690 | C67: DESMOULINS MICKAEL | D67: 378 | E67: FILAMENT DE PLA IMPRIMANTE 3D-NOIR-D.2,8 | F67: 10 | G67: ST
A68: R100690629 | B68: 200987690 | C68: DESMOULINS MICKAEL | D68: 189 | E68: FILAMENT DE PLA IMPRIMANTE 3D-BLANC.D.2, | F68: 5 | G68: ST
A69: R100690630 | B69: 200987690 | C69: DESMOULINS MICKAEL | D69: 309.9 | E69: FILAMENT DE PLA IMPRIMANTE 3D-BLANC.D.2, | F69: 10 | G69: ST
A70: R100690631 | B70: 200987690 | C70: DESMOULINS MICKAEL | D70: 309.9 | E70: FILAMENT DE PLA IMPRIMANTE 3D-NOIR-D.2,8 | F70: 10 | G70: ST
A71: R100690629 | B71: 200987690 | C71: DESMOULINS MICKAEL | D71: 189 | E71: FILAMENT DE PLA IMPRIMANTE 3D-BLANC.D.2, | F71: 5 | G71: ST
A72: 7711574925 | B72: 200987692 | C72: PERES FERNAND | D72: 73.8 | E72: CLEANBOX | F72: 4 | G72: ST
A73: X771101523 | B73: 200987694 | C73: DANIOU MARTIAL | D73: 7.36 | E73: PILE ALCALINE 1,5V D:11,6MM EP:5,4MM 1 | F73: 10 | G73: ST
A74: R100139143 | B74: 200987695 | C74: POULAIN GILLES | D74: 432.1 | E74: LATTE INTERIEUR DIM: 3500X1550 EP: 19 MM | F74: 27.125 | G74: M2
A75: 8200294234 | B75: 200987696 | C75: PERES FERNAND | D75: 3.61 | E75: PARE-SOLEIL G | F75: 1 | G75: ST
A76: X489042005 | B76: 200987697 | C76: LABORIE GIL | D76: 2.28 | E76: TIGE FILETEE M 6 INOX Z6.CN.18.12 L | F76: 2 | G76: ST
A77: R100217083 | B77: 200987697 | C77: LABORIE GIL | D77: 4.24 | E77: TIGE FILETEE M.8 LG:1000 MM ACIER INOX A | F77: 2 | G77: ST
A78: X489043006 | B78: 200987697 | C78: LABORIE GIL | D78: 3.9 | E78: TIGE FILETEE M10 INOX Z6.CN.18.12 LG | F78: 2 | G78: ST
A79: X489041301 | B79: 200987697 | C79: LABORIE GIL | D79: 0.28 | E79: TIGE FILETEE M 4 ACIER 6-8 LG:1000 | F79: 2 | G79: ST
A80: X489041602 | B80: 200987697 | C80: LABORIE GIL | D80: 2.7 | E80: TIGE FILETEE M 5 ACIER 6-8 LG:1000 | F80: 2 | G80: ST
A81: X489042005 | B81: 200987697 | C81: LABORIE GIL | D81: 2.28 | E81: TIGE FILETEE M 6 INOX Z6.CN.18.12 L | F81: 2 | G81: ST
A82: R100217083 | B82: 200987697 | C82: LABORIE GIL | D82: 4.24 | E82: TIGE FILETEE M.8 LG:1000 MM ACIER INOX A | F82: 2 | G82: ST
A83: X489043006 | B83: 200987697 | C83: LABORIE GIL | D83: 3.9 | E83: TIGE FILETEE M10 INOX Z6.CN.18.12 LG | F83: 2 | G83: ST
A84: X489041301 | B84: 200987697 | C84: LABORIE GIL | D84: 0.28 | E84: TIGE FILETEE M 4 ACIER 6-8 LG:1000 | F84: 2 | G84: ST
A85: 297C13111R | B85: 200987698 | C85: LE NEEL PASCAL | D85: 15.95 | E85: LEVIER CDE ARRET GENERAL BATTERIE TRCN | F85: 1 | G85: ST
A86: X723011200 | B86: 200987701 | C86: CASANOVA PHILIPPE | D86: 85.32 | E86: GAINE TRESSEE POLYESTER D.INT.8MM EXPAND | F86: 100 | G86: M
A87: 7701038624 | B87: 200987702 | C87: L'HEUREUX RAYMOND LUCIEN | D87: 4.2 | E87: AMPOULE 12V - 21W | F87: 20 | G87: ST
A88: 7701057737 | B88: 200987702 | C88: L'HEUREUX RAYMOND LUCIEN | D88: 31 | E88: LAMPE | F88: 20 | G88: ST
A89: R100138698 | B89: 200987705 | C89: DUCHOSSOY DAMIEN | D89: 36 | E89: FILM POLYETHYLENE PEBD A BULLES D:10MM | F89: 1 | G89: ST
A90: T853454121 | B90: 200987705 | C90: DUCHOSSOY DAMIEN | D90: 170.46 | E90: TUBE 20G COLLE LOCTITE 454 | F90: 24 | G90: ST
A91: R100127627 | B91: 200987705 | C91: DUCHOSSOY DAMIEN | D91: 23.71 | E91: AEROSOL 200ML CONTACTOL DTZ | F91: 2 | G91: ST
A92: 7711422414 | B92: 200987705 | C92: DUCHOSSOY DAMIEN | D92: 9.6 | E92: NETTOYANT FREIN RENAULT - CAPACITE 600ML | F92: 12 | G92: ST
A93: T533515452 | B93: 200987705 | C93: DUCHOSSOY DAMIEN | D93: 65.94 | E93: TOILE ADHESIVE PLASTIFIEE NOIRE EP: 0,3M | F93: 6 | G93: ST
A94: X723118001 | B94: 200987706 | C94: LABORIE GIL | D94: 26.1 | E94: TUBE PLAST IRO 5 APE REF:48 D.INT.48,6 | F94: 10 | G94: M
A95: R100364714 | B95: 200987707 | C95: CHOPART SANDRINE | D95: 31.19 | E95: PAIRE DE CHAUSSURES BASSE EN CUIR NOIR,T | F95: 1 | G95: ST
A96: R100318549 | B96: 200987709 | C96: DENIS JEAN CLAUDE | D96: 0 | E96: IMPRIMANTE TEC-B-BX-5T-TS12-QP STANDARD | F96: 1 | G96: ST
A97: 261555538R | B97: 200987710 | C97: DECAUDAIN JEAN FRANCOIS | D97: 13.67 | E97: PROJECTEUR BROUILLARD G | F97: 1 | G97: ST
A98: R100105766 | B98: 200987711 | C98: DUCHOSSOY DAMIEN | D98: 7.95 | E98: FILM NOIR POLYETHYLENE ETIRABLE MANUEL | F98: 1 | G98: ST
A99: P021151105 | B99: 200987711 | C99: DUCHOSSOY DAMIEN | D99: 77.12 | E99: FORET Q CYL D4,5 LG200X150 HEL30DEG T | F99: 8 | G99: ST
A100: R100296383 | B100: 200987711 | C100: DUCHOSSOY DAMIEN | D100: 50.32 | E100: PAIRE DE GANTS 5 DOIGTS TRICOTES DYNEMA | F100: 10 | G100: ST
A101: T533515452 | B101: 200987711 | C101: DUCHOSSOY DAMIEN | D101: 21.98 | E101: TOILE ADHESIVE PLASTIFIEE NOIRE EP: 0,3M | F101: 2 | G101: ST
A102: T511373370 | B102: 200987711 | C102: DUCHOSSOY DAMIEN | D102: 18.73 | E102: BOBINE EN OUATE DE CELLULOSE COULEUR CHA | F102: 6 | G102: ST
A103: R100088124 | B103: 200987711 | C103: DUCHOSSOY DAMIEN | D103: 72.12 | E103: AEROSOL 500ML 3M SCOTCH-WELD 77 COLLE MU | F103: 6 | G103: ST
A104: R100136536 | B104: 200987711 | C104: DUCHOSSOY DAMIEN | D104: 122.18 | E104: PROTECTION ANTI-CORROSION A SECHAGE RAPI | F104: 6 | G104: ST
A105: 7711170637 | B105: 200987711 | C105: DUCHOSSOY DAMIEN | D105: 9.72 | E105: AEROSOL 400ML BOMBE DE PEINTURE NOIR MAT | F105: 6 | G105: ST
A106: R100176238 | B106: 200987711 | C106: DUCHOSSOY DAMIEN | D106: 2.88 | E106: SUPPORT BADGE A ENROULEUR D=3CM FIL:60CM | F106: 8 | G106: ST
A107: 7711781024 | B107: 200987712 | C107: COUILLEZ CHRISTOPHE | D107: 126 | E107: POLAIRE RENAULT CORPORATE M | F107: 6 | G107: ST
A108: 7711781027 | B108: 200987712 | C108: COUILLEZ CHRISTOPHE | D108: 126 | E108: POLAIRE RENAULT CORPORATE XXL | F108: 6 | G108: ST
A109: R100149648 | B109: 200987713 | C109: DUCHOSSOY DAMIEN | D109: 116.25 | E109: PLAQUE POLYURETHANE USINABLE PROLAB.65 L | F109: 1 | G109: ST
A110: R100149650 | B110: 200987713 | C110: DUCHOSSOY DAMIEN | D110: 232.39 | E110: PLAQUE POLYURETHANE USINABLE PROLAB.65 L | F110: 1 | G110: ST
A111: R100245825 | B111: 200987713 | C111: DUCHOSSOY DAMIEN | D111: 320.16 | E111: PLAQUE USI.ROSE LARG:500 LG:2000 EP:50 | F111: 3 | G111: ST
A112: R100359972 | B112: 200987715 | C112: LABORIE GIL | D112: 0 | E112: AEROSOL 400ML SPRAY FLUO ROSE (556944) | F112: 2 | G112: ST
A113: R100127627 | B113: 200987716 | C113: BELLEMOU FARID | D113: 59.27 | E113: AEROSOL 200ML CONTACTOL DTZ | F113: 5 | G113: ST
A114: 7711170356 | B114: 200987718 | C114: BAYARD FREDERIC OLIVIER | D114: 16.92 | E114: RIVET 4.26 BLANC SECT.729 | F114: 3 | G114: ST
A115: X484112000 | B115: 200987718 | C115: BAYARD FREDERIC OLIVIER | D115: 0.9 | E115: ECROU HEXAG AUTO FREINE M 6 EP: | F115: 60 | G115: ST
A116: 7701208950 | B116: 200987721 | C116: TRIDON JEAN LUC | D116: 21.45 | E116: ROULEMENT AV | F116: 1 | G116: ST
A117: 7703101617 | B117: 200987721 | C117: TRIDON JEAN LUC | D117: 1.34 | E117: VIS H M12X125-32 10-9 SA3GS | F117: 10 | G117: ST
A118: 7701405652 | B118: 200987723 | C118: GILLE JONATHAN | D118: 0.6 | E118: PEINTURE PELABLE | F118: 60 | G118: ST
A119: 600501319R | B119: 200987724 | C119: ROUSSEL FRANCOIS GEORGES LOUI | D119: 1242.73 | E119: CAISSE EN BLANC ASS | F119: 1 | G119: ST
A120: 4939122170 | B120: 200987725 | C120: SACHET MARIE-PIERRE | D120: 5.34 | E120: ENVELOPPE RENAULT 110X220 SF 1=100 | F120: 2 | G120: ST
A121: 4939126180 | B121: 200987725 | C121: SACHET MARIE-PIERRE | D121: 5.5 | E121: ENVELOPPE RENAULT 110X220 FENETRE 1=100 | F121: 2 | G121: ST
A122: 804209726R | B122: 200987727 | C122: ROSENSTIEL ARNAUD | D122: 0.89 | E122: ARTICULATION PORTE LAT | F122: 1 | G122: ST
A123: 804207876R | B123: 200987727 | C123: ROSENSTIEL ARNAUD | D123: 0.89 | E123: ARTICULATION PORTE LAT | F123: 1 | G123: ST
A124: X771101523 | B124: 200987727 | C124: ROSENSTIEL ARNAUD | D124: 7.36 | E124: PILE ALCALINE 1,5V D:11,6MM EP:5,4MM 1 | F124: 10 | G124: ST
A125: R100174539 | B125: 200987727 | C125: ROSENSTIEL ARNAUD | D125: 1 | E125: ALCOOL METHYLIQUE DENATURE FUT SOLVANT S | F125: 1 | G125: L
A126: 7703602238 | B126: 200987727 | C126: ROSENSTIEL ARNAUD | D126: 0.51 | E126: VIS H EMBASE M8X125-30 10-9 SA3GS | F126: 10 | G126: ST
A127: 7703633008 | B127: 200987727 | C127: ROSENSTIEL ARNAUD | D127: 0.38 | E127: ECROU H EMBASE M8X125 8 SA1GS | F127: 10 | G127: ST
A128: R100365564 | B128: 200987728 | C128: BOUSSIOUS JEREMIE | D128: 0 | E128: BALANCE ELECTRONIQUE CAPACITE 8100GR | F128: 1 | G128: ST
A129: 165004ED0C | B129: 200987728 | C129: BOUSSIOUS JEREMIE | D129: 10.75 | E129: FILTRE A AIR | F129: 1 | G129: ST
A130: 165004EA0C | B130: 200987728 | C130: BOUSSIOUS JEREMIE | D130: 10.95 | E130: FILTRE-AIR | F130: 1 | G130: ST
A131: 165004EB0C | B131: 200987728 | C131: BOUSSIOUS JEREMIE | D131: 10.72 | E131: FILTRE A AIR | F131: 1 | G131: ST
A132: 165464EA0C | B132: 200987728 | C132: BOUSSIOUS JEREMIE | D132: 7.23 | E132: CARTOUCHE FILTRE A AIR | F132: 1 | G132: ST
A133: 272774812R | B133: 200987728 | C133: BOUSSIOUS JEREMIE | D133: 3.71 | E133: FILTRE HABITACLE | F133: 1 | G133: ST
A134: 296958839R | B134: 200987729 | C134: COLET FRANCOIS | D134: 203.13 | E134: CABLAGE PRISE CHARGE | F134: 3 | G134: ST
A135: 8201571730 | B135: 200987729 | C135: COLET FRANCOIS | D135: 98 | E135: COLLECTION CORDON DE | F135: 1 | G135: ST
A136: 8201404665 | B136: 200987729 | C136: COLET FRANCOIS | D136: 145.86 | E136: COLLECTION CORDON DE | F136: 2 | G136: ST
A137: 8201489213 | B137: 200987729 | C137: COLET FRANCOIS | D137: 825.32 | E137: COLLECTION CORDON DE | F137: 2 | G137: ST
A138: 8201353131 | B138: 200987729 | C138: COLET FRANCOIS | D138: 289.57 | E138: COLLECTION CORDON DE | F138: 1 | G138: ST
A139: 7701207897 | B139: 200987730 | C139: BOUSSIOUS JEREMIE | D139: 29.8 | E139: DISQUE FREIN | F139: 2 | G139: ST
A140: X723030470 | B140: 200987731 | C140: FRANK EMMANUEL | D140: 25.32 | E140: GAINE THERMORETRACTABLE FLEXIBLE NOIR | F140: 12 | G140: ST
A141: X723061200 | B141: 200987731 | C141: FRANK EMMANUEL | D141: 75 | E141: GAINE VERRE (TISSE) VERNIE POLYURETHANE | F141: 100 | G141: M
A142: T533206250 | B142: 200987731 | C142: FRANK EMMANUEL | D142: 0.57 | E142: RUBAN ADHESIF PVC PLASTIFIE ROUGE | F142: 4 | G142: ST
A143: P672410175 | B143: 200987731 | C143: FRANK EMMANUEL | D143: 3.71 | E143: TOURNEVIS POUR VIS A FENTE LAME RONDE LA | F143: 3 | G143: ST
A144: R100079718 | B144: 200987731 | C144: FRANK EMMANUEL | D144: 13 | E144: FICHE BANANE MALE DE SECURITE D.4MM 16A/ | F144: 50 | G144: ST
A145: X702518005 | B145: 200987731 | C145: FRANK EMMANUEL | D145: 28.92 | E145: CABLE SOUPLE PVC 1 X 0 | F145: 200 | G145: M
A146: X723030250 | B146: 200987731 | C146: FRANK EMMANUEL | D146: 5.37 | E146: GAINE THERMORETRACTABLE FLEXIBLE POLYOLE | F146: 12 | G146: M
A147: X702540004 | B147: 200987731 | C147: FRANK EMMANUEL | D147: 16 | E147: CABLE H 07 V-K 1 X 4 | F147: 100 | G147: M
A148: P131040004 | B148: 200987731 | C148: FRANK EMMANUEL | D148: 6.3 | E148: TARAUD MAIN M 3X0,5 JEU | F148: 3 | G148: ST
A149: X484022009 | B149: 200987731 | C149: FRANK EMMANUEL | D149: 0.87 | E149: ECROU HEXAGONAL USUEL 'HU' M 6 PAS:100 | F149: 60 | G149: ST
A150: X723061200 | B150: 200987732 | C150: FRANK EMMANUEL | D150: 75 | E150: GAINE VERRE (TISSE) VERNIE POLYURETHANE | F150: 100 | G150: M
A151: R100079716 | B151: 200987732 | C151: FRANK EMMANUEL | D151: 180 | E151: FICHE BANANE MALE DE SECURITE D.4MM 16A/ | F151: 40 | G151: ST
A152: R100091242 | B152: 200987732 | C152: FRANK EMMANUEL | D152: 152.88 | E152: CABLE 2 PAIRES TORSADEES BLINDEES 0,35MM | F152: 200 | G152: M
A153: X723030850 | B153: 200987732 | C153: FRANK EMMANUEL | D153: 5.28 | E153: GAINE THERMORETRACTABLE TYPE BRE CLASSE | F153: 12 | G153: ST
A154: X725051500 | B154: 200987732 | C154: FRANK EMMANUEL | D154: 207.66 | E154: COSSE TUBULAIRE ISOLEE TR. 8,4 6,0-1 | F154: 300 | G154: ST
A155: R100326832 | B155: 200987732 | C155: FRANK EMMANUEL | D155: 13.2 | E155: RUBAN TOILE RECOUVERT D'UNE COUCHE DE P | F155: 3 | G155: ST
A156: R100360834 | B156: 200987732 | C156: FRANK EMMANUEL | D156: 165.83 | E156: FICHE DROITE MALE 3P+N+T 63A 400V IP66/6 | F156: 5 | G156: ST
A157: X702558004 | B157: 200987732 | C157: FRANK EMMANUEL | D157: 106 | E157: CABLE H 07 V-K 1 X 25 | F157: 100 | G157: M
A158: X75600442A | B158: 200987732 | C158: FRANK EMMANUEL | D158: 266 | E158: CONNECTEUR FEMELLE SUBD 9 CONTACTS DECOL | F158: 200 | G158: ST
A159: T853454151 | B159: 200987732 | C159: FRANK EMMANUEL | D159: 33.6 | E159: COLLE CYANOACRYLATE LOCTITE 460 FLACON | F159: 5 | G159: ST
A160: X725071500 | B160: 200987733 | C160: FRANK EMMANUEL | D160: 115.65 | E160: COSSE TUBULAIRE ISOLEE TR. 8,4 16,0-2 | F160: 100 | G160: ST
A161: X516743200 | B161: 200987733 | C161: FRANK EMMANUEL | D161: 72.6 | E161: AGRAFE POUR MAINTIEN DOUILLE DE SERRAGE | F161: 20 | G161: ST
A162: X723061000 | B162: 200987733 | C162: FRANK EMMANUEL | D162: 225 | E162: GAINE VERRE (TISSE) VERNIE POLYURETHANE | F162: 100 | G162: M
A163: R100079712 | B163: 200987733 | C163: FRANK EMMANUEL | D163: 174.5 | E163: FICHE BANANE MALE DE SECURITE D.4MM 16A/ | F163: 50 | G163: ST
A164: X702518000 | B164: 200987733 | C164: FRANK EMMANUEL | D164: 262 | E164: CABLE SOUPLE PVC 1 X 0 | F164: 200 | G164: M
A165: X484021609 | B165: 200987733 | C165: FRANK EMMANUEL | D165: 0.61 | E165: ECROU HEXAGONAL BAS 'HM' M5 PAS:0,8 | F165: 50 | G165: ST
A166: P674123000 | B166: 200987733 | C166: FRANK EMMANUEL | D166: 79 | E166: CLE A FOURCHE DOUBLE 10X11 LG.ENVIRON:15 | F166: 50 | G166: ST
A167: X723031050 | B167: 200987733 | C167: FRANK EMMANUEL | D167: 6.24 | E167: GAINE THERMORETRACTABLE POLYOLEFINE FLEX | F167: 12 | G167: ST
A168: 7701352223 | B168: 200987735 | C168: ROUET ANDRE | D168: 19.47 | E168: TRANS.ES X57 G | F168: 1 | G168: ST
A169: 7700803755 | B169: 200987735 | C169: ROUET ANDRE | D169: 13.64 | E169: TUYAU PRIMAIRE ECHAPPEMENT ASS | F169: 1 | G169: ST
A170: 8671093361 | B170: 200987735 | C170: ROUET ANDRE | D170: 66.5 | E170: Motrio catalytic converter | F170: 1 | G170: ST
A171: 8200035310 | B171: 200987735 | C171: ROUET ANDRE | D171: 1.53 | E171: BAGUE ETANCHEITE ROTULE ECHAPPEMENT | F171: 1 | G171: ST
A172: 7700701831 | B172: 200987735 | C172: ROUET ANDRE | D172: 0.74 | E172: RESSORT | F172: 2 | G172: ST
A173: 7703034256 | B173: 200987735 | C173: ROUET ANDRE | D173: 0.05 | E173: ECROU DRH EMBASE M8X125 8 SA1GS | F173: 2 | G173: ST
A174: 7703027513 | B174: 200987735 | C174: ROUET ANDRE | D174: 0.25 | E174: GOUJON EPAULE DOUBLE M8X125 8-8 SA1GS | F174: 2 | G174: ST
A175: R100552279 | B175: 200987766 | C175: MELOTTE DIDIER | D175: 1704.67 | E175: ROULEAU DI-NOC NOIR MAT LARG:0,930M LONG | F175: 1 | G175: ST
A176: T732120876 | B176: 200987766 | C176: MELOTTE DIDIER | D176: 4.87 | E176: PLAQUE DE MOUSSE POLYURETHANE RIGIDE ENT | F176: 1 | G176: ST
A177: X971117265 | B177: 200987766 | C177: MELOTTE DIDIER | D177: 1.63 | E177: CRAYON DE COULEUR FABER-CASTELL POLYCHRO | F177: 1 | G177: ST
A178: X971117285 | B178: 200987766 | C178: MELOTTE DIDIER | D178: 1.63 | E178: CRAYON DE COULEUR FABER-CASTELL POLYCHRO | F178: 1 | G178: ST
A179: R100553988 | B179: 200987768 | C179: DANIOU MARTIAL | D179: 298.59 | E179: ECRAN PLAT 24" WIDE 16/10 PC CAD HP | F179: 1 | G179: ST
A180: R100456080 | B180: 200987769 | C180: GILLES MARC | D180: 290.52 | E180: CABLE INTERFACE DIAGNOSTIC POUR VEHICULE | F180: 1 | G180: ST
A181: P935585370 | B181: 200987772 | C181: GILLES MARC | D181: 32.99 | E181: PLATEAU ROLOC D:76 AVEC QUEUE CYL | F181: 3 | G181: ST
A182: R100518607 | B182: 200987773 | C182: DEVAUD EMMANUEL | D182: 45.9 | E182: CHAUSSURES DE SECURITE "VILLE" NOIRES CU | F182: 1 | G182: ST
A183: R100134987 | B183: 200987780 | C183: CABOCHE MICHEL JEAN | D183: 2.8 | E183: EMBOUT TOURNEVIS A FENTE ENTRAIN.HEXA.1/ | F183: 2 | G183: ST
A184: 8200421993 | B184: 200987782 | C184: TAVARES LUIS | D184: 0.29 | E184: PATTE SUPPORT FLEXIBLE | F184: 1 | G184: ST
A185: 8200421997 | B185: 200987782 | C185: TAVARES LUIS | D185: 0.29 | E185: PATTE SUPPORT FLEXIBLE | F185: 1 | G185: ST
A186: R100518607 | B186: 200987787 | C186: ZELLER THIERRY | D186: 45.9 | E186: CHAUSSURES DE SECURITE "VILLE" NOIRES CU | F186: 1 | G186: ST
A187: R100518603 | B187: 200987788 | C187: ZELLER THIERRY | D187: 21.39 | E187: CHAUSSURES DE SECURITE "VILLE" NOIRES CU | F187: 1 | G187: ST
A188: R100438328 | B188: 200987788 | C188: ZELLER THIERRY | D188: 26.13 | E188: BLOUSE H STANDARD SERGE GRIS CLAIR | F188: 3 | G188: ST
A189: R100438329 | B189: 200987788 | C189: ZELLER THIERRY | D189: 8.69 | E189: BLOUSE H STANDARD SERGE GRIS CLAIR | F189: 1 | G189: ST
A190: 165464BA1A | B190: 200987789 | C190: BOUSSIOUS JEREMIE | D190: 6.33 | E190: CARTOUCHE FILTRE A AIR | F190: 1 | G190: ST
A191: R100518602 | B191: 200987790 | C191: ZELLER THIERRY | D191: 22.56 | E191: CHAUSSURES DE SECURITE "VILLE" NOIRES CU | F191: 1 | G191: ST
A192: R100518603 | B192: 200987790 | C192: ZELLER THIERRY | D192: 21.39 | E192: CHAUSSURES DE SECURITE "VILLE" NOIRES CU | F192: 1 | G192: ST
A193: R100438326 | B193: 200987790 | C193: ZELLER THIERRY | D193: 8.7 | E193: BLOUSE H STANDARD SERGE GRIS CLAIR | F193: 1 | G193: ST
A194: R100438327 | B194: 200987790 | C194: ZELLER THIERRY | D194: 8.72 | E194: BLOUSE H STANDARD SERGE GRIS CLAIR | F194: 1 | G194: ST
A195: R100438327 | B195: 200987791 | C195: ZELLER THIERRY | D195: 8.72 | E195: BLOUSE H STANDARD SERGE GRIS CLAIR | F195: 1 | G195: ST
A196: R100438328 | B196: 200987791 | C196: ZELLER THIERRY | D196: 8.71 | E196: BLOUSE H STANDARD SERGE GRIS CLAIR | F196: 1 | G196: ST
A197: 7711576267 | B197: 200987794 | C197: HORPS FREDERIC | D197: 60 | E197: POLAIRE RENAULT CORPORATE M | F197: 3 | G197: ST
A198: 7711576085 | B198: 200987794 | C198: HORPS FREDERIC | D198: 32.8 | E198: JACKET RENAULT SPORT TAILLE M | F198: 1 | G198: ST
A199: 7711576085 | B199: 200987795 | C199: HORPS FREDERIC | D199: 32.8 | E199: JACKET RENAULT SPORT TAILLE M | F199: 1 | G199: ST
A200: 7711576267 | B200: 200987795 | C200: HORPS FREDERIC | D200: 40 | E200: POLAIRE RENAULT CORPORATE M | F200: 2 | G200: ST
... 103 more rows

Sheet Suivi Sof
A1: =CONCATENATE(B1,"-",C1) -> - | J1: =IF(ISERROR(VLOOKUP(A1,base_sf[],6,FALSE)),"","X") -> X | K1: =IF(ISERROR(VLOOKUP(A1,base_sf[],11,0)),I1,VLOOKUP(A1,base_sf[],11,0)) -> 0 | L1: =IF(I1=K1,"Soldé",IF(AND(K1<I1,K1<>0),"Litige ou 351","Reliquat")) -> Soldé | M1: =IF(AND($K1=0,$H1<'Menu General'!$A$10),"En retard",IF($I1=$K1,"Soldé",IF(AND($O1<>0,$O1<$I1),"Partiel","En cours"))) -> En retard | O1: =IF(ISERROR(VLOOKUP(E1,'LX02'!$A$1:$D$150,1,FALSE)),"","X") ->  | Q1: =VLOOKUP(E1,cde_client,2,FALSE) ->  | R1: =VLOOKUP(E1,cde_client,3,FALSE) ->  | S1: =VLOOKUP(E1,cde_client,6,FALSE) ->  | T1: =I1 -> 0 | U1: =(VLOOKUP(E1,cde_P04,8,FALSE)) ->  | V1: =(VLOOKUP(E1,cde_P04,1,FALSE)) ->  | W1: =(VLOOKUP(E1,cde_P04,10,FALSE)) -> 
A2: Concatener | B2: Commande RE03 | C2: Poste | D2: Flux D/N | E2: Reference | F2: Designation | G2: Date de la commande | H2: Date previsionnel de reception | I2: Qté commandée re03 | J2: SF | K2: Qté livrée | L2: Motif | M2: Suivi délais | N2: Satut Livraison | O2: LX02 | P2: Délai livraison | Q2: Cde client | R2: Nom du Client | S2: qté Cdée Client | T2: Qté commandée re032 | U2: Qté Cdée SF | V2: Reference Sofra | W2: Prix | X2: Gestionnaire | Y2: Relance | Z2: Commentaire
A3: =CONCATENATE(B3,"-",C3) -> 4700043297-310 | B3: 4700043297 | C3: 310 | E3: R100179987 | F3: PINCE ETAU A GACHETTE "SERIE T5"DIM:250X | G3: 2016-04-29 | H3: 2016-05-09 | I3: 1 | J3: =IF(ISERROR(VLOOKUP(A3,base_sf[],6,FALSE)),"","X") -> X | K3: =IF(ISERROR(VLOOKUP(A3,base_sf[],11,0)),I3,VLOOKUP(A3,base_sf[],11,0)) -> 0 | L3: =IF(I3=K3,"Soldé",IF(AND(K3<I3,K3<>0),"Litige ou 351","Reliquat")) -> Reliquat | M3: =IF(AND($K3=0,$H3<'Menu General'!$A$10),"En retard",IF($I3=$K3,"Soldé",IF(AND($O3<>0,$O3<$I3),"Partiel","En cours"))) -> En retard | O3: =IF(ISERROR(VLOOKUP(E3,'LX02'!$A$1:$D$150,1,FALSE)),"","X") ->  | Q3: 200987482 | R3: PAVIE VIANNEY | S3: 1 | T3: =I3 -> 1 | U3: 1 | V3: P933111770 | W3: 19.9
A4: 4700043377-500 | B4: 4700043377 | C4: 500 | E4: P481115803 | F4: PINCE-ETAU A GRANDE CAPACITE MAXI 120 LG | G4: 2016-05-13 | H4: 2016-05-17 | I4: 1 | J4: =IF(ISERROR(VLOOKUP(A4,base_sf[],6,FALSE)),"","X") -> X | K4: =IF(ISERROR(VLOOKUP(A4,base_sf[],11,0)),I4,VLOOKUP(A4,base_sf[],11,0)) -> 0 | L4: Reliquat | M4: =IF(AND($K4=0,$H4<'Menu General'!$A$10),"En retard",IF($I4=$K4,"Soldé",IF(AND($O4<>0,$O4<$I4),"Partiel","En cours"))) -> En retard | O4: =IF(ISERROR(VLOOKUP(E4,'LX02'!$A$1:$D$150,1,FALSE)),"","X") ->  | Q4: 200987489 | R4: LABREVOIS PHILIPPE | S4: 1 | T4: 1 | U4: 1 | V4: P763916071 | W4: 50
A5: 4700043399-530 | B5: 4700043399 | C5: 530 | E5: R100320578 | F5: SERVANTE-COFFRE 650X400X520 5 CASES | G5: 2016-05-18 | H5: 2016-05-23 | I5: 2 | J5: =IF(ISERROR(VLOOKUP(A5,base_sf[],6,FALSE)),"","X") -> X | K5: =IF(ISERROR(VLOOKUP(A5,base_sf[],11,0)),I5,VLOOKUP(A5,base_sf[],11,0)) -> 0 | L5: Reliquat | M5: =IF(AND($K5=0,$H5<'Menu General'!$A$10),"En retard",IF($I5=$K5,"Soldé",IF(AND($O5<>0,$O5<$I5),"Partiel","En cours"))) -> En retard | O5: =IF(ISERROR(VLOOKUP(E5,'LX02'!$A$1:$D$150,1,FALSE)),"","X") ->  | Q5: 200987551 | R5: GILLES MARC | S5: 1 | T5: 2 | U5: 1 | V5: P688303070 | W5: 6.63
A6: 4700043411-10 | B6: 4700043411 | C6: 10 | D6: 2 | E6: 4939631034 | F6: ROULEAU D'ETIQUETTE ROUGE RONDE 1=1000 | G6: 2016-05-19 | H6: 2016-05-24 | I6: 10 | J6: =IF(ISERROR(VLOOKUP(A6,base_sf[],6,FALSE)),"","X") ->  | K6: =IF(ISERROR(VLOOKUP(A6,base_sf[],11,0)),I6,VLOOKUP(A6,base_sf[],11,0)) -> 10 | L6: Soldé | M6: =IF(AND($K6=0,$H6<'Menu General'!$A$10),"En retard",IF($I6=$K6,"Soldé",IF(AND($O6<>0,$O6<$I6),"Partiel","En cours"))) -> Soldé | O6: =IF(ISERROR(VLOOKUP(E6,'LX02'!$A$1:$D$150,1,FALSE)),"","X") ->  | Q6: 200987551 | R6: GILLES MARC | S6: 3 | T6: 10 | W6: 0
A7: 4700043411-20 | B7: 4700043411 | C7: 20 | D7: 2 | E7: 4939631035 | F7: ROULEAU D'ETIQUETTE VERTE RONDE 1=1000 | G7: 2016-05-19 | H7: 2016-05-24 | I7: 10 | J7: =IF(ISERROR(VLOOKUP(A7,base_sf[],6,FALSE)),"","X") ->  | K7: =IF(ISERROR(VLOOKUP(A7,base_sf[],11,0)),I7,VLOOKUP(A7,base_sf[],11,0)) -> 10 | L7: Soldé | M7: =IF(AND($K7=0,$H7<'Menu General'!$A$10),"En retard",IF($I7=$K7,"Soldé",IF(AND($O7<>0,$O7<$I7),"Partiel","En cours"))) -> Soldé | O7: =IF(ISERROR(VLOOKUP(E7,'LX02'!$A$1:$D$150,1,FALSE)),"","X") ->  | Q7: 200987551 | R7: GILLES MARC | S7: 3 | T7: 10 | U7: 3 | V7: P935584470 | W7: 23.67
A8: 4700043423-10 | B8: 4700043423 | C8: 10 | D8: 2 | E8: 4939031080 | F8: ETIQ.COLIS STOCK BLEU/JAUNE 1=1000 | G8: 2016-05-20 | H8: 2016-05-19 | I8: 150 | J8: =IF(ISERROR(VLOOKUP(A8,base_sf[],6,FALSE)),"","X") ->  | K8: =IF(ISERROR(VLOOKUP(A8,base_sf[],11,0)),I8,VLOOKUP(A8,base_sf[],11,0)) -> 150 | L8: Soldé | M8: =IF(AND($K8=0,$H8<'Menu General'!$A$10),"En retard",IF($I8=$K8,"Soldé",IF(AND($O8<>0,$O8<$I8),"Partiel","En cours"))) -> Soldé | O8: =IF(ISERROR(VLOOKUP(E8,'LX02'!$A$1:$D$150,1,FALSE)),"","X") ->  | Q8: 200987552 | R8: LANIER PHILIPPE | S8: 200 | T8: 150 | U8: 300 | V8: R100149382 | W8: 198
A9: 4700043423-20 | B9: 4700043423 | C9: 20 | D9: 2 | E9: 4939121791 | F9: POCHETTE ENVELOPPES INTERSERVICES 1=250 | G9: 2016-05-20 | H9: 2016-05-19 | I9: 3 | J9: =IF(ISERROR(VLOOKUP(A9,base_sf[],6,FALSE)),"","X") ->  | K9: =IF(ISERROR(VLOOKUP(A9,base_sf[],11,0)),I9,VLOOKUP(A9,base_sf[],11,0)) -> 3 | L9: Soldé | M9: =IF(AND($K9=0,$H9<'Menu General'!$A$10),"En retard",IF($I9=$K9,"Soldé",IF(AND($O9<>0,$O9<$I9),"Partiel","En cours"))) -> Soldé | O9: =IF(ISERROR(VLOOKUP(E9,'LX02'!$A$1:$D$150,1,FALSE)),"","X") ->  | Q9: 200987552 | R9: LANIER PHILIPPE | S9: 200 | T9: 3 | U9: 500 | V9: R100034093 | W9: 190.11
A10: 4700043442-30 | B10: 4700043442 | C10: 30 | D10: 2 | E10: 4939034208 | F10: ETIQ.ADHES.COURRIER EXPRESS 1=50 | G10: 2016-05-24 | H10: 2016-05-23 | I10: 1 | J10: =IF(ISERROR(VLOOKUP(A10,base_sf[],6,FALSE)),"","X") ->  | K10: =IF(ISERROR(VLOOKUP(A10,base_sf[],11,0)),I10,VLOOKUP(A10,base_sf[],11,0)) -> 1 | L10: Soldé | M10: =IF(AND($K10=0,$H10<'Menu General'!$A$10),"En retard",IF($I10=$K10,"Soldé",IF(AND($O10<>0,$O10<$I10),"Partiel","En cours"))) -> Soldé | O10: =IF(ISERROR(VLOOKUP(E10,'LX02'!$A$1:$D$150,1,FALSE)),"","X") ->  | Q10: 200987491 | R10: RUELLOT CATHERINE | S10: 1 | T10: 1 | U10: 1 | V10: R100364710 | W10: 36.5
A11: 4700043442-40 | B11: 4700043442 | C11: 40 | D11: 2 | E11: 4939011830 | F11: CARNET DE BORD VEHICULE POOL 1=1 | G11: 2016-05-24 | H11: 2016-05-24 | I11: 50 | J11: =IF(ISERROR(VLOOKUP(A11,base_sf[],6,FALSE)),"","X") ->  | K11: =IF(ISERROR(VLOOKUP(A11,base_sf[],11,0)),I11,VLOOKUP(A11,base_sf[],11,0)) -> 50 | L11: Soldé | M11: =IF(AND($K11=0,$H11<'Menu General'!$A$10),"En retard",IF($I11=$K11,"Soldé",IF(AND($O11<>0,$O11<$I11),"Partiel","En cours"))) -> Soldé | O11: =IF(ISERROR(VLOOKUP(E11,'LX02'!$A$1:$D$150,1,FALSE)),"","X") ->  | Q11: 200987359 | R11: GUIGNOT SILVERE | S11: 1 | T11: 50 | U11: 1 | V11: R100364715 | W11: 36.5
A12: 4700043442-10 | B12: 4700043442 | C12: 10 | D12: 2 | E12: 4939121791 | F12: POCHETTE ENVELOPPES INTERSERVICES 1=250 | G12: 2016-05-24 | H12: 2016-05-23 | I12: 1 | J12: =IF(ISERROR(VLOOKUP(A12,base_sf[],6,FALSE)),"","X") ->  | K12: =IF(ISERROR(VLOOKUP(A12,base_sf[],11,0)),I12,VLOOKUP(A12,base_sf[],11,0)) -> 1 | L12: Soldé | M12: =IF(AND($K12=0,$H12<'Menu General'!$A$10),"En retard",IF($I12=$K12,"Soldé",IF(AND($O12<>0,$O12<$I12),"Partiel","En cours"))) -> Soldé | O12: =IF(ISERROR(VLOOKUP(E12,'LX02'!$A$1:$D$150,1,FALSE)),"","X") ->  | Q12: 200987439 | R12: VIGEANT JEAN-LUC | S12: 1 | T12: 1 | U12: 1 | V12: R100364716 | W12: 36.5
A13: 4700043442-20 | B13: 4700043442 | C13: 20 | D13: 2 | E13: 4939126091 | F13: ENVELOPPE BUL. 110X220 INTERNE/API 1=100 | G13: 2016-05-24 | H13: 2016-05-23 | I13: 1 | J13: =IF(ISERROR(VLOOKUP(A13,base_sf[],6,FALSE)),"","X") ->  | K13: =IF(ISERROR(VLOOKUP(A13,base_sf[],11,0)),I13,VLOOKUP(A13,base_sf[],11,0)) -> 1 | L13: Soldé | M13: =IF(AND($K13=0,$H13<'Menu General'!$A$10),"En retard",IF($I13=$K13,"Soldé",IF(AND($O13<>0,$O13<$I13),"Partiel","En cours"))) -> Soldé | O13: =IF(ISERROR(VLOOKUP(E13,'LX02'!$A$1:$D$150,1,FALSE)),"","X") ->  | Q13: 200987439 | R13: VIGEANT JEAN-LUC | S13: 1 | T13: 1 | U13: 1 | V13: R100364716 | W13: 36.5
A14: 4700043442-50 | B14: 4700043442 | C14: 50 | D14: 2 | E14: 4939635036 | F14: FIN B.L.S.LIASSE/LIASSE 1=250 | G14: 2016-05-24 | H14: 2016-05-24 | I14: 12 | J14: =IF(ISERROR(VLOOKUP(A14,base_sf[],6,FALSE)),"","X") ->  | K14: =IF(ISERROR(VLOOKUP(A14,base_sf[],11,0)),I14,VLOOKUP(A14,base_sf[],11,0)) -> 12 | L14: Soldé | M14: =IF(AND($K14=0,$H14<'Menu General'!$A$10),"En retard",IF($I14=$K14,"Soldé",IF(AND($O14<>0,$O14<$I14),"Partiel","En cours"))) -> Soldé | O14: =IF(ISERROR(VLOOKUP(E14,'LX02'!$A$1:$D$150,1,FALSE)),"","X") ->  | Q14: 200987548 | R14: COMMUNIER THIERRY | S14: 5 | T14: 12 | U14: 5 | V14: P93585147S | W14: 6.6
A15: 4700043442-60 | B15: 4700043442 | C15: 60 | D15: 2 | E15: 4939122056 | F15: POCHETTE RENAULT 330X260 RLT 1=100 | G15: 2016-05-24 | H15: 2016-05-24 | I15: 1 | J15: =IF(ISERROR(VLOOKUP(A15,base_sf[],6,FALSE)),"","X") ->  | K15: =IF(ISERROR(VLOOKUP(A15,base_sf[],11,0)),I15,VLOOKUP(A15,base_sf[],11,0)) -> 1 | L15: Soldé | M15: =IF(AND($K15=0,$H15<'Menu General'!$A$10),"En retard",IF($I15=$K15,"Soldé",IF(AND($O15<>0,$O15<$I15),"Partiel","En cours"))) -> Soldé | O15: =IF(ISERROR(VLOOKUP(E15,'LX02'!$A$1:$D$150,1,FALSE)),"","X") ->  | Q15: 200987397 | R15: MOUSSET CELINE | S15: 6 | T15: 1 | U15: 2 | V15: R100057687 | W15: 13.98
A16: 4700043472-30 | B16: 4700043472 | C16: 30 | D16: 2 | E16: 4939122170 | F16: ENVELOPPE RENAULT 110X220 SF 1=100 | G16: 2016-05-27 | H16: 2016-05-26 | I16: 1 | J16: =IF(ISERROR(VLOOKUP(A16,base_sf[],6,FALSE)),"","X") ->  | K16: =IF(ISERROR(VLOOKUP(A16,base_sf[],11,0)),I16,VLOOKUP(A16,base_sf[],11,0)) -> 1 | L16: Soldé | M16: =IF(AND($K16=0,$H16<'Menu General'!$A$10),"En retard",IF($I16=$K16,"Soldé",IF(AND($O16<>0,$O16<$I16),"Partiel","En cours"))) -> Soldé | O16: =IF(ISERROR(VLOOKUP(E16,'LX02'!$A$1:$D$150,1,FALSE)),"","X") ->  | Q16: 200987397 | R16: MOUSSET CELINE | S16: 6 | T16: 1 | U16: 2 | V16: R100057687 | W16: 13.98
A17: 4700043472-40 | B17: 4700043472 | C17: 40 | D17: 2 | E17: 4939121791 | F17: POCHETTE ENVELOPPES INTERSERVICES 1=250 | G17: 2016-05-27 | H17: 2016-05-26 | I17: 1 | J17: =IF(ISERROR(VLOOKUP(A17,base_sf[],6,FALSE)),"","X") ->  | K17: =IF(ISERROR(VLOOKUP(A17,base_sf[],11,0)),I17,VLOOKUP(A17,base_sf[],11,0)) -> 1 | L17: Soldé | M17: =IF(AND($K17=0,$H17<'Menu General'!$A$10),"En retard",IF($I17=$K17,"Soldé",IF(AND($O17<>0,$O17<$I17),"Partiel","En cours"))) -> Soldé | O17: =IF(ISERROR(VLOOKUP(E17,'LX02'!$A$1:$D$150,1,FALSE)),"","X") ->  | Q17: 200987424 | R17: CHARLES PASCALE | S17: 10 | T17: 1 | U17: 10 | V17: R100139508 | W17: 76
A18: 4700043472-10 | B18: 4700043472 | C18: 10 | D18: 2 | E18: 4939122170 | F18: ENVELOPPE RENAULT 110X220 SF 1=100 | G18: 2016-05-27 | H18: 2016-05-26 | I18: 2 | J18: =IF(ISERROR(VLOOKUP(A18,base_sf[],6,FALSE)),"","X") ->  | K18: =IF(ISERROR(VLOOKUP(A18,base_sf[],11,0)),I18,VLOOKUP(A18,base_sf[],11,0)) -> 2 | L18: Soldé | M18: =IF(AND($K18=0,$H18<'Menu General'!$A$10),"En retard",IF($I18=$K18,"Soldé",IF(AND($O18<>0,$O18<$I18),"Partiel","En cours"))) -> Soldé | O18: =IF(ISERROR(VLOOKUP(E18,'LX02'!$A$1:$D$150,1,FALSE)),"","X") ->  | Q18: 200987537 | R18: WILLEMOTTE GUILLAUME | S18: 1 | T18: 2 | U18: 1 | V18: R100212364 | W18: 2.98
A19: 4700043472-20 | B19: 4700043472 | C19: 20 | D19: 2 | E19: 4939121791 | F19: POCHETTE ENVELOPPES INTERSERVICES 1=250 | G19: 2016-05-27 | H19: 2016-05-26 | I19: 2 | J19: =IF(ISERROR(VLOOKUP(A19,base_sf[],6,FALSE)),"","X") ->  | K19: =IF(ISERROR(VLOOKUP(A19,base_sf[],11,0)),I19,VLOOKUP(A19,base_sf[],11,0)) -> 2 | L19: Soldé | M19: =IF(AND($K19=0,$H19<'Menu General'!$A$10),"En retard",IF($I19=$K19,"Soldé",IF(AND($O19<>0,$O19<$I19),"Partiel","En cours"))) -> Soldé | O19: =IF(ISERROR(VLOOKUP(E19,'LX02'!$A$1:$D$150,1,FALSE)),"","X") ->  | Q19: 200987497 | R19: BAFFEREAU BRUNO | S19: 2 | T19: 2 | U19: 2 | V19: R100275663 | W19: 19.88
A20: 4700043452-10 | B20: 4700043452 | C20: 10 | D20: 2 | E20: 4939126160 | F20: ENVELOPPE VELIN BLANC 114X229 1=100 | G20: 2016-05-25 | H20: 2016-05-24 | I20: 2 | J20: =IF(ISERROR(VLOOKUP(A20,base_sf[],6,FALSE)),"","X") ->  | K20: =IF(ISERROR(VLOOKUP(A20,base_sf[],11,0)),I20,VLOOKUP(A20,base_sf[],11,0)) -> 2 | L20: Soldé | M20: =IF(AND($K20=0,$H20<'Menu General'!$A$10),"En retard",IF($I20=$K20,"Soldé",IF(AND($O20<>0,$O20<$I20),"Partiel","En cours"))) -> Soldé | O20: =IF(ISERROR(VLOOKUP(E20,'LX02'!$A$1:$D$150,1,FALSE)),"","X") ->  | Q20: 200987479 | R20: PAN CHENGKAI | S20: 6 | T20: 2 | U20: 6 | V20: R100296380 | W20: 26.82
A21: 4700043452-20 | B21: 4700043452 | C21: 20 | D21: 2 | E21: 4939034209 | F21: ETIQ.ADHES.RECOMMANDEE AR 1=50 | G21: 2016-05-25 | H21: 2016-05-24 | I21: 1 | J21: =IF(ISERROR(VLOOKUP(A21,base_sf[],6,FALSE)),"","X") ->  | K21: =IF(ISERROR(VLOOKUP(A21,base_sf[],11,0)),I21,VLOOKUP(A21,base_sf[],11,0)) -> 1 | L21: Soldé | M21: =IF(AND($K21=0,$H21<'Menu General'!$A$10),"En retard",IF($I21=$K21,"Soldé",IF(AND($O21<>0,$O21<$I21),"Partiel","En cours"))) -> Soldé | O21: =IF(ISERROR(VLOOKUP(E21,'LX02'!$A$1:$D$150,1,FALSE)),"","X") ->  | Q21: 200987405 | R21: MERHRAOUI MOHAMED | S21: 200 | T21: 1 | U21: 200 | V21: R100306449 | W21: 136.22
A22: 4700043452-30 | B22: 4700043452 | C22: 30 | D22: 2 | E22: 4939034208 | F22: ETIQ.ADHES.COURRIER EXPRESS 1=50 | G22: 2016-05-25 | H22: 2016-05-24 | I22: 1 | J22: =IF(ISERROR(VLOOKUP(A22,base_sf[],6,FALSE)),"","X") ->  | K22: =IF(ISERROR(VLOOKUP(A22,base_sf[],11,0)),I22,VLOOKUP(A22,base_sf[],11,0)) -> 1 | L22: Soldé | M22: =IF(AND($K22=0,$H22<'Menu General'!$A$10),"En retard",IF($I22=$K22,"Soldé",IF(AND($O22<>0,$O22<$I22),"Partiel","En cours"))) -> Soldé | O22: =IF(ISERROR(VLOOKUP(E22,'LX02'!$A$1:$D$150,1,FALSE)),"","X") ->  | Q22: 200987420 | R22: BARRE HUGUETTE | S22: 2 | T22: 1 | U22: 3 | V22: R100438330 | W22: 26.13
A23: 4700043463-10 | B23: 4700043463 | C23: 10 | D23: 2 | E23: 4939635036 | F23: FIN B.L.S.LIASSE/LIASSE 1=250 | G23: 2016-05-26 | H23: 2016-05-26 | I23: 1 | J23: =IF(ISERROR(VLOOKUP(A23,base_sf[],6,FALSE)),"","X") ->  | K23: =IF(ISERROR(VLOOKUP(A23,base_sf[],11,0)),I23,VLOOKUP(A23,base_sf[],11,0)) -> 1 | L23: Soldé | M23: =IF(AND($K23=0,$H23<'Menu General'!$A$10),"En retard",IF($I23=$K23,"Soldé",IF(AND($O23<>0,$O23<$I23),"Partiel","En cours"))) -> Soldé | O23: =IF(ISERROR(VLOOKUP(E23,'LX02'!$A$1:$D$150,1,FALSE)),"","X") ->  | Q23: 200987503 | R23: BENCHRIF SOUMAYA | S23: 3 | T23: 1 | U23: 3 | V23: R100438461 | W23: 7.8
A24: 4700043485-10 | B24: 4700043485 | C24: 10 | D24: 2 | E24: 4939031075 | F24: ETIQUETTE COLIS URGENT 1=800 | G24: 2016-05-30 | H24: 2016-05-27 | I24: 60 | J24: =IF(ISERROR(VLOOKUP(A24,base_sf[],6,FALSE)),"","X") ->  | K24: =IF(ISERROR(VLOOKUP(A24,base_sf[],11,0)),I24,VLOOKUP(A24,base_sf[],11,0)) -> 60 | L24: Soldé | M24: =IF(AND($K24=0,$H24<'Menu General'!$A$10),"En retard",IF($I24=$K24,"Soldé",IF(AND($O24<>0,$O24<$I24),"Partiel","En cours"))) -> Soldé | O24: =IF(ISERROR(VLOOKUP(E24,'LX02'!$A$1:$D$150,1,FALSE)),"","X") ->  | Q24: 200987424 | R24: CHARLES PASCALE | S24: 20 | T24: 60 | U24: 20 | V24: R100445556 | W24: 300
A25: 4700043520-10 | B25: 4700043520 | C25: 10 | D25: 2 | E25: X972536518 | F25: ENVELOPPE 415X325 PVC BLANC 1=100 | G25: 2016-06-03 | H25: 2016-06-02 | I25: 1 | J25: =IF(ISERROR(VLOOKUP(A25,base_sf[],6,FALSE)),"","X") ->  | K25: =IF(ISERROR(VLOOKUP(A25,base_sf[],11,0)),I25,VLOOKUP(A25,base_sf[],11,0)) -> 1 | L25: Soldé | M25: =IF(AND($K25=0,$H25<'Menu General'!$A$10),"En retard",IF($I25=$K25,"Soldé",IF(AND($O25<>0,$O25<$I25),"Partiel","En cours"))) -> Soldé | O25: =IF(ISERROR(VLOOKUP(E25,'LX02'!$A$1:$D$150,1,FALSE)),"","X") ->  | Q25: 200987568 | R25: LABORIE GIL | S25: 2 | T25: 1 | U25: 2 | V25: X484024516 | W25: 0.14
A26: 4700043520-20 | B26: 4700043520 | C26: 20 | D26: 2 | E26: 4939031075 | F26: ETIQUETTE COLIS URGENT 1=800 | G26: 2016-06-03 | H26: 2016-06-02 | I26: 1 | J26: =IF(ISERROR(VLOOKUP(A26,base_sf[],6,FALSE)),"","X") ->  | K26: =IF(ISERROR(VLOOKUP(A26,base_sf[],11,0)),I26,VLOOKUP(A26,base_sf[],11,0)) -> 1 | L26: Soldé | M26: =IF(AND($K26=0,$H26<'Menu General'!$A$10),"En retard",IF($I26=$K26,"Soldé",IF(AND($O26<>0,$O26<$I26),"Partiel","En cours"))) -> Soldé | O26: =IF(ISERROR(VLOOKUP(E26,'LX02'!$A$1:$D$150,1,FALSE)),"","X") ->  | Q26: 200987430 | R26: CONDETTE ADELINE | S26: 1 | T26: 1 | U26: 1 | V26: R100503292 | W26: 35.27
A27: 4700043520-30 | B27: 4700043520 | C27: 30 | D27: 2 | E27: 4939121791 | F27: POCHETTE ENVELOPPES INTERSERVICES 1=250 | G27: 2016-06-03 | H27: 2016-06-02 | I27: 1 | J27: =IF(ISERROR(VLOOKUP(A27,base_sf[],6,FALSE)),"","X") ->  | K27: =IF(ISERROR(VLOOKUP(A27,base_sf[],11,0)),I27,VLOOKUP(A27,base_sf[],11,0)) -> 1 | L27: Soldé | M27: =IF(AND($K27=0,$H27<'Menu General'!$A$10),"En retard",IF($I27=$K27,"Soldé",IF(AND($O27<>0,$O27<$I27),"Partiel","En cours"))) -> Soldé | O27: =IF(ISERROR(VLOOKUP(E27,'LX02'!$A$1:$D$150,1,FALSE)),"","X") ->  | Q27: 200987503 | R27: BENCHRIF SOUMAYA | S27: 1 | T27: 1 | U27: 1 | V27: R100503293 | W27: 35.27
A28: 4700043512-30 | B28: 4700043512 | C28: 30 | D28: 2 | E28: 4939034208 | F28: ETIQ.ADHES.COURRIER EXPRESS 1=50 | G28: 2016-06-02 | H28: 2016-06-01 | I28: 5 | J28: =IF(ISERROR(VLOOKUP(A28,base_sf[],6,FALSE)),"","X") ->  | K28: =IF(ISERROR(VLOOKUP(A28,base_sf[],11,0)),I28,VLOOKUP(A28,base_sf[],11,0)) -> 5 | L28: Soldé | M28: =IF(AND($K28=0,$H28<'Menu General'!$A$10),"En retard",IF($I28=$K28,"Soldé",IF(AND($O28<>0,$O28<$I28),"Partiel","En cours"))) -> Soldé | O28: =IF(ISERROR(VLOOKUP(E28,'LX02'!$A$1:$D$150,1,FALSE)),"","X") ->  | Q28: 200987506 | R28: BROCAIL VINCENT ALAIN | S28: 2 | T28: 5 | U28: 2 | V28: T533515452 | W28: 21.98
A29: 4700043512-10 | B29: 4700043512 | C29: 10 | D29: 2 | E29: 4939122056 | F29: POCHETTE RENAULT 330X260 RLT 1=100 | G29: 2016-06-02 | H29: 2016-06-01 | I29: 1 | J29: =IF(ISERROR(VLOOKUP(A29,base_sf[],6,FALSE)),"","X") ->  | K29: =IF(ISERROR(VLOOKUP(A29,base_sf[],11,0)),I29,VLOOKUP(A29,base_sf[],11,0)) -> 1 | L29: Soldé | M29: =IF(AND($K29=0,$H29<'Menu General'!$A$10),"En retard",IF($I29=$K29,"Soldé",IF(AND($O29<>0,$O29<$I29),"Partiel","En cours"))) -> Soldé | O29: =IF(ISERROR(VLOOKUP(E29,'LX02'!$A$1:$D$150,1,FALSE)),"","X") ->  | Q29: 200987424 | R29: CHARLES PASCALE | S29: 5 | T29: 1 | U29: 5 | V29: X771101523 | W29: 4
A30: 4700043512-20 | B30: 4700043512 | C30: 20 | D30: 2 | E30: 4939122056 | F30: POCHETTE RENAULT 330X260 RLT 1=100 | G30: 2016-06-02 | H30: 2016-06-01 | I30: 5 | J30: =IF(ISERROR(VLOOKUP(A30,base_sf[],6,FALSE)),"","X") ->  | K30: =IF(ISERROR(VLOOKUP(A30,base_sf[],11,0)),I30,VLOOKUP(A30,base_sf[],11,0)) -> 5 | L30: Soldé | M30: =IF(AND($K30=0,$H30<'Menu General'!$A$10),"En retard",IF($I30=$K30,"Soldé",IF(AND($O30<>0,$O30<$I30),"Partiel","En cours"))) -> Soldé | O30: =IF(ISERROR(VLOOKUP(E30,'LX02'!$A$1:$D$150,1,FALSE)),"","X") ->  | Q30: 200987381 | R30: BERNARD DE JANDIN BENOIT | S30: 10 | T30: 5 | U30: 200 | V30: P935852471 | W30: 138
A31: 4700043493-10 | B31: 4700043493 | C31: 10 | D31: 2 | E31: 4939635036 | F31: FIN B.L.S.LIASSE/LIASSE 1=250 | G31: 2016-05-31 | H31: 2016-05-30 | I31: 1 | J31: =IF(ISERROR(VLOOKUP(A31,base_sf[],6,FALSE)),"","X") ->  | K31: =IF(ISERROR(VLOOKUP(A31,base_sf[],11,0)),I31,VLOOKUP(A31,base_sf[],11,0)) -> 1 | L31: Soldé | M31: =IF(AND($K31=0,$H31<'Menu General'!$A$10),"En retard",IF($I31=$K31,"Soldé",IF(AND($O31<>0,$O31<$I31),"Partiel","En cours"))) -> Soldé | O31: =IF(ISERROR(VLOOKUP(E31,'LX02'!$A$1:$D$150,1,FALSE)),"","X") ->  | Q31: 200987440 | R31: VIGEANT JEAN-LUC | S31: 2 | T31: 1 | U31: 1 | V31: R100438372 | W31: 9.02
A32: 4700043503-10 | B32: 4700043503 | C32: 10 | D32: 2 | E32: R100204813 | F32: ROULEAU ETIQUETTE BLANCHE 90X80 1=1 | G32: 2016-06-01 | H32: 2016-05-31 | I32: 250 | J32: =IF(ISERROR(VLOOKUP(A32,base_sf[],6,FALSE)),"","X") ->  | K32: =IF(ISERROR(VLOOKUP(A32,base_sf[],11,0)),I32,VLOOKUP(A32,base_sf[],11,0)) -> 250 | L32: Soldé | M32: =IF(AND($K32=0,$H32<'Menu General'!$A$10),"En retard",IF($I32=$K32,"Soldé",IF(AND($O32<>0,$O32<$I32),"Partiel","En cours"))) -> Soldé | O32: =IF(ISERROR(VLOOKUP(E32,'LX02'!$A$1:$D$150,1,FALSE)),"","X") ->  | Q32: 200987397 | R32: MOUSSET CELINE | S32: 20 | T32: 250 | U32: 10 | V32: R100132502 | W32: 5.3
A33: 4700043503-20 | B33: 4700043503 | C33: 20 | D33: 2 | E33: X972536518 | F33: ENVELOPPE 415X325 PVC BLANC 1=100 | G33: 2016-06-01 | H33: 2016-05-31 | I33: 1 | J33: =IF(ISERROR(VLOOKUP(A33,base_sf[],6,FALSE)),"","X") ->  | K33: =IF(ISERROR(VLOOKUP(A33,base_sf[],11,0)),I33,VLOOKUP(A33,base_sf[],11,0)) -> 1 | L33: Soldé | M33: =IF(AND($K33=0,$H33<'Menu General'!$A$10),"En retard",IF($I33=$K33,"Soldé",IF(AND($O33<>0,$O33<$I33),"Partiel","En cours"))) -> Soldé | O33: =IF(ISERROR(VLOOKUP(E33,'LX02'!$A$1:$D$150,1,FALSE)),"","X") ->  | Q33: 200987340 | R33: ZELLER THIERRY | S33: 3 | T33: 1 | U33: 6 | V33: R100438329 | W33: 52.26
A34: 4700043503-30 | B34: 4700043503 | C34: 30 | D34: 2 | E34: 4939126160 | F34: ENVELOPPE VELIN BLANC 114X229 1=100 | G34: 2016-06-01 | H34: 2016-05-31 | I34: 5 | J34: =IF(ISERROR(VLOOKUP(A34,base_sf[],6,FALSE)),"","X") ->  | K34: =IF(ISERROR(VLOOKUP(A34,base_sf[],11,0)),I34,VLOOKUP(A34,base_sf[],11,0)) -> 5 | L34: Soldé | M34: =IF(AND($K34=0,$H34<'Menu General'!$A$10),"En retard",IF($I34=$K34,"Soldé",IF(AND($O34<>0,$O34<$I34),"Partiel","En cours"))) -> Soldé | O34: =IF(ISERROR(VLOOKUP(E34,'LX02'!$A$1:$D$150,1,FALSE)),"","X") ->  | Q34: 200987440 | R34: VIGEANT JEAN-LUC | S34: 2 | T34: 5 | U34: 1 | V34: R100438372 | W34: 9.02
A35: 4700043503-40 | B35: 4700043503 | C35: 40 | D35: 2 | E35: X972536518 | F35: ENVELOPPE 415X325 PVC BLANC 1=100 | G35: 2016-06-01 | H35: 2016-06-01 | I35: 2 | J35: =IF(ISERROR(VLOOKUP(A35,base_sf[],6,FALSE)),"","X") ->  | K35: =IF(ISERROR(VLOOKUP(A35,base_sf[],11,0)),I35,VLOOKUP(A35,base_sf[],11,0)) -> 2 | L35: Soldé | M35: =IF(AND($K35=0,$H35<'Menu General'!$A$10),"En retard",IF($I35=$K35,"Soldé",IF(AND($O35<>0,$O35<$I35),"Partiel","En cours"))) -> Soldé | O35: =IF(ISERROR(VLOOKUP(E35,'LX02'!$A$1:$D$150,1,FALSE)),"","X") ->  | Q35: 200987476 | R35: FILLIARD GUILLAUME | S35: 3 | T35: 2 | U35: 4 | V35: R100491109 | W35: 29
A36: 4700043520-40 | B36: 4700043520 | C36: 40 | D36: 2 | E36: 4939034208 | F36: ETIQ.ADHES.COURRIER EXPRESS 1=50 | G36: 2016-06-03 | H36: 2016-06-03 | I36: 1 | J36: =IF(ISERROR(VLOOKUP(A36,base_sf[],6,FALSE)),"","X") ->  | K36: =IF(ISERROR(VLOOKUP(A36,base_sf[],11,0)),I36,VLOOKUP(A36,base_sf[],11,0)) -> 1 | L36: Soldé | M36: =IF(AND($K36=0,$H36<'Menu General'!$A$10),"En retard",IF($I36=$K36,"Soldé",IF(AND($O36<>0,$O36<$I36),"Partiel","En cours"))) -> Soldé | O36: =IF(ISERROR(VLOOKUP(E36,'LX02'!$A$1:$D$150,1,FALSE)),"","X") ->  | Q36: 200987420 | R36: BARRE HUGUETTE | S36: 1 | T36: 1 | U36: 1 | V36: R100518619 | W36: 31.83
A37: 4700043520-50 | B37: 4700043520 | C37: 50 | D37: 2 | E37: 4939034209 | F37: ETIQ.ADHES.RECOMMANDEE AR 1=50 | G37: 2016-06-03 | H37: 2016-06-03 | I37: 1 | J37: =IF(ISERROR(VLOOKUP(A37,base_sf[],6,FALSE)),"","X") ->  | K37: =IF(ISERROR(VLOOKUP(A37,base_sf[],11,0)),I37,VLOOKUP(A37,base_sf[],11,0)) -> 1 | L37: Soldé | M37: =IF(AND($K37=0,$H37<'Menu General'!$A$10),"En retard",IF($I37=$K37,"Soldé",IF(AND($O37<>0,$O37<$I37),"Partiel","En cours"))) -> Soldé | O37: =IF(ISERROR(VLOOKUP(E37,'LX02'!$A$1:$D$150,1,FALSE)),"","X") ->  | Q37: 200987548 | R37: COMMUNIER THIERRY | S37: 5 | T37: 1 | U37: 5 | V37: P643314753 | W37: 14.2
A38: 4700043520-60 | B38: 4700043520 | C38: 60 | D38: 2 | E38: 4939126180 | F38: ENVELOPPE RENAULT 110X220 FENETRE 1=100 | G38: 2016-06-03 | H38: 2016-06-03 | I38: 5 | J38: =IF(ISERROR(VLOOKUP(A38,base_sf[],6,FALSE)),"","X") ->  | K38: =IF(ISERROR(VLOOKUP(A38,base_sf[],11,0)),I38,VLOOKUP(A38,base_sf[],11,0)) -> 5 | L38: Soldé | M38: =IF(AND($K38=0,$H38<'Menu General'!$A$10),"En retard",IF($I38=$K38,"Soldé",IF(AND($O38<>0,$O38<$I38),"Partiel","En cours"))) -> Soldé | O38: =IF(ISERROR(VLOOKUP(E38,'LX02'!$A$1:$D$150,1,FALSE)),"","X") ->  | Q38: 200987420 | R38: BARRE HUGUETTE | S38: 1 | T38: 5 | U38: 1 | V38: R100518620 | W38: 31.83
A39: 4700043539-10 | B39: 4700043539 | C39: 10 | D39: 2 | E39: 4939121791 | F39: POCHETTE ENVELOPPES INTERSERVICES 1=250 | G39: 2016-06-07 | H39: 2016-06-07 | I39: 1 | J39: =IF(ISERROR(VLOOKUP(A39,base_sf[],6,FALSE)),"","X") ->  | K39: =IF(ISERROR(VLOOKUP(A39,base_sf[],11,0)),I39,VLOOKUP(A39,base_sf[],11,0)) -> 1 | L39: Soldé | M39: =IF(AND($K39=0,$H39<'Menu General'!$A$10),"En retard",IF($I39=$K39,"Soldé",IF(AND($O39<>0,$O39<$I39),"Partiel","En cours"))) -> Soldé | O39: =IF(ISERROR(VLOOKUP(E39,'LX02'!$A$1:$D$150,1,FALSE)),"","X") ->  | T39: 1 | U39: 5 | V39: P586444074 | W39: 2.68
A40: 4700043539-20 | B40: 4700043539 | C40: 20 | D40: 2 | E40: 4939121791 | F40: POCHETTE ENVELOPPES INTERSERVICES 1=250 | G40: 2016-06-07 | H40: 2016-06-07 | I40: 1 | J40: =IF(ISERROR(VLOOKUP(A40,base_sf[],6,FALSE)),"","X") ->  | K40: =IF(ISERROR(VLOOKUP(A40,base_sf[],11,0)),I40,VLOOKUP(A40,base_sf[],11,0)) -> 1 | L40: Soldé | M40: =IF(AND($K40=0,$H40<'Menu General'!$A$10),"En retard",IF($I40=$K40,"Soldé",IF(AND($O40<>0,$O40<$I40),"Partiel","En cours"))) -> Soldé | O40: =IF(ISERROR(VLOOKUP(E40,'LX02'!$A$1:$D$150,1,FALSE)),"","X") ->  | Q40: 200987548 | R40: COMMUNIER THIERRY | S40: 3 | T40: 1 | U40: 3 | V40: P643314738 | W40: 4.29
A41: 4700043538-110 | B41: 4700043538 | C41: 110 | E41: R100438457 | F41: POLO MANCHES COURTES MAILLE PIQUEE GRIS | G41: 2016-06-07 | H41: 2016-06-15 | I41: 500 | J41: =IF(ISERROR(VLOOKUP(A41,base_sf[],6,FALSE)),"","X") -> X | K41: =IF(ISERROR(VLOOKUP(A41,base_sf[],11,0)),I41,VLOOKUP(A41,base_sf[],11,0)) -> 100 | L41: Litige ou 351 | M41: =IF(AND($K41=0,$H41<'Menu General'!$A$10),"En retard",IF($I41=$K41,"Soldé",IF(AND($O41<>0,$O41<$I41),"Partiel","En cours"))) -> En cours | O41: =IF(ISERROR(VLOOKUP(E41,'LX02'!$A$1:$D$150,1,FALSE)),"","X") ->  | Q41: 200987552 | R41: LANIER PHILIPPE | S41: 200 | T41: 500 | U41: 500 | V41: P911311186 | W41: 210
A42: 4700043529-10 | B42: 4700043529 | C42: 10 | D42: 2 | E42: 4939126240 | F42: ENVELOPPE BLANCHE 162X229 FENETRE 1=500 | G42: 2016-06-06 | H42: 2016-06-06 | I42: 2 | J42: =IF(ISERROR(VLOOKUP(A42,base_sf[],6,FALSE)),"","X") ->  | K42: =IF(ISERROR(VLOOKUP(A42,base_sf[],11,0)),I42,VLOOKUP(A42,base_sf[],11,0)) -> 2 | L42: Soldé | M42: =IF(AND($K42=0,$H42<'Menu General'!$A$10),"En retard",IF($I42=$K42,"Soldé",IF(AND($O42<>0,$O42<$I42),"Partiel","En cours"))) -> Soldé | O42: =IF(ISERROR(VLOOKUP(E42,'LX02'!$A$1:$D$150,1,FALSE)),"","X") ->  | Q42: 200987502 | R42: JOY MICKAEL FREDERIC | S42: 8 | T42: 2 | U42: 8 | V42: P931551714 | W42: 1.182,40
A43: 4700043529-20 | B43: 4700043529 | C43: 20 | D43: 2 | E43: 4939122056 | F43: POCHETTE RENAULT 330X260 RLT 1=100 | G43: 2016-06-06 | H43: 2016-06-06 | I43: 2 | J43: =IF(ISERROR(VLOOKUP(A43,base_sf[],6,FALSE)),"","X") ->  | K43: =IF(ISERROR(VLOOKUP(A43,base_sf[],11,0)),I43,VLOOKUP(A43,base_sf[],11,0)) -> 2 | L43: Soldé | M43: =IF(AND($K43=0,$H43<'Menu General'!$A$10),"En retard",IF($I43=$K43,"Soldé",IF(AND($O43<>0,$O43<$I43),"Partiel","En cours"))) -> Soldé | O43: =IF(ISERROR(VLOOKUP(E43,'LX02'!$A$1:$D$150,1,FALSE)),"","X") ->  | Q43: 200987551 | R43: GILLES MARC | S43: 3 | T43: 2 | U43: 3 | V43: P935585370 | W43: 33.06
A44: 4700043538-200 | B44: 4700043538 | C44: 200 | E44: R100438456 | F44: POLO MANCHES COURTES MAILLE PIQUEE GRIS | G44: 2016-06-07 | H44: 2016-06-15 | I44: 600 | J44: =IF(ISERROR(VLOOKUP(A44,base_sf[],6,FALSE)),"","X") -> X | K44: =IF(ISERROR(VLOOKUP(A44,base_sf[],11,0)),I44,VLOOKUP(A44,base_sf[],11,0)) -> 100 | L44: Litige ou 351 | M44: =IF(AND($K44=0,$H44<'Menu General'!$A$10),"En retard",IF($I44=$K44,"Soldé",IF(AND($O44<>0,$O44<$I44),"Partiel","En cours"))) -> En cours | O44: =IF(ISERROR(VLOOKUP(E44,'LX02'!$A$1:$D$150,1,FALSE)),"","X") ->  | Q44: 200987326 | R44: ENCHE JOEL | S44: 2000 | T44: 600 | U44: 100 | V44: P958139981 | W44: 21.57
A45: 4700043567-70 | B45: 4700043567 | C45: 70 | D45: 2 | E45: 4939034209 | F45: ETIQ.ADHES.RECOMMANDEE AR 1=50 | G45: 2016-06-10 | H45: 2016-06-09 | I45: 2 | J45: =IF(ISERROR(VLOOKUP(A45,base_sf[],6,FALSE)),"","X") ->  | K45: =IF(ISERROR(VLOOKUP(A45,base_sf[],11,0)),I45,VLOOKUP(A45,base_sf[],11,0)) -> 2 | L45: Soldé | M45: =IF(AND($K45=0,$H45<'Menu General'!$A$10),"En retard",IF($I45=$K45,"Soldé",IF(AND($O45<>0,$O45<$I45),"Partiel","En cours"))) -> Soldé | O45: =IF(ISERROR(VLOOKUP(E45,'LX02'!$A$1:$D$150,1,FALSE)),"","X") ->  | Q45: 200987566 | R45: PECQUEUR PASCAL | S45: 2 | T45: 2 | U45: 2 | V45: R100014279 | W45: 26.46
A46: 4700043567-30 | B46: 4700043567 | C46: 30 | D46: 2 | E46: 4939126180 | F46: ENVELOPPE RENAULT 110X220 FENETRE 1=100 | G46: 2016-06-10 | H46: 2016-06-09 | I46: 20 | J46: =IF(ISERROR(VLOOKUP(A46,base_sf[],6,FALSE)),"","X") ->  | K46: =IF(ISERROR(VLOOKUP(A46,base_sf[],11,0)),I46,VLOOKUP(A46,base_sf[],11,0)) -> 20 | L46: Soldé | M46: =IF(AND($K46=0,$H46<'Menu General'!$A$10),"En retard",IF($I46=$K46,"Soldé",IF(AND($O46<>0,$O46<$I46),"Partiel","En cours"))) -> Soldé | O46: =IF(ISERROR(VLOOKUP(E46,'LX02'!$A$1:$D$150,1,FALSE)),"","X") ->  | Q46: 200987559 | R46: COMMUNIER THIERRY | S46: 2 | T46: 20 | U46: 2 | V46: R100023101 | W46: 380
A47: 4700043567-10 | B47: 4700043567 | C47: 10 | D47: 2 | E47: 4939000500 | F47: BONS DE SERVICE DPR A4 IMPR. 1=2500 | G47: 2016-06-10 | H47: 2016-06-09 | I47: 80 | J47: =IF(ISERROR(VLOOKUP(A47,base_sf[],6,FALSE)),"","X") ->  | K47: =IF(ISERROR(VLOOKUP(A47,base_sf[],11,0)),I47,VLOOKUP(A47,base_sf[],11,0)) -> 80 | L47: Soldé | M47: =IF(AND($K47=0,$H47<'Menu General'!$A$10),"En retard",IF($I47=$K47,"Soldé",IF(AND($O47<>0,$O47<$I47),"Partiel","En cours"))) -> Soldé | O47: =IF(ISERROR(VLOOKUP(E47,'LX02'!$A$1:$D$150,1,FALSE)),"","X") ->  | Q47: 200987562 | R47: JULIEN WILLI | S47: 1 | T47: 80 | U47: 1 | V47: R100295824 | W47: 370.5
A48: 4700043567-20 | B48: 4700043567 | C48: 20 | D48: 2 | E48: 4939126091 | F48: ENVELOPPE BUL. 110X220 INTERNE/API 1=100 | G48: 2016-06-10 | H48: 2016-06-09 | I48: 200 | J48: =IF(ISERROR(VLOOKUP(A48,base_sf[],6,FALSE)),"","X") ->  | K48: =IF(ISERROR(VLOOKUP(A48,base_sf[],11,0)),I48,VLOOKUP(A48,base_sf[],11,0)) -> 200 | L48: Soldé | M48: =IF(AND($K48=0,$H48<'Menu General'!$A$10),"En retard",IF($I48=$K48,"Soldé",IF(AND($O48<>0,$O48<$I48),"Partiel","En cours"))) -> Soldé | O48: =IF(ISERROR(VLOOKUP(E48,'LX02'!$A$1:$D$150,1,FALSE)),"","X") ->  | Q48: 200987409 | R48: MERHRAOUI MOHAMED | S48: 25 | T48: 200 | U48: 25 | V48: R100031744 | W48: 24.5
A49: 4700043547-340 | B49: 4700043547 | C49: 340 | E49: R100030497 | F49: CARTE ETHERNET ETHERLINK III 3C589TP PC | G49: 2016-06-08 | H49: 2016-06-13 | I49: 1 | J49: =IF(ISERROR(VLOOKUP(A49,base_sf[],6,FALSE)),"","X") ->  | K49: =IF(ISERROR(VLOOKUP(A49,base_sf[],11,0)),I49,VLOOKUP(A49,base_sf[],11,0)) -> 1 | L49: Soldé | M49: =IF(AND($K49=0,$H49<'Menu General'!$A$10),"En retard",IF($I49=$K49,"Soldé",IF(AND($O49<>0,$O49<$I49),"Partiel","En cours"))) -> Soldé | O49: =IF(ISERROR(VLOOKUP(E49,'LX02'!$A$1:$D$150,1,FALSE)),"","X") ->  | Q49: 200987409 | R49: MERHRAOUI MOHAMED | S49: 25 | T49: 1 | U49: 25 | V49: R100031746 | W49: 24.5
A50: 4700043548-10 | B50: 4700043548 | C50: 10 | D50: 2 | E50: 4939121791 | F50: POCHETTE ENVELOPPES INTERSERVICES 1=250 | G50: 2016-06-08 | H50: 2016-06-08 | I50: 1 | J50: =IF(ISERROR(VLOOKUP(A50,base_sf[],6,FALSE)),"","X") ->  | K50: =IF(ISERROR(VLOOKUP(A50,base_sf[],11,0)),I50,VLOOKUP(A50,base_sf[],11,0)) -> 1 | L50: Soldé | M50: =IF(AND($K50=0,$H50<'Menu General'!$A$10),"En retard",IF($I50=$K50,"Soldé",IF(AND($O50<>0,$O50<$I50),"Partiel","En cours"))) -> Soldé | O50: =IF(ISERROR(VLOOKUP(E50,'LX02'!$A$1:$D$150,1,FALSE)),"","X") ->  | Q50: 200987502 | R50: JOY MICKAEL FREDERIC | S50: 10 | T50: 1 | U50: 10 | V50: R100130211 | W50: 21
A51: 4700043548-20 | B51: 4700043548 | C51: 20 | D51: 2 | E51: 4939122060 | F51: POCHETTE SOUFFLET 330X290 RENAULT 1=200 | G51: 2016-06-08 | H51: 2016-06-08 | I51: 1 | J51: =IF(ISERROR(VLOOKUP(A51,base_sf[],6,FALSE)),"","X") ->  | K51: =IF(ISERROR(VLOOKUP(A51,base_sf[],11,0)),I51,VLOOKUP(A51,base_sf[],11,0)) -> 1 | L51: Soldé | M51: =IF(AND($K51=0,$H51<'Menu General'!$A$10),"En retard",IF($I51=$K51,"Soldé",IF(AND($O51<>0,$O51<$I51),"Partiel","En cours"))) -> Soldé | O51: =IF(ISERROR(VLOOKUP(E51,'LX02'!$A$1:$D$150,1,FALSE)),"","X") ->  | Q51: 200987340 | R51: ZELLER THIERRY | S51: 3 | T51: 1 | U51: 1 | V51: R100438328 | W51: 8.71
A52: 4700043548-30 | B52: 4700043548 | C52: 30 | D52: 2 | E52: 4939122056 | F52: POCHETTE RENAULT 330X260 RLT 1=100 | G52: 2016-06-08 | H52: 2016-06-08 | I52: 1 | J52: =IF(ISERROR(VLOOKUP(A52,base_sf[],6,FALSE)),"","X") ->  | K52: =IF(ISERROR(VLOOKUP(A52,base_sf[],11,0)),I52,VLOOKUP(A52,base_sf[],11,0)) -> 1 | L52: Soldé | M52: =IF(AND($K52=0,$H52<'Menu General'!$A$10),"En retard",IF($I52=$K52,"Soldé",IF(AND($O52<>0,$O52<$I52),"Partiel","En cours"))) -> Soldé | O52: =IF(ISERROR(VLOOKUP(E52,'LX02'!$A$1:$D$150,1,FALSE)),"","X") ->  | Q52: 200987438 | R52: TELLIEZ VALERIE SUZANNE | S52: 1 | T52: 1 | U52: 1 | V52: R100518654 | W52: 29.94
A53: 4700043557-230 | B53: 4700043557 | C53: 230 | E53: R100030497 | F53: CARTE ETHERNET ETHERLINK III 3C589TP PC | G53: 2016-06-09 | H53: 2016-06-13 | I53: 1 | J53: =IF(ISERROR(VLOOKUP(A53,base_sf[],6,FALSE)),"","X") ->  | K53: =IF(ISERROR(VLOOKUP(A53,base_sf[],11,0)),I53,VLOOKUP(A53,base_sf[],11,0)) -> 1 | L53: Soldé | M53: =IF(AND($K53=0,$H53<'Menu General'!$A$10),"En retard",IF($I53=$K53,"Soldé",IF(AND($O53<>0,$O53<$I53),"Partiel","En cours"))) -> Soldé | O53: =IF(ISERROR(VLOOKUP(E53,'LX02'!$A$1:$D$150,1,FALSE)),"","X") ->  | Q53: 200987505 | R53: BROCAIL VINCENT ALAIN | S53: 20 | T53: 1 | U53: 20 | V53: R100525243 | W53: 41
A54: 4700043558-10 | B54: 4700043558 | C54: 10 | D54: 2 | E54: X972536518 | F54: ENVELOPPE 415X325 PVC BLANC 1=100 | G54: 2016-06-09 | H54: 2016-06-09 | I54: 2 | J54: =IF(ISERROR(VLOOKUP(A54,base_sf[],6,FALSE)),"","X") ->  | K54: =IF(ISERROR(VLOOKUP(A54,base_sf[],11,0)),I54,VLOOKUP(A54,base_sf[],11,0)) -> 2 | L54: Soldé | M54: =IF(AND($K54=0,$H54<'Menu General'!$A$10),"En retard",IF($I54=$K54,"Soldé",IF(AND($O54<>0,$O54<$I54),"Partiel","En cours"))) -> Soldé | O54: =IF(ISERROR(VLOOKUP(E54,'LX02'!$A$1:$D$150,1,FALSE)),"","X") ->  | Q54: 200987576 | R54: DUPAYS MARECHAL EVA | S54: 1 | T54: 2 | U54: 1 | V54: R100518655 | W54: 29.94
A55: 4700043558-20 | B55: 4700043558 | C55: 20 | D55: 2 | E55: 4939126091 | F55: ENVELOPPE BUL. 110X220 INTERNE/API 1=100 | G55: 2016-06-09 | H55: 2016-06-09 | I55: 2 | J55: =IF(ISERROR(VLOOKUP(A55,base_sf[],6,FALSE)),"","X") ->  | K55: =IF(ISERROR(VLOOKUP(A55,base_sf[],11,0)),I55,VLOOKUP(A55,base_sf[],11,0)) -> 2 | L55: Soldé | M55: =IF(AND($K55=0,$H55<'Menu General'!$A$10),"En retard",IF($I55=$K55,"Soldé",IF(AND($O55<>0,$O55<$I55),"Partiel","En cours"))) -> Soldé | O55: =IF(ISERROR(VLOOKUP(E55,'LX02'!$A$1:$D$150,1,FALSE)),"","X") ->  | Q55: 200987576 | R55: DUPAYS MARECHAL EVA | S55: 1 | T55: 2 | U55: 1 | V55: R100518656 | W55: 29.94
A56: 4700043567-40 | B56: 4700043567 | C56: 40 | D56: 2 | E56: 4939031085 | F56: FEUILLES BONS COMPLETS CDPR BLANCS 1=500 | G56: 2016-06-10 | H56: 2016-06-09 | I56: 50 | J56: =IF(ISERROR(VLOOKUP(A56,base_sf[],6,FALSE)),"","X") ->  | K56: =IF(ISERROR(VLOOKUP(A56,base_sf[],11,0)),I56,VLOOKUP(A56,base_sf[],11,0)) -> 50 | L56: Soldé | M56: =IF(AND($K56=0,$H56<'Menu General'!$A$10),"En retard",IF($I56=$K56,"Soldé",IF(AND($O56<>0,$O56<$I56),"Partiel","En cours"))) -> Soldé | O56: =IF(ISERROR(VLOOKUP(E56,'LX02'!$A$1:$D$150,1,FALSE)),"","X") ->  | Q56: 200987576 | R56: DUPAYS MARECHAL EVA | S56: 1 | T56: 50 | U56: 1 | V56: R100518659 | W56: 29.94
A57: 4700043567-50 | B57: 4700043567 | C57: 50 | D57: 2 | E57: 4939031086 | F57: FEUILLE BON COMPLET CDPR 1=500 | G57: 2016-06-10 | H57: 2016-06-09 | I57: 50 | J57: =IF(ISERROR(VLOOKUP(A57,base_sf[],6,FALSE)),"","X") ->  | K57: =IF(ISERROR(VLOOKUP(A57,base_sf[],11,0)),I57,VLOOKUP(A57,base_sf[],11,0)) -> 50 | L57: Soldé | M57: =IF(AND($K57=0,$H57<'Menu General'!$A$10),"En retard",IF($I57=$K57,"Soldé",IF(AND($O57<>0,$O57<$I57),"Partiel","En cours"))) -> Soldé | O57: =IF(ISERROR(VLOOKUP(E57,'LX02'!$A$1:$D$150,1,FALSE)),"","X") ->  | Q57: 200987538 | R57: VERRECCHIA BERNARD NICOLAS | S57: 1 | T57: 50 | U57: 1 | V57: R100557486 | W57: 59.9
A58: 4700043567-60 | B58: 4700043567 | C58: 60 | D58: 2 | E58: 4939034209 | F58: ETIQ.ADHES.RECOMMANDEE AR 1=50 | G58: 2016-06-10 | H58: 2016-06-09 | I58: 2 | J58: =IF(ISERROR(VLOOKUP(A58,base_sf[],6,FALSE)),"","X") ->  | K58: =IF(ISERROR(VLOOKUP(A58,base_sf[],11,0)),I58,VLOOKUP(A58,base_sf[],11,0)) -> 2 | L58: Soldé | M58: =IF(AND($K58=0,$H58<'Menu General'!$A$10),"En retard",IF($I58=$K58,"Soldé",IF(AND($O58<>0,$O58<$I58),"Partiel","En cours"))) -> Soldé | O58: =IF(ISERROR(VLOOKUP(E58,'LX02'!$A$1:$D$150,1,FALSE)),"","X") ->  | Q58: 200987497 | R58: BAFFEREAU BRUNO | S58: 10 | T58: 2 | U58: 10 | V58: R100578934 | W58: 53
A59: 4700043567-110 | B59: 4700043567 | C59: 110 | D59: 2 | E59: 4939122056 | F59: POCHETTE RENAULT 330X260 RLT 1=100 | G59: 2016-06-10 | H59: 2016-06-09 | I59: 1 | J59: =IF(ISERROR(VLOOKUP(A59,base_sf[],6,FALSE)),"","X") ->  | K59: =IF(ISERROR(VLOOKUP(A59,base_sf[],11,0)),I59,VLOOKUP(A59,base_sf[],11,0)) -> 1 | L59: Soldé | M59: =IF(AND($K59=0,$H59<'Menu General'!$A$10),"En retard",IF($I59=$K59,"Soldé",IF(AND($O59<>0,$O59<$I59),"Partiel","En cours"))) -> Soldé | O59: =IF(ISERROR(VLOOKUP(E59,'LX02'!$A$1:$D$150,1,FALSE)),"","X") ->  | Q59: 200987497 | R59: BAFFEREAU BRUNO | S59: 4 | T59: 1 | U59: 4 | V59: R100591006 | W59: 14.8
A60: 4700043567-80 | B60: 4700043567 | C60: 80 | D60: 2 | E60: R100138319 | F60: ENV BLANC 225X350 F/LOG RLT 1=250 | G60: 2016-06-10 | H60: 2016-06-09 | I60: 1 | J60: =IF(ISERROR(VLOOKUP(A60,base_sf[],6,FALSE)),"","X") ->  | K60: =IF(ISERROR(VLOOKUP(A60,base_sf[],11,0)),I60,VLOOKUP(A60,base_sf[],11,0)) -> 1 | L60: Soldé | M60: =IF(AND($K60=0,$H60<'Menu General'!$A$10),"En retard",IF($I60=$K60,"Soldé",IF(AND($O60<>0,$O60<$I60),"Partiel","En cours"))) -> Soldé | O60: =IF(ISERROR(VLOOKUP(E60,'LX02'!$A$1:$D$150,1,FALSE)),"","X") ->  | Q60: 200987474 | R60: FILLIARD GUILLAUME | S60: 3 | T60: 1 | U60: 3 | V60: R100591079 | W60: 341.43
A61: 4700043567-90 | B61: 4700043567 | C61: 90 | D61: 2 | E61: 4939122170 | F61: ENVELOPPE RENAULT 110X220 SF 1=100 | G61: 2016-06-10 | H61: 2016-06-09 | I61: 1 | J61: =IF(ISERROR(VLOOKUP(A61,base_sf[],6,FALSE)),"","X") ->  | K61: =IF(ISERROR(VLOOKUP(A61,base_sf[],11,0)),I61,VLOOKUP(A61,base_sf[],11,0)) -> 1 | L61: Soldé | M61: =IF(AND($K61=0,$H61<'Menu General'!$A$10),"En retard",IF($I61=$K61,"Soldé",IF(AND($O61<>0,$O61<$I61),"Partiel","En cours"))) -> Soldé | O61: =IF(ISERROR(VLOOKUP(E61,'LX02'!$A$1:$D$150,1,FALSE)),"","X") ->  | Q61: 200987411 | R61: MERHRAOUI MOHAMED | S61: 36 | T61: 1 | U61: 36 | V61: T533013351 | W61: 46.44
A62: 4700043567-100 | B62: 4700043567 | C62: 100 | D62: 2 | E62: 4939126091 | F62: ENVELOPPE BUL. 110X220 INTERNE/API 1=100 | G62: 2016-06-10 | H62: 2016-06-09 | I62: 1 | J62: =IF(ISERROR(VLOOKUP(A62,base_sf[],6,FALSE)),"","X") ->  | K62: =IF(ISERROR(VLOOKUP(A62,base_sf[],11,0)),I62,VLOOKUP(A62,base_sf[],11,0)) -> 1 | L62: Soldé | M62: =IF(AND($K62=0,$H62<'Menu General'!$A$10),"En retard",IF($I62=$K62,"Soldé",IF(AND($O62<>0,$O62<$I62),"Partiel","En cours"))) -> Soldé | O62: =IF(ISERROR(VLOOKUP(E62,'LX02'!$A$1:$D$150,1,FALSE)),"","X") ->  | Q62: 200987505 | R62: BROCAIL VINCENT ALAIN | S62: 10 | T62: 1 | U62: 10 | V62: T533205352 | W62: 9.7
A63: 4700043567-120 | B63: 4700043567 | C63: 120 | D63: 2 | E63: 4939126240 | F63: ENVELOPPE BLANCHE 162X229 FENETRE 1=500 | G63: 2016-06-10 | H63: 2016-06-09 | I63: 1 | J63: =IF(ISERROR(VLOOKUP(A63,base_sf[],6,FALSE)),"","X") ->  | K63: =IF(ISERROR(VLOOKUP(A63,base_sf[],11,0)),I63,VLOOKUP(A63,base_sf[],11,0)) -> 1 | L63: Soldé | M63: =IF(AND($K63=0,$H63<'Menu General'!$A$10),"En retard",IF($I63=$K63,"Soldé",IF(AND($O63<>0,$O63<$I63),"Partiel","En cours"))) -> Soldé | O63: =IF(ISERROR(VLOOKUP(E63,'LX02'!$A$1:$D$150,1,FALSE)),"","X") ->  | Q63: 200987502 | R63: JOY MICKAEL FREDERIC | S63: 15 | T63: 1 | U63: 15 | V63: T533502452 | W63: 84.3
A64: 4700043567-130 | B64: 4700043567 | C64: 130 | D64: 2 | E64: 4939121791 | F64: POCHETTE ENVELOPPES INTERSERVICES 1=250 | G64: 2016-06-10 | H64: 2016-06-09 | I64: 1 | J64: =IF(ISERROR(VLOOKUP(A64,base_sf[],6,FALSE)),"","X") ->  | K64: =IF(ISERROR(VLOOKUP(A64,base_sf[],11,0)),I64,VLOOKUP(A64,base_sf[],11,0)) -> 1 | L64: Soldé | M64: =IF(AND($K64=0,$H64<'Menu General'!$A$10),"En retard",IF($I64=$K64,"Soldé",IF(AND($O64<>0,$O64<$I64),"Partiel","En cours"))) -> Soldé | O64: =IF(ISERROR(VLOOKUP(E64,'LX02'!$A$1:$D$150,1,FALSE)),"","X") ->  | Q64: 200987415 | R64: MERHRAOUI MOHAMED | S64: 2 | T64: 1 | U64: 2 | V64: T533610351 | W64: 34.06
A65: 4700043567-140 | B65: 4700043567 | C65: 140 | D65: 2 | E65: R100138319 | F65: ENV BLANC 225X350 F/LOG RLT 1=250 | G65: 2016-06-10 | H65: 2016-06-09 | I65: 2 | J65: =IF(ISERROR(VLOOKUP(A65,base_sf[],6,FALSE)),"","X") ->  | K65: =IF(ISERROR(VLOOKUP(A65,base_sf[],11,0)),I65,VLOOKUP(A65,base_sf[],11,0)) -> 2 | L65: Soldé | M65: =IF(AND($K65=0,$H65<'Menu General'!$A$10),"En retard",IF($I65=$K65,"Soldé",IF(AND($O65<>0,$O65<$I65),"Partiel","En cours"))) -> Soldé | O65: =IF(ISERROR(VLOOKUP(E65,'LX02'!$A$1:$D$150,1,FALSE)),"","X") ->  | Q65: 200987415 | R65: MERHRAOUI MOHAMED | S65: 1 | T65: 2 | U65: 2 | V65: T533610453 | W65: 89.7
A66: 4700043567-150 | B66: 4700043567 | C66: 150 | D66: 2 | E66: 4939126180 | F66: ENVELOPPE RENAULT 110X220 FENETRE 1=100 | G66: 2016-06-10 | H66: 2016-06-09 | I66: 2 | J66: =IF(ISERROR(VLOOKUP(A66,base_sf[],6,FALSE)),"","X") ->  | K66: =IF(ISERROR(VLOOKUP(A66,base_sf[],11,0)),I66,VLOOKUP(A66,base_sf[],11,0)) -> 2 | L66: Soldé | M66: =IF(AND($K66=0,$H66<'Menu General'!$A$10),"En retard",IF($I66=$K66,"Soldé",IF(AND($O66<>0,$O66<$I66),"Partiel","En cours"))) -> Soldé | O66: =IF(ISERROR(VLOOKUP(E66,'LX02'!$A$1:$D$150,1,FALSE)),"","X") ->  | Q66: 200987424 | R66: CHARLES PASCALE | S66: 10 | T66: 2 | U66: 10 | V66: T853454101 | W66: 63.4
A67: =CONCATENATE(B67,"-",C67) -> 4700043567-160 | B67: 4700043567 | C67: 160 | D67: 2 | E67: 4939122170 | F67: ENVELOPPE RENAULT 110X220 SF 1=100 | G67: 2016-06-10 | H67: 2016-06-09 | I67: 2 | J67: =IF(ISERROR(VLOOKUP(A67,base_sf[],6,FALSE)),"","X") ->  | K67: =IF(ISERROR(VLOOKUP(A67,base_sf[],11,0)),I67,VLOOKUP(A67,base_sf[],11,0)) -> 2 | L67: =IF(I67=K67,"Soldé",IF(AND(K67<I67,K67<>0),"Litige ou 351","Reliquat")) -> Soldé | M67: =IF(AND($K67=0,$H67<'Menu General'!$A$10),"En retard",IF($I67=$K67,"Soldé",IF(AND($O67<>0,$O67<$I67),"Partiel","En cours"))) -> Soldé | O67: =IF(ISERROR(VLOOKUP(E67,'LX02'!$A$1:$D$150,1,FALSE)),"","X") ->  | Q67: 200987580 | R67: LABORIE GIL | S67: 100 | T67: =I67 -> 2 | U67: 100 | V67: X417202302 | W67: 3.05
A68: 4700043567-170 | B68: 4700043567 | C68: 170 | D68: 2 | E68: 4939034208 | F68: ETIQ.ADHES.COURRIER EXPRESS 1=50 | G68: 2016-06-10 | H68: 2016-06-10 | I68: 4 | J68: =IF(ISERROR(VLOOKUP(A68,base_sf[],6,FALSE)),"","X") ->  | K68: =IF(ISERROR(VLOOKUP(A68,base_sf[],11,0)),I68,VLOOKUP(A68,base_sf[],11,0)) -> 4 | L68: Soldé | M68: =IF(AND($K68=0,$H68<'Menu General'!$A$10),"En retard",IF($I68=$K68,"Soldé",IF(AND($O68<>0,$O68<$I68),"Partiel","En cours"))) -> Soldé | O68: =IF(ISERROR(VLOOKUP(E68,'LX02'!$A$1:$D$150,1,FALSE)),"","X") ->  | Q68: 200987581 | R68: LABORIE GIL | S68: 100 | T68: 4 | U68: 100 | V68: X511120303 | W68: 1.18
A69: 4700043566-360 | B69: 4700043566 | C69: 360 | E69: R100115136 | F69: PAIRE DE GANTS 5DGTS NITRILE INTEGRAL SU | G69: 2016-06-10 | H69: 2016-06-13 | I69: 1 | J69: =IF(ISERROR(VLOOKUP(A69,base_sf[],6,FALSE)),"","X") -> X | K69: =IF(ISERROR(VLOOKUP(A69,base_sf[],11,0)),I69,VLOOKUP(A69,base_sf[],11,0)) -> 0 | L69: Reliquat | M69: =IF(AND($K69=0,$H69<'Menu General'!$A$10),"En retard",IF($I69=$K69,"Soldé",IF(AND($O69<>0,$O69<$I69),"Partiel","En cours"))) -> En retard | O69: =IF(ISERROR(VLOOKUP(E69,'LX02'!$A$1:$D$150,1,FALSE)),"","X") ->  | Q69: 200987570 | R69: LABORIE GIL | S69: 10 | T69: 1 | U69: 10 | V69: X511145202 | W69: 2.23
A70: 4700043576-50 | B70: 4700043576 | C70: 50 | D70: 2 | E70: X972536518 | F70: ENVELOPPE 415X325 PVC BLANC 1=100 | G70: 2016-06-13 | H70: 2016-06-13 | I70: 1 | J70: =IF(ISERROR(VLOOKUP(A70,base_sf[],6,FALSE)),"","X") ->  | K70: =IF(ISERROR(VLOOKUP(A70,base_sf[],11,0)),I70,VLOOKUP(A70,base_sf[],11,0)) -> 1 | L70: Soldé | M70: =IF(AND($K70=0,$H70<'Menu General'!$A$10),"En retard",IF($I70=$K70,"Soldé",IF(AND($O70<>0,$O70<$I70),"Partiel","En cours"))) -> Soldé | O70: =IF(ISERROR(VLOOKUP(E70,'LX02'!$A$1:$D$150,1,FALSE)),"","X") ->  | Q70: 200987571 | R70: LABORIE GIL | S70: 10 | T70: 1 | U70: 10 | V70: X511145301 | W70: 15.2
A71: 4700043576-40 | B71: 4700043576 | C71: 40 | D71: 2 | E71: 4939121791 | F71: POCHETTE ENVELOPPES INTERSERVICES 1=250 | G71: 2016-06-13 | H71: 2016-06-13 | I71: 2 | J71: =IF(ISERROR(VLOOKUP(A71,base_sf[],6,FALSE)),"","X") ->  | K71: =IF(ISERROR(VLOOKUP(A71,base_sf[],11,0)),I71,VLOOKUP(A71,base_sf[],11,0)) -> 2 | L71: Soldé | M71: =IF(AND($K71=0,$H71<'Menu General'!$A$10),"En retard",IF($I71=$K71,"Soldé",IF(AND($O71<>0,$O71<$I71),"Partiel","En cours"))) -> Soldé | O71: =IF(ISERROR(VLOOKUP(E71,'LX02'!$A$1:$D$150,1,FALSE)),"","X") ->  | Q71: 200987524 | R71: LERAY DAVID | S71: 7 | T71: 2 | U71: 7 | V71: X75600442A | W71: 9.31
A72: 4700043576-10 | B72: 4700043576 | C72: 10 | D72: 2 | E72: 4939121791 | F72: POCHETTE ENVELOPPES INTERSERVICES 1=250 | G72: 2016-06-13 | H72: 2016-06-13 | I72: 2 | J72: =IF(ISERROR(VLOOKUP(A72,base_sf[],6,FALSE)),"","X") ->  | K72: =IF(ISERROR(VLOOKUP(A72,base_sf[],11,0)),I72,VLOOKUP(A72,base_sf[],11,0)) -> 2 | L72: Soldé | M72: =IF(AND($K72=0,$H72<'Menu General'!$A$10),"En retard",IF($I72=$K72,"Soldé",IF(AND($O72<>0,$O72<$I72),"Partiel","En cours"))) -> Soldé | O72: =IF(ISERROR(VLOOKUP(E72,'LX02'!$A$1:$D$150,1,FALSE)),"","X") ->  | Q72: 200987522 | R72: LERAY DAVID | S72: 7 | T72: 2 | U72: 14 | V72: X756005476 | W72: 31.36
A73: 4700043576-20 | B73: 4700043576 | C73: 20 | D73: 2 | E73: 4939121791 | F73: POCHETTE ENVELOPPES INTERSERVICES 1=250 | G73: 2016-06-13 | H73: 2016-06-13 | I73: 2 | J73: =IF(ISERROR(VLOOKUP(A73,base_sf[],6,FALSE)),"","X") ->  | K73: =IF(ISERROR(VLOOKUP(A73,base_sf[],11,0)),I73,VLOOKUP(A73,base_sf[],11,0)) -> 2 | L73: Soldé | M73: =IF(AND($K73=0,$H73<'Menu General'!$A$10),"En retard",IF($I73=$K73,"Soldé",IF(AND($O73<>0,$O73<$I73),"Partiel","En cours"))) -> Soldé | O73: =IF(ISERROR(VLOOKUP(E73,'LX02'!$A$1:$D$150,1,FALSE)),"","X") ->  | Q73: 200987522 | R73: LERAY DAVID | S73: 7 | T73: 2 | U73: 14 | V73: X756305476 | W73: 9.91
A74: 4700043576-30 | B74: 4700043576 | C74: 30 | D74: 2 | E74: 4939122056 | F74: POCHETTE RENAULT 330X260 RLT 1=100 | G74: 2016-06-13 | H74: 2016-06-13 | I74: 3 | J74: =IF(ISERROR(VLOOKUP(A74,base_sf[],6,FALSE)),"","X") ->  | K74: =IF(ISERROR(VLOOKUP(A74,base_sf[],11,0)),I74,VLOOKUP(A74,base_sf[],11,0)) -> 3 | L74: Soldé | M74: =IF(AND($K74=0,$H74<'Menu General'!$A$10),"En retard",IF($I74=$K74,"Soldé",IF(AND($O74<>0,$O74<$I74),"Partiel","En cours"))) -> Soldé | O74: =IF(ISERROR(VLOOKUP(E74,'LX02'!$A$1:$D$150,1,FALSE)),"","X") ->  | Q74: 200987397 | R74: MOUSSET CELINE | S74: 10 | T74: 3 | U74: 20 | V74: X771113501 | W74: 12
A75: 4700043575-230 | B75: 4700043575 | C75: 230 | E75: P481115803 | F75: PINCE-ETAU A GRANDE CAPACITE MAXI 120 LG | G75: 2016-06-13 | H75: 2016-06-16 | I75: 2 | J75: =IF(ISERROR(VLOOKUP(A75,base_sf[],6,FALSE)),"","X") -> X | K75: =IF(ISERROR(VLOOKUP(A75,base_sf[],11,0)),I75,VLOOKUP(A75,base_sf[],11,0)) -> 0 | L75: Reliquat | M75: =IF(AND($K75=0,$H75<'Menu General'!$A$10),"En retard",IF($I75=$K75,"Soldé",IF(AND($O75<>0,$O75<$I75),"Partiel","En cours"))) -> En retard | O75: =IF(ISERROR(VLOOKUP(E75,'LX02'!$A$1:$D$150,1,FALSE)),"","X") ->  | Q75: 200987424 | R75: CHARLES PASCALE | S75: 5 | T75: 2 | U75: 5 | V75: X771113550 | W75: 3
A76: 4700043576-60 | B76: 4700043576 | C76: 60 | D76: 2 | E76: 4939126091 | F76: ENVELOPPE BUL. 110X220 INTERNE/API 1=100 | G76: 2016-06-13 | H76: 2016-06-13 | I76: 2 | J76: =IF(ISERROR(VLOOKUP(A76,base_sf[],6,FALSE)),"","X") ->  | K76: =IF(ISERROR(VLOOKUP(A76,base_sf[],11,0)),I76,VLOOKUP(A76,base_sf[],11,0)) -> 2 | L76: Soldé | M76: =IF(AND($K76=0,$H76<'Menu General'!$A$10),"En retard",IF($I76=$K76,"Soldé",IF(AND($O76<>0,$O76<$I76),"Partiel","En cours"))) -> Soldé | O76: =IF(ISERROR(VLOOKUP(E76,'LX02'!$A$1:$D$150,1,FALSE)),"","X") ->  | Q76: 200987537 | R76: WILLEMOTTE GUILLAUME | S76: 1 | T76: 2 | U76: 1 | V76: X912167177 | W76: 1.89
A77: 4700043603-10 | B77: 4700043603 | C77: 10 | D77: 2 | E77: 4939003490 | F77: DOSSIER ACHAT CONSULT 1=100 | G77: 2016-06-16 | H77: 2016-06-21 | I77: 6 | J77: =IF(ISERROR(VLOOKUP(A77,base_sf[],6,FALSE)),"","X") ->  | K77: =IF(ISERROR(VLOOKUP(A77,base_sf[],11,0)),I77,VLOOKUP(A77,base_sf[],11,0)) -> 6 | L77: Soldé | M77: =IF(AND($K77=0,$H77<'Menu General'!$A$10),"En retard",IF($I77=$K77,"Soldé",IF(AND($O77<>0,$O77<$I77),"Partiel","En cours"))) -> Soldé | O77: =IF(ISERROR(VLOOKUP(E77,'LX02'!$A$1:$D$150,1,FALSE)),"","X") ->  | Q77: 200987537 | R77: WILLEMOTTE GUILLAUME | S77: 1 | T77: 6 | U77: 1 | V77: X912167187 | W77: 2.69
A78: 4700043603-20 | B78: 4700043603 | C78: 20 | D78: 2 | E78: 4939031085 | F78: FEUILLES BONS COMPLETS CDPR BLANCS 1=500 | G78: 2016-06-16 | H78: 2016-06-16 | I78: 50 | J78: =IF(ISERROR(VLOOKUP(A78,base_sf[],6,FALSE)),"","X") ->  | K78: =IF(ISERROR(VLOOKUP(A78,base_sf[],11,0)),I78,VLOOKUP(A78,base_sf[],11,0)) -> 50 | L78: Soldé | M78: =IF(AND($K78=0,$H78<'Menu General'!$A$10),"En retard",IF($I78=$K78,"Soldé",IF(AND($O78<>0,$O78<$I78),"Partiel","En cours"))) -> Soldé | O78: =IF(ISERROR(VLOOKUP(E78,'LX02'!$A$1:$D$150,1,FALSE)),"","X") ->  | Q78: 200987497 | R78: BAFFEREAU BRUNO | S78: 100 | T78: 50 | U78: 100 | V78: X953151404 | W78: 4
A79: 4700043603-30 | B79: 4700043603 | C79: 30 | D79: 2 | E79: 4939031080 | F79: ETIQ.COLIS STOCK BLEU/JAUNE 1=1000 | G79: 2016-06-16 | H79: 2016-06-16 | I79: 300 | J79: =IF(ISERROR(VLOOKUP(A79,base_sf[],6,FALSE)),"","X") ->  | K79: =IF(ISERROR(VLOOKUP(A79,base_sf[],11,0)),I79,VLOOKUP(A79,base_sf[],11,0)) -> 300 | L79: Soldé | M79: =IF(AND($K79=0,$H79<'Menu General'!$A$10),"En retard",IF($I79=$K79,"Soldé",IF(AND($O79<>0,$O79<$I79),"Partiel","En cours"))) -> Soldé | O79: =IF(ISERROR(VLOOKUP(E79,'LX02'!$A$1:$D$150,1,FALSE)),"","X") ->  | Q79: 200987502 | R79: JOY MICKAEL FREDERIC | S79: 15 | T79: 300
A80: 4700043603-40 | B80: 4700043603 | C80: 40 | D80: 2 | E80: 4939031075 | F80: ETIQUETTE COLIS URGENT 1=800 | G80: 2016-06-16 | H80: 2016-06-16 | I80: 360 | J80: =IF(ISERROR(VLOOKUP(A80,base_sf[],6,FALSE)),"","X") ->  | K80: =IF(ISERROR(VLOOKUP(A80,base_sf[],11,0)),I80,VLOOKUP(A80,base_sf[],11,0)) -> 360 | L80: Soldé | M80: =IF(AND($K80=0,$H80<'Menu General'!$A$10),"En retard",IF($I80=$K80,"Soldé",IF(AND($O80<>0,$O80<$I80),"Partiel","En cours"))) -> Soldé | O80: =IF(ISERROR(VLOOKUP(E80,'LX02'!$A$1:$D$150,1,FALSE)),"","X") ->  | Q80: 200987479 | R80: PAN CHENGKAI | S80: 1 | T80: 360 | U80: 2 | V80: R100364715 | W80: 73
A81: 4700043603-50 | B81: 4700043603 | C81: 50 | D81: 2 | E81: 4939031086 | F81: FEUILLE BON COMPLET CDPR 1=500 | G81: 2016-06-16 | H81: 2016-06-16 | I81: 125 | J81: =IF(ISERROR(VLOOKUP(A81,base_sf[],6,FALSE)),"","X") ->  | K81: =IF(ISERROR(VLOOKUP(A81,base_sf[],11,0)),I81,VLOOKUP(A81,base_sf[],11,0)) -> 125 | L81: Soldé | M81: =IF(AND($K81=0,$H81<'Menu General'!$A$10),"En retard",IF($I81=$K81,"Soldé",IF(AND($O81<>0,$O81<$I81),"Partiel","En cours"))) -> Soldé | O81: =IF(ISERROR(VLOOKUP(E81,'LX02'!$A$1:$D$150,1,FALSE)),"","X") ->  | Q81: 200987685 | R81: MALGUY STEPHANE | S81: 1 | T81: 125 | U81: 1 | V81: R100364717 | W81: 36.5
A82: 4700043603-60 | B82: 4700043603 | C82: 60 | D82: 2 | E82: 4939000500 | F82: BONS DE SERVICE DPR A4 IMPR. 1=2500 | G82: 2016-06-16 | H82: 2016-06-16 | I82: 80 | J82: =IF(ISERROR(VLOOKUP(A82,base_sf[],6,FALSE)),"","X") ->  | K82: =IF(ISERROR(VLOOKUP(A82,base_sf[],11,0)),I82,VLOOKUP(A82,base_sf[],11,0)) -> 80 | L82: Soldé | M82: =IF(AND($K82=0,$H82<'Menu General'!$A$10),"En retard",IF($I82=$K82,"Soldé",IF(AND($O82<>0,$O82<$I82),"Partiel","En cours"))) -> Soldé | O82: =IF(ISERROR(VLOOKUP(E82,'LX02'!$A$1:$D$150,1,FALSE)),"","X") ->  | Q82: 200987672 | R82: LE MOUZER YANNICK CARMEL | S82: 10 | T82: 80 | U82: 10 | V82: R100147914 | W82: 553
A83: 4700043603-70 | B83: 4700043603 | C83: 70 | D83: 2 | E83: 4939031075 | F83: ETIQUETTE COLIS URGENT 1=800 | G83: 2016-06-16 | H83: 2016-06-16 | I83: 60 | J83: =IF(ISERROR(VLOOKUP(A83,base_sf[],6,FALSE)),"","X") ->  | K83: =IF(ISERROR(VLOOKUP(A83,base_sf[],11,0)),I83,VLOOKUP(A83,base_sf[],11,0)) -> 60 | L83: Soldé | M83: =IF(AND($K83=0,$H83<'Menu General'!$A$10),"En retard",IF($I83=$K83,"Soldé",IF(AND($O83<>0,$O83<$I83),"Partiel","En cours"))) -> Soldé | O83: =IF(ISERROR(VLOOKUP(E83,'LX02'!$A$1:$D$150,1,FALSE)),"","X") ->  | Q83: 200987672 | R83: LE MOUZER YANNICK CARMEL | S83: 10 | T83: 60 | U83: 10 | V83: R100147915 | W83: 553
A84: 4700043603-80 | B84: 4700043603 | C84: 80 | D84: 2 | E84: 4939031080 | F84: ETIQ.COLIS STOCK BLEU/JAUNE 1=1000 | G84: 2016-06-16 | H84: 2016-06-16 | I84: 50 | J84: =IF(ISERROR(VLOOKUP(A84,base_sf[],6,FALSE)),"","X") ->  | K84: =IF(ISERROR(VLOOKUP(A84,base_sf[],11,0)),I84,VLOOKUP(A84,base_sf[],11,0)) -> 50 | L84: Soldé | M84: =IF(AND($K84=0,$H84<'Menu General'!$A$10),"En retard",IF($I84=$K84,"Soldé",IF(AND($O84<>0,$O84<$I84),"Partiel","En cours"))) -> Soldé | O84: =IF(ISERROR(VLOOKUP(E84,'LX02'!$A$1:$D$150,1,FALSE)),"","X") ->  | Q84: 200987506 | R84: BROCAIL VINCENT ALAIN | S84: 2 | T84: 50 | U84: 30 | V84: T533515452 | W84: 329.7
A85: 4700043603-90 | B85: 4700043603 | C85: 90 | D85: 2 | E85: 4939034208 | F85: ETIQ.ADHES.COURRIER EXPRESS 1=50 | G85: 2016-06-16 | H85: 2016-06-16 | I85: 3 | J85: =IF(ISERROR(VLOOKUP(A85,base_sf[],6,FALSE)),"","X") ->  | K85: =IF(ISERROR(VLOOKUP(A85,base_sf[],11,0)),I85,VLOOKUP(A85,base_sf[],11,0)) -> 3 | L85: Soldé | M85: =IF(AND($K85=0,$H85<'Menu General'!$A$10),"En retard",IF($I85=$K85,"Soldé",IF(AND($O85<>0,$O85<$I85),"Partiel","En cours"))) -> Soldé | O85: =IF(ISERROR(VLOOKUP(E85,'LX02'!$A$1:$D$150,1,FALSE)),"","X") ->  | T85: 3 | U85: 20 | V85: X511140400 | W85: 0.57
A86: 4700043603-100 | B86: 4700043603 | C86: 100 | D86: 2 | E86: 4939122170 | F86: ENVELOPPE RENAULT 110X220 SF 1=100 | G86: 2016-06-16 | H86: 2016-06-16 | I86: 1 | J86: =IF(ISERROR(VLOOKUP(A86,base_sf[],6,FALSE)),"","X") ->  | K86: =IF(ISERROR(VLOOKUP(A86,base_sf[],11,0)),I86,VLOOKUP(A86,base_sf[],11,0)) -> 1 | L86: Soldé | M86: =IF(AND($K86=0,$H86<'Menu General'!$A$10),"En retard",IF($I86=$K86,"Soldé",IF(AND($O86<>0,$O86<$I86),"Partiel","En cours"))) -> Soldé | O86: =IF(ISERROR(VLOOKUP(E86,'LX02'!$A$1:$D$150,1,FALSE)),"","X") ->  | Q86: 200987694 | R86: DANIOU MARTIAL | S86: 10 | T86: 1 | U86: 10 | V86: X771101523 | W86: 8
A87: 4700043603-110 | B87: 4700043603 | C87: 110 | D87: 2 | E87: 4939126180 | F87: ENVELOPPE RENAULT 110X220 FENETRE 1=100 | G87: 2016-06-16 | H87: 2016-06-16 | I87: 1 | J87: =IF(ISERROR(VLOOKUP(A87,base_sf[],6,FALSE)),"","X") ->  | K87: =IF(ISERROR(VLOOKUP(A87,base_sf[],11,0)),I87,VLOOKUP(A87,base_sf[],11,0)) -> 1 | L87: Soldé | M87: =IF(AND($K87=0,$H87<'Menu General'!$A$10),"En retard",IF($I87=$K87,"Soldé",IF(AND($O87<>0,$O87<$I87),"Partiel","En cours"))) -> Soldé | O87: =IF(ISERROR(VLOOKUP(E87,'LX02'!$A$1:$D$150,1,FALSE)),"","X") ->  | Q87: 200987475 | R87: FILLIARD GUILLAUME | S87: 3 | T87: 1 | U87: 3 | V87: R100438329 | W87: 26.13
A88: 4700043626-320 | B88: 4700043626 | C88: 320 | E88: 7711575964 | F88: Pack Historic 2 | G88: 2016-06-21 | H88: 2016-07-11 | I88: 1 | J88: =IF(ISERROR(VLOOKUP(A88,base_sf[],6,FALSE)),"","X") ->  | K88: =IF(ISERROR(VLOOKUP(A88,base_sf[],11,0)),I88,VLOOKUP(A88,base_sf[],11,0)) -> 1 | L88: Soldé | M88: =IF(AND($K88=0,$H88<'Menu General'!$A$10),"En retard",IF($I88=$K88,"Soldé",IF(AND($O88<>0,$O88<$I88),"Partiel","En cours"))) -> Soldé | O88: =IF(ISERROR(VLOOKUP(E88,'LX02'!$A$1:$D$150,1,FALSE)),"","X") ->  | Q88: 200987683 | R88: TRIFAULT MARIE-CHRISTINE | S88: 1 | T88: 1 | U88: 1 | V88: R100518619 | W88: 31.83
A89: 4700043662-10 | B89: 4700043662 | C89: 10 | D89: 2 | E89: 4939122060 | F89: POCHETTE SOUFFLET 330X290 RENAULT 1=200 | G89: 2016-06-27 | H89: 2016-06-27 | I89: 1 | J89: =IF(ISERROR(VLOOKUP(A89,base_sf[],6,FALSE)),"","X") ->  | K89: =IF(ISERROR(VLOOKUP(A89,base_sf[],11,0)),I89,VLOOKUP(A89,base_sf[],11,0)) -> 1 | L89: Soldé | M89: =IF(AND($K89=0,$H89<'Menu General'!$A$10),"En retard",IF($I89=$K89,"Soldé",IF(AND($O89<>0,$O89<$I89),"Partiel","En cours"))) -> Soldé | O89: =IF(ISERROR(VLOOKUP(E89,'LX02'!$A$1:$D$150,1,FALSE)),"","X") ->  | Q89: 200987672 | R89: LE MOUZER YANNICK CARMEL | S89: 2 | T89: 1 | U89: 2 | V89: R100518626 | W89: 56.44
A90: 4700043662-20 | B90: 4700043662 | C90: 20 | D90: 2 | E90: 4939122056 | F90: POCHETTE RENAULT 330X260 RLT 1=100 | G90: 2016-06-27 | H90: 2016-06-27 | I90: 3 | J90: =IF(ISERROR(VLOOKUP(A90,base_sf[],6,FALSE)),"","X") ->  | K90: =IF(ISERROR(VLOOKUP(A90,base_sf[],11,0)),I90,VLOOKUP(A90,base_sf[],11,0)) -> 3 | L90: Soldé | M90: =IF(AND($K90=0,$H90<'Menu General'!$A$10),"En retard",IF($I90=$K90,"Soldé",IF(AND($O90<>0,$O90<$I90),"Partiel","En cours"))) -> Soldé | O90: =IF(ISERROR(VLOOKUP(E90,'LX02'!$A$1:$D$150,1,FALSE)),"","X") ->  | Q90: 200987672 | R90: LE MOUZER YANNICK CARMEL | S90: 2 | T90: 3 | U90: 2 | V90: R100518627 | W90: 56.44
A91: 4700043662-30 | B91: 4700043662 | C91: 30 | D91: 2 | E91: X972536518 | F91: ENVELOPPE 415X325 PVC BLANC 1=100 | G91: 2016-06-27 | H91: 2016-06-27 | I91: 1 | J91: =IF(ISERROR(VLOOKUP(A91,base_sf[],6,FALSE)),"","X") ->  | K91: =IF(ISERROR(VLOOKUP(A91,base_sf[],11,0)),I91,VLOOKUP(A91,base_sf[],11,0)) -> 1 | L91: Soldé | M91: =IF(AND($K91=0,$H91<'Menu General'!$A$10),"En retard",IF($I91=$K91,"Soldé",IF(AND($O91<>0,$O91<$I91),"Partiel","En cours"))) -> Soldé | O91: =IF(ISERROR(VLOOKUP(E91,'LX02'!$A$1:$D$150,1,FALSE)),"","X") ->  | Q91: 200987672 | R91: LE MOUZER YANNICK CARMEL | S91: 2 | T91: 1 | U91: 2 | V91: R100518628 | W91: 56.44
A92: 4700043662-40 | B92: 4700043662 | C92: 40 | D92: 2 | E92: 4939031075 | F92: ETIQUETTE COLIS URGENT 1=800 | G92: 2016-06-27 | H92: 2016-06-27 | I92: 180 | J92: =IF(ISERROR(VLOOKUP(A92,base_sf[],6,FALSE)),"","X") ->  | K92: =IF(ISERROR(VLOOKUP(A92,base_sf[],11,0)),I92,VLOOKUP(A92,base_sf[],11,0)) -> 180 | L92: Soldé | M92: =IF(AND($K92=0,$H92<'Menu General'!$A$10),"En retard",IF($I92=$K92,"Soldé",IF(AND($O92<>0,$O92<$I92),"Partiel","En cours"))) -> Soldé | O92: =IF(ISERROR(VLOOKUP(E92,'LX02'!$A$1:$D$150,1,FALSE)),"","X") ->  | Q92: 200987672 | R92: LE MOUZER YANNICK CARMEL | S92: 3 | T92: 180 | U92: 3 | V92: R100518629 | W92: 84.66
A93: 4700043671-350 | B93: 4700043671 | C93: 350 | E93: 410114EA0A | F93: CALIPER ASSY-BRAKE,W/O PAD LH | G93: 2016-06-28 | H93: 2016-06-29 | I93: 30 | J93: =IF(ISERROR(VLOOKUP(A93,base_sf[],6,FALSE)),"","X") ->  | K93: =IF(ISERROR(VLOOKUP(A93,base_sf[],11,0)),I93,VLOOKUP(A93,base_sf[],11,0)) -> 30 | L93: Soldé | M93: =IF(AND($K93=0,$H93<'Menu General'!$A$10),"En retard",IF($I93=$K93,"Soldé",IF(AND($O93<>0,$O93<$I93),"Partiel","En cours"))) -> Soldé | O93: =IF(ISERROR(VLOOKUP(E93,'LX02'!$A$1:$D$150,1,FALSE)),"","X") ->  | T93: 30 | U93: 2 | V93: P256139201 | W93: 12.58
A94: 4700043594-40 | B94: 4700043594 | C94: 40 | D94: 2 | E94: 4939033159 | F94: POCHETTE ATELIER EN COURS GRISE 1=50 | G94: 2016-06-15 | H94: 2016-06-15 | I94: 2 | J94: =IF(ISERROR(VLOOKUP(A94,base_sf[],6,FALSE)),"","X") ->  | K94: =IF(ISERROR(VLOOKUP(A94,base_sf[],11,0)),I94,VLOOKUP(A94,base_sf[],11,0)) -> 2 | L94: Soldé | M94: =IF(AND($K94=0,$H94<'Menu General'!$A$10),"En retard",IF($I94=$K94,"Soldé",IF(AND($O94<>0,$O94<$I94),"Partiel","En cours"))) -> Soldé | O94: =IF(ISERROR(VLOOKUP(E94,'LX02'!$A$1:$D$150,1,FALSE)),"","X") ->  | Q94: 200987675 | R94: MELOTTE DIDIER | S94: 3 | T94: 2 | U94: 3 | V94: P672415273 | W94: 9.18
A95: 4700043594-10 | B95: 4700043594 | C95: 10 | D95: 2 | E95: 4939126091 | F95: ENVELOPPE BUL. 110X220 INTERNE/API 1=100 | G95: 2016-06-15 | H95: 2016-06-15 | I95: 1 | J95: =IF(ISERROR(VLOOKUP(A95,base_sf[],6,FALSE)),"","X") ->  | K95: =IF(ISERROR(VLOOKUP(A95,base_sf[],11,0)),I95,VLOOKUP(A95,base_sf[],11,0)) -> 1 | L95: Soldé | M95: =IF(AND($K95=0,$H95<'Menu General'!$A$10),"En retard",IF($I95=$K95,"Soldé",IF(AND($O95<>0,$O95<$I95),"Partiel","En cours"))) -> Soldé | O95: =IF(ISERROR(VLOOKUP(E95,'LX02'!$A$1:$D$150,1,FALSE)),"","X") ->  | T95: 1 | U95: 3 | V95: P785912473 | W95: 31.2
A96: 4700043594-20 | B96: 4700043594 | C96: 20 | D96: 2 | E96: 4939121791 | F96: POCHETTE ENVELOPPES INTERSERVICES 1=250 | G96: 2016-06-15 | H96: 2016-06-15 | I96: 1 | J96: =IF(ISERROR(VLOOKUP(A96,base_sf[],6,FALSE)),"","X") ->  | K96: =IF(ISERROR(VLOOKUP(A96,base_sf[],11,0)),I96,VLOOKUP(A96,base_sf[],11,0)) -> 1 | L96: Soldé | M96: =IF(AND($K96=0,$H96<'Menu General'!$A$10),"En retard",IF($I96=$K96,"Soldé",IF(AND($O96<>0,$O96<$I96),"Partiel","En cours"))) -> Soldé | O96: =IF(ISERROR(VLOOKUP(E96,'LX02'!$A$1:$D$150,1,FALSE)),"","X") ->  | T96: 1 | U96: 24 | V96: P931152571 | W96: 12.48
A97: 4700043594-30 | B97: 4700043594 | C97: 30 | D97: 2 | E97: 4939122060 | F97: POCHETTE SOUFFLET 330X290 RENAULT 1=200 | G97: 2016-06-15 | H97: 2016-06-15 | I97: 1 | J97: =IF(ISERROR(VLOOKUP(A97,base_sf[],6,FALSE)),"","X") ->  | K97: =IF(ISERROR(VLOOKUP(A97,base_sf[],11,0)),I97,VLOOKUP(A97,base_sf[],11,0)) -> 1 | L97: Soldé | M97: =IF(AND($K97=0,$H97<'Menu General'!$A$10),"En retard",IF($I97=$K97,"Soldé",IF(AND($O97<>0,$O97<$I97),"Partiel","En cours"))) -> Soldé | O97: =IF(ISERROR(VLOOKUP(E97,'LX02'!$A$1:$D$150,1,FALSE)),"","X") ->  | Q97: 200987502 | R97: JOY MICKAEL FREDERIC | S97: 8 | T97: 1 | U97: 1 | V97: P931551714 | W97: 147.8
A98: 4700043586-10 | B98: 4700043586 | C98: 10 | D98: 2 | E98: 4939122056 | F98: POCHETTE RENAULT 330X260 RLT 1=100 | G98: 2016-06-14 | H98: 2016-06-14 | I98: 1 | J98: =IF(ISERROR(VLOOKUP(A98,base_sf[],6,FALSE)),"","X") ->  | K98: =IF(ISERROR(VLOOKUP(A98,base_sf[],11,0)),I98,VLOOKUP(A98,base_sf[],11,0)) -> 1 | L98: Soldé | M98: =IF(AND($K98=0,$H98<'Menu General'!$A$10),"En retard",IF($I98=$K98,"Soldé",IF(AND($O98<>0,$O98<$I98),"Partiel","En cours"))) -> Soldé | O98: =IF(ISERROR(VLOOKUP(E98,'LX02'!$A$1:$D$150,1,FALSE)),"","X") ->  | Q98: 200987675 | R98: MELOTTE DIDIER | S98: 3 | T98: 1 | U98: 3 | V98: R100157509 | W98: 6.93
A99: 4700043586-20 | B99: 4700043586 | C99: 20 | D99: 2 | E99: 4939121791 | F99: POCHETTE ENVELOPPES INTERSERVICES 1=250 | G99: 2016-06-14 | H99: 2016-06-14 | I99: 1 | J99: =IF(ISERROR(VLOOKUP(A99,base_sf[],6,FALSE)),"","X") ->  | K99: =IF(ISERROR(VLOOKUP(A99,base_sf[],11,0)),I99,VLOOKUP(A99,base_sf[],11,0)) -> 1 | L99: Soldé | M99: =IF(AND($K99=0,$H99<'Menu General'!$A$10),"En retard",IF($I99=$K99,"Soldé",IF(AND($O99<>0,$O99<$I99),"Partiel","En cours"))) -> Soldé | O99: =IF(ISERROR(VLOOKUP(E99,'LX02'!$A$1:$D$150,1,FALSE)),"","X") ->  | Q99: 200987675 | R99: MELOTTE DIDIER | S99: 3 | T99: 1 | U99: 3 | V99: R100215870 | W99: 5.25
A100: 4700043603-120 | B100: 4700043603 | C100: 120 | D100: 2 | E100: X972536518 | F100: ENVELOPPE 415X325 PVC BLANC 1=100 | G100: 2016-06-16 | H100: 2016-06-16 | I100: 1 | J100: =IF(ISERROR(VLOOKUP(A100,base_sf[],6,FALSE)),"","X") ->  | K100: =IF(ISERROR(VLOOKUP(A100,base_sf[],11,0)),I100,VLOOKUP(A100,base_sf[],11,0)) -> 1 | L100: Soldé | M100: =IF(AND($K100=0,$H100<'Menu General'!$A$10),"En retard",IF($I100=$K100,"Soldé",IF(AND($O100<>0,$O100<$I100),"Partiel","En cours"))) -> Soldé | O100: =IF(ISERROR(VLOOKUP(E100,'LX02'!$A$1:$D$150,1,FALSE)),"","X") ->  | Q100: 200987562 | R100: JULIEN WILLI | S100: 1 | T100: 1 | U100: 1 | V100: R100295824 | W100: 370.5
A101: 4700043602-720 | B101: 4700043602 | C101: 720 | E101: X417102503 | F101: VIS TETE CYL.CHC 6PANS CREUX M 3X0,5 LG. | G101: 2016-06-16 | H101: 2016-06-20 | I101: 160 | J101: =IF(ISERROR(VLOOKUP(A101,base_sf[],6,FALSE)),"","X") -> X | K101: =IF(ISERROR(VLOOKUP(A101,base_sf[],11,0)),I101,VLOOKUP(A101,base_sf[],11,0)) -> 40 | L101: Litige ou 351 | M101: =IF(AND($K101=0,$H101<'Menu General'!$A$10),"En retard",IF($I101=$K101,"Soldé",IF(AND($O101<>0,$O101<$I101),"Partiel","En cours"))) -> En cours | O101: =IF(ISERROR(VLOOKUP(E101,'LX02'!$A$1:$D$150,1,FALSE)),"","X") ->  | Q101: 200987668 | R101: PROUTEAU CHRISTELLE | S101: 1 | T101: 160 | U101: 1 | V101: R100364315 | W101: 33.4
A102: 4700043620-10 | B102: 4700043620 | C102: 10 | D102: 2 | E102: 4939122056 | F102: POCHETTE RENAULT 330X260 RLT 1=100 | G102: 2016-06-20 | H102: 2016-06-20 | I102: 3 | J102: =IF(ISERROR(VLOOKUP(A102,base_sf[],6,FALSE)),"","X") ->  | K102: =IF(ISERROR(VLOOKUP(A102,base_sf[],11,0)),I102,VLOOKUP(A102,base_sf[],11,0)) -> 3 | L102: Soldé | M102: =IF(AND($K102=0,$H102<'Menu General'!$A$10),"En retard",IF($I102=$K102,"Soldé",IF(AND($O102<>0,$O102<$I102),"Partiel","En cours"))) -> Soldé | O102: =IF(ISERROR(VLOOKUP(E102,'LX02'!$A$1:$D$150,1,FALSE)),"","X") ->  | Q102: 200987665 | R102: HAREL PATRICE | S102: 2 | T102: 3 | U102: 2 | V102: R100503232 | W102: 6.72
A103: 4700043620-20 | B103: 4700043620 | C103: 20 | D103: 2 | E103: 4939122056 | F103: POCHETTE RENAULT 330X260 RLT 1=100 | G103: 2016-06-20 | H103: 2016-06-20 | I103: 3 | J103: =IF(ISERROR(VLOOKUP(A103,base_sf[],6,FALSE)),"","X") ->  | K103: =IF(ISERROR(VLOOKUP(A103,base_sf[],11,0)),I103,VLOOKUP(A103,base_sf[],11,0)) -> 3 | L103: Soldé | M103: =IF(AND($K103=0,$H103<'Menu General'!$A$10),"En retard",IF($I103=$K103,"Soldé",IF(AND($O103<>0,$O103<$I103),"Partiel","En cours"))) -> Soldé | O103: =IF(ISERROR(VLOOKUP(E103,'LX02'!$A$1:$D$150,1,FALSE)),"","X") ->  | Q103: 200987683 | R103: TRIFAULT MARIE-CHRISTINE | S103: 10 | T103: 3 | U103: 10 | V103: R100582895 | W103: 99.8
A104: 4700043661-120 | B104: 4700043661 | C104: 120 | E104: R100438457 | F104: POLO MANCHES COURTES MAILLE PIQUEE GRIS | G104: 2016-06-27 | H104: 2016-10-10 | I104: 4 | J104: =IF(ISERROR(VLOOKUP(A104,base_sf[],6,FALSE)),"","X") -> X | K104: =IF(ISERROR(VLOOKUP(A104,base_sf[],11,0)),I104,VLOOKUP(A104,base_sf[],11,0)) -> 0 | L104: Reliquat | M104: =IF(AND($K104=0,$H104<'Menu General'!$A$10),"En retard",IF($I104=$K104,"Soldé",IF(AND($O104<>0,$O104<$I104),"Partiel","En cours"))) -> En retard | O104: =IF(ISERROR(VLOOKUP(E104,'LX02'!$A$1:$D$150,1,FALSE)),"","X") ->  | Q104: 200987605 | R104: HELOU JEAN-YVES | S104: 5 | T104: 4 | U104: 5 | V104: T533011456 | W104: 4.95
A105: 4700043661-130 | B105: 4700043661 | C105: 130 | E105: X140062050 | F105: EMBOUT OGIVE LAITON PASS.4 PR TUYAU D. | G105: 2016-06-27 | H105: 2016-06-29 | I105: 30 | J105: =IF(ISERROR(VLOOKUP(A105,base_sf[],6,FALSE)),"","X") -> X | K105: =IF(ISERROR(VLOOKUP(A105,base_sf[],11,0)),I105,VLOOKUP(A105,base_sf[],11,0)) -> 0 | L105: Reliquat | M105: =IF(AND($K105=0,$H105<'Menu General'!$A$10),"En retard",IF($I105=$K105,"Soldé",IF(AND($O105<>0,$O105<$I105),"Partiel","En cours"))) -> En retard | O105: =IF(ISERROR(VLOOKUP(E105,'LX02'!$A$1:$D$150,1,FALSE)),"","X") ->  | Q105: 200987675 | R105: MELOTTE DIDIER | S105: 36 | T105: 30 | U105: 36 | V105: T533201453 | W105: 48.6
A106: 4700043661-150 | B106: 4700043661 | C106: 150 | E106: R100438456 | F106: POLO MANCHES COURTES MAILLE PIQUEE GRIS | G106: 2016-06-27 | H106: 2016-10-10 | I106: 2 | J106: =IF(ISERROR(VLOOKUP(A106,base_sf[],6,FALSE)),"","X") ->  | K106: =IF(ISERROR(VLOOKUP(A106,base_sf[],11,0)),I106,VLOOKUP(A106,base_sf[],11,0)) -> 2 | L106: Soldé | M106: =IF(AND($K106=0,$H106<'Menu General'!$A$10),"En retard",IF($I106=$K106,"Soldé",IF(AND($O106<>0,$O106<$I106),"Partiel","En cours"))) -> Soldé | O106: =IF(ISERROR(VLOOKUP(E106,'LX02'!$A$1:$D$150,1,FALSE)),"","X") ->  | Q106: 200987506 | R106: BROCAIL VINCENT ALAIN | S106: 1 | T106: 2 | U106: 20 | V106: T533610453 | W106: 897
A107: 4700043662-50 | B107: 4700043662 | C107: 50 | D107: 2 | E107: 4939031080 | F107: ETIQ.COLIS STOCK BLEU/JAUNE 1=1000 | G107: 2016-06-27 | H107: 2016-06-27 | I107: 150 | J107: =IF(ISERROR(VLOOKUP(A107,base_sf[],6,FALSE)),"","X") ->  | K107: =IF(ISERROR(VLOOKUP(A107,base_sf[],11,0)),I107,VLOOKUP(A107,base_sf[],11,0)) -> 150 | L107: Soldé | M107: =IF(AND($K107=0,$H107<'Menu General'!$A$10),"En retard",IF($I107=$K107,"Soldé",IF(AND($O107<>0,$O107<$I107),"Partiel","En cours"))) -> Soldé | O107: =IF(ISERROR(VLOOKUP(E107,'LX02'!$A$1:$D$150,1,FALSE)),"","X") ->  | T107: 150 | U107: 100 | V107: X452133902 | W107: 0.56
A108: 4700043662-60 | B108: 4700043662 | C108: 60 | D108: 2 | E108: 4939031086 | F108: FEUILLE BON COMPLET CDPR 1=500 | G108: 2016-06-27 | H108: 2016-06-27 | I108: 100 | J108: =IF(ISERROR(VLOOKUP(A108,base_sf[],6,FALSE)),"","X") ->  | K108: =IF(ISERROR(VLOOKUP(A108,base_sf[],11,0)),I108,VLOOKUP(A108,base_sf[],11,0)) -> 100 | L108: Soldé | M108: =IF(AND($K108=0,$H108<'Menu General'!$A$10),"En retard",IF($I108=$K108,"Soldé",IF(AND($O108<>0,$O108<$I108),"Partiel","En cours"))) -> Soldé | O108: =IF(ISERROR(VLOOKUP(E108,'LX02'!$A$1:$D$150,1,FALSE)),"","X") ->  | T108: 100 | U108: 100 | V108: X452134102 | W108: 0.69
A109: 4700043662-70 | B109: 4700043662 | C109: 70 | D109: 2 | E109: 4939000500 | F109: BONS DE SERVICE DPR A4 IMPR. 1=2500 | G109: 2016-06-27 | H109: 2016-06-27 | I109: 80 | J109: =IF(ISERROR(VLOOKUP(A109,base_sf[],6,FALSE)),"","X") ->  | K109: =IF(ISERROR(VLOOKUP(A109,base_sf[],11,0)),I109,VLOOKUP(A109,base_sf[],11,0)) -> 80 | L109: Soldé | M109: =IF(AND($K109=0,$H109<'Menu General'!$A$10),"En retard",IF($I109=$K109,"Soldé",IF(AND($O109<>0,$O109<$I109),"Partiel","En cours"))) -> Soldé | O109: =IF(ISERROR(VLOOKUP(E109,'LX02'!$A$1:$D$150,1,FALSE)),"","X") ->  | Q109: 200987697 | R109: LABORIE GIL | S109: 2 | T109: 80 | U109: 2 | V109: X489041602 | W109: 2.56
A110: 4700043684-30 | B110: 4700043684 | C110: 30 | D110: 2 | E110: 4939122056 | F110: POCHETTE RENAULT 330X260 RLT 1=100 | G110: 2016-06-29 | H110: 2016-06-28 | I110: 1 | J110: =IF(ISERROR(VLOOKUP(A110,base_sf[],6,FALSE)),"","X") ->  | K110: =IF(ISERROR(VLOOKUP(A110,base_sf[],11,0)),I110,VLOOKUP(A110,base_sf[],11,0)) -> 1 | L110: Soldé | M110: =IF(AND($K110=0,$H110<'Menu General'!$A$10),"En retard",IF($I110=$K110,"Soldé",IF(AND($O110<>0,$O110<$I110),"Partiel","En cours"))) -> Soldé | O110: =IF(ISERROR(VLOOKUP(E110,'LX02'!$A$1:$D$150,1,FALSE)),"","X") ->  | T110: 1 | U110: 100 | V110: X511130105 | W110: 1.5
A111: 4700043684-10 | B111: 4700043684 | C111: 10 | D111: 2 | E111: 4939034208 | F111: ETIQ.ADHES.COURRIER EXPRESS 1=50 | G111: 2016-06-29 | H111: 2016-06-28 | I111: 10 | J111: =IF(ISERROR(VLOOKUP(A111,base_sf[],6,FALSE)),"","X") ->  | K111: =IF(ISERROR(VLOOKUP(A111,base_sf[],11,0)),I111,VLOOKUP(A111,base_sf[],11,0)) -> 10 | L111: Soldé | M111: =IF(AND($K111=0,$H111<'Menu General'!$A$10),"En retard",IF($I111=$K111,"Soldé",IF(AND($O111<>0,$O111<$I111),"Partiel","En cours"))) -> Soldé | O111: =IF(ISERROR(VLOOKUP(E111,'LX02'!$A$1:$D$150,1,FALSE)),"","X") ->  | Q111: 200987647 | R111: CASANOVA PHILIPPE | S111: 100 | T111: 10 | U111: 100 | V111: X723011450 | W111: 60
A112: 4700043684-20 | B112: 4700043684 | C112: 20 | D112: 2 | E112: 4939034208 | F112: ETIQ.ADHES.COURRIER EXPRESS 1=50 | G112: 2016-06-29 | H112: 2016-06-28 | I112: 3 | J112: =IF(ISERROR(VLOOKUP(A112,base_sf[],6,FALSE)),"","X") ->  | K112: =IF(ISERROR(VLOOKUP(A112,base_sf[],11,0)),I112,VLOOKUP(A112,base_sf[],11,0)) -> 3 | L112: Soldé | M112: =IF(AND($K112=0,$H112<'Menu General'!$A$10),"En retard",IF($I112=$K112,"Soldé",IF(AND($O112<>0,$O112<$I112),"Partiel","En cours"))) -> Soldé | O112: =IF(ISERROR(VLOOKUP(E112,'LX02'!$A$1:$D$150,1,FALSE)),"","X") ->  | Q112: 200987647 | R112: CASANOVA PHILIPPE | S112: 20 | T112: 3 | U112: 20 | V112: X756004476 | W112: 10
A113: 4700043684-40 | B113: 4700043684 | C113: 40 | D113: 2 | E113: 4939122056 | F113: POCHETTE RENAULT 330X260 RLT 1=100 | G113: 2016-06-29 | H113: 2016-06-29 | I113: 1 | J113: =IF(ISERROR(VLOOKUP(A113,base_sf[],6,FALSE)),"","X") ->  | K113: =IF(ISERROR(VLOOKUP(A113,base_sf[],11,0)),I113,VLOOKUP(A113,base_sf[],11,0)) -> 1 | L113: Soldé | M113: =IF(AND($K113=0,$H113<'Menu General'!$A$10),"En retard",IF($I113=$K113,"Soldé",IF(AND($O113<>0,$O113<$I113),"Partiel","En cours"))) -> Soldé | O113: =IF(ISERROR(VLOOKUP(E113,'LX02'!$A$1:$D$150,1,FALSE)),"","X") ->  | Q113: 200975178 | R113: VEJUS CORINNE | S113: 1 | T113: 1
A114: 4700043684-50 | B114: 4700043684 | C114: 50 | D114: 2 | E114: 4939000500 | F114: BONS DE SERVICE DPR A4 IMPR. 1=2500 | G114: 2016-06-29 | H114: 2016-06-29 | I114: 160 | J114: =IF(ISERROR(VLOOKUP(A114,base_sf[],6,FALSE)),"","X") ->  | K114: =IF(ISERROR(VLOOKUP(A114,base_sf[],11,0)),I114,VLOOKUP(A114,base_sf[],11,0)) -> 160 | L114: Soldé | M114: =IF(AND($K114=0,$H114<'Menu General'!$A$10),"En retard",IF($I114=$K114,"Soldé",IF(AND($O114<>0,$O114<$I114),"Partiel","En cours"))) -> Soldé | O114: =IF(ISERROR(VLOOKUP(E114,'LX02'!$A$1:$D$150,1,FALSE)),"","X") ->  | Q114: 200977134 | R114: MASSON CHARLES | S114: 80 | T114: 160
A115: 4700043612-10 | B115: 4700043612 | C115: 10 | D115: 2 | E115: 4939122056 | F115: POCHETTE RENAULT 330X260 RLT 1=100 | G115: 2016-06-17 | H115: 2016-06-17 | I115: 1 | J115: =IF(ISERROR(VLOOKUP(A115,base_sf[],6,FALSE)),"","X") ->  | K115: =IF(ISERROR(VLOOKUP(A115,base_sf[],11,0)),I115,VLOOKUP(A115,base_sf[],11,0)) -> 1 | L115: Soldé | M115: =IF(AND($K115=0,$H115<'Menu General'!$A$10),"En retard",IF($I115=$K115,"Soldé",IF(AND($O115<>0,$O115<$I115),"Partiel","En cours"))) -> Soldé | O115: =IF(ISERROR(VLOOKUP(E115,'LX02'!$A$1:$D$150,1,FALSE)),"","X") ->  | Q115: 200975178 | R115: VEJUS CORINNE | S115: 1 | T115: 1
A116: 4700043627-260 | B116: 4700043627 | C116: 260 | E116: R100121820 | F116: BOUTEILLE 0,95L INK 16-8530 | G116: 2016-06-21 | H116: 2016-06-27 | I116: 1 | J116: =IF(ISERROR(VLOOKUP(A116,base_sf[],6,FALSE)),"","X") -> X | K116: =IF(ISERROR(VLOOKUP(A116,base_sf[],11,0)),I116,VLOOKUP(A116,base_sf[],11,0)) -> 0 | L116: Reliquat | M116: =IF(AND($K116=0,$H116<'Menu General'!$A$10),"En retard",IF($I116=$K116,"Soldé",IF(AND($O116<>0,$O116<$I116),"Partiel","En cours"))) -> En retard | O116: =IF(ISERROR(VLOOKUP(E116,'LX02'!$A$1:$D$150,1,FALSE)),"","X") ->  | T116: 1 | U116: 1 | V116: R100121820 | W116: 160
A117: 4700043637-10 | B117: 4700043637 | C117: 10 | D117: 2 | E117: 4939122056 | F117: POCHETTE RENAULT 330X260 RLT 1=100 | G117: 2016-06-22 | H117: 2016-06-21 | I117: 1 | J117: =IF(ISERROR(VLOOKUP(A117,base_sf[],6,FALSE)),"","X") ->  | K117: =IF(ISERROR(VLOOKUP(A117,base_sf[],11,0)),I117,VLOOKUP(A117,base_sf[],11,0)) -> 1 | L117: Soldé | M117: =IF(AND($K117=0,$H117<'Menu General'!$A$10),"En retard",IF($I117=$K117,"Soldé",IF(AND($O117<>0,$O117<$I117),"Partiel","En cours"))) -> Soldé | O117: =IF(ISERROR(VLOOKUP(E117,'LX02'!$A$1:$D$150,1,FALSE)),"","X") ->  | Q117: 200975178 | R117: VEJUS CORINNE | S117: 1 | T117: 1
A118: 4700043637-20 | B118: 4700043637 | C118: 20 | D118: 2 | E118: 4939034208 | F118: ETIQ.ADHES.COURRIER EXPRESS 1=50 | G118: 2016-06-22 | H118: 2016-06-22 | I118: 2 | J118: =IF(ISERROR(VLOOKUP(A118,base_sf[],6,FALSE)),"","X") ->  | K118: =IF(ISERROR(VLOOKUP(A118,base_sf[],11,0)),I118,VLOOKUP(A118,base_sf[],11,0)) -> 2 | L118: Soldé | M118: =IF(AND($K118=0,$H118<'Menu General'!$A$10),"En retard",IF($I118=$K118,"Soldé",IF(AND($O118<>0,$O118<$I118),"Partiel","En cours"))) -> Soldé | O118: =IF(ISERROR(VLOOKUP(E118,'LX02'!$A$1:$D$150,1,FALSE)),"","X") ->  | Q118: 200975100 | R118: FRENAY SYLVIE | S118: 1 | T118: 2
A119: 4700043636-380 | B119: 4700043636 | C119: 380 | E119: P935171772 | F119: ECOUVILLON D:12,5 FIL ACIER THR 0,22 DBL | G119: 2016-06-22 | H119: 2016-06-27 | I119: 2 | J119: =IF(ISERROR(VLOOKUP(A119,base_sf[],6,FALSE)),"","X") -> X | K119: =IF(ISERROR(VLOOKUP(A119,base_sf[],11,0)),I119,VLOOKUP(A119,base_sf[],11,0)) -> 0 | L119: Reliquat | M119: =IF(AND($K119=0,$H119<'Menu General'!$A$10),"En retard",IF($I119=$K119,"Soldé",IF(AND($O119<>0,$O119<$I119),"Partiel","En cours"))) -> En retard | O119: =IF(ISERROR(VLOOKUP(E119,'LX02'!$A$1:$D$150,1,FALSE)),"","X") ->  | T119: 2 | U119: 2 | V119: P935171772 | W119: 25.92
A120: 4700043653-240 | B120: 4700043653 | C120: 240 | E120: R100135045 | F120: HUILE ANTI CORROSION CONTRAKOR 16 L BIDO | G120: 2016-06-24 | H120: 2016-06-29 | I120: 20 | J120: =IF(ISERROR(VLOOKUP(A120,base_sf[],6,FALSE)),"","X") -> X | K120: =IF(ISERROR(VLOOKUP(A120,base_sf[],11,0)),I120,VLOOKUP(A120,base_sf[],11,0)) -> 14 | L120: Litige ou 351 | M120: =IF(AND($K120=0,$H120<'Menu General'!$A$10),"En retard",IF($I120=$K120,"Soldé",IF(AND($O120<>0,$O120<$I120),"Partiel","En cours"))) -> En cours | O120: =IF(ISERROR(VLOOKUP(E120,'LX02'!$A$1:$D$150,1,FALSE)),"","X") ->  | Q120: 200976610 | R120: PAIN GABRIEL | S120: 20 | T120: 20 | U120: 20 | V120: R100135045 | W120: 7.480,00
A121: 4700043653-400 | B121: 4700043653 | C121: 400 | E121: X511312501 | F121: RONDELLE GROWER W 8 INOX A 4 | G121: 2016-06-24 | H121: 2016-06-29 | I121: 100 | J121: =IF(ISERROR(VLOOKUP(A121,base_sf[],6,FALSE)),"","X") ->  | K121: =IF(ISERROR(VLOOKUP(A121,base_sf[],11,0)),I121,VLOOKUP(A121,base_sf[],11,0)) -> 100 | L121: Soldé | M121: =IF(AND($K121=0,$H121<'Menu General'!$A$10),"En retard",IF($I121=$K121,"Soldé",IF(AND($O121<>0,$O121<$I121),"Partiel","En cours"))) -> Soldé | O121: =IF(ISERROR(VLOOKUP(E121,'LX02'!$A$1:$D$150,1,FALSE)),"","X") ->  | Q121: 200976237 | R121: DONIGHIAN PHILIPPE MICHEL | S121: 60 | T121: 100 | U121: 20 | V121: X511312501 | W121: 0.17
A122: 4700043654-10 | B122: 4700043654 | C122: 10 | D122: 2 | E122: 4939635036 | F122: FIN B.L.S.LIASSE/LIASSE 1=250 | G122: 2016-06-24 | H122: 2016-06-24 | I122: 1 | J122: =IF(ISERROR(VLOOKUP(A122,base_sf[],6,FALSE)),"","X") ->  | K122: =IF(ISERROR(VLOOKUP(A122,base_sf[],11,0)),I122,VLOOKUP(A122,base_sf[],11,0)) -> 1 | L122: Soldé | M122: =IF(AND($K122=0,$H122<'Menu General'!$A$10),"En retard",IF($I122=$K122,"Soldé",IF(AND($O122<>0,$O122<$I122),"Partiel","En cours"))) -> Soldé | O122: =IF(ISERROR(VLOOKUP(E122,'LX02'!$A$1:$D$150,1,FALSE)),"","X") ->  | Q122: 200975169 | R122: CADET ROBERT | S122: 12 | T122: 1
A123: 4700043673-10 | B123: 4700043673 | C123: 10 | D123: 2 | E123: 4939034209 | F123: ETIQ.ADHES.RECOMMANDEE AR 1=50 | G123: 2016-06-28 | H123: 2016-07-05 | I123: 6 | J123: =IF(ISERROR(VLOOKUP(A123,base_sf[],6,FALSE)),"","X") ->  | K123: =IF(ISERROR(VLOOKUP(A123,base_sf[],11,0)),I123,VLOOKUP(A123,base_sf[],11,0)) -> 6 | L123: Soldé | M123: =IF(AND($K123=0,$H123<'Menu General'!$A$10),"En retard",IF($I123=$K123,"Soldé",IF(AND($O123<>0,$O123<$I123),"Partiel","En cours"))) -> Soldé | O123: =IF(ISERROR(VLOOKUP(E123,'LX02'!$A$1:$D$150,1,FALSE)),"","X") ->  | Q123: 200975215 | R123: HUOR SYLVIE | S123: 1 | T123: 6
A124: 4700043673-20 | B124: 4700043673 | C124: 20 | D124: 2 | E124: 4939121791 | F124: LOT DE 250 POCHETTES ENVELOPPES INTERSER | G124: 2016-06-28 | H124: 2016-07-05 | I124: 3 | J124: =IF(ISERROR(VLOOKUP(A124,base_sf[],6,FALSE)),"","X") ->  | K124: =IF(ISERROR(VLOOKUP(A124,base_sf[],11,0)),I124,VLOOKUP(A124,base_sf[],11,0)) -> 3 | L124: Soldé | M124: =IF(AND($K124=0,$H124<'Menu General'!$A$10),"En retard",IF($I124=$K124,"Soldé",IF(AND($O124<>0,$O124<$I124),"Partiel","En cours"))) -> Soldé | O124: =IF(ISERROR(VLOOKUP(E124,'LX02'!$A$1:$D$150,1,FALSE)),"","X") ->  | Q124: 200974799 | R124: LABEILLE ALEXANDRA | S124: 3 | T124: 3
A125: 4700043673-30 | B125: 4700043673 | C125: 30 | D125: 2 | E125: 4939122056 | F125: POCHETTE RENAULT 330X260 RLT 1=100 | G125: 2016-06-28 | H125: 2016-07-05 | I125: 3 | J125: =IF(ISERROR(VLOOKUP(A125,base_sf[],6,FALSE)),"","X") ->  | K125: =IF(ISERROR(VLOOKUP(A125,base_sf[],11,0)),I125,VLOOKUP(A125,base_sf[],11,0)) -> 3 | L125: Soldé | M125: =IF(AND($K125=0,$H125<'Menu General'!$A$10),"En retard",IF($I125=$K125,"Soldé",IF(AND($O125<>0,$O125<$I125),"Partiel","En cours"))) -> Soldé | O125: =IF(ISERROR(VLOOKUP(E125,'LX02'!$A$1:$D$150,1,FALSE)),"","X") ->  | Q125: 200975178 | R125: VEJUS CORINNE | S125: 1 | T125: 3
A126: 4700043672-100 | B126: 4700043672 | C126: 100 | E126: P761068670 | F126: METRE A RUBAN 5M LECTURE DIRECTE LARG:19 | G126: 2016-06-28 | H126: 2016-07-08 | I126: 2 | J126: =IF(ISERROR(VLOOKUP(A126,base_sf[],6,FALSE)),"","X") -> X | K126: =IF(ISERROR(VLOOKUP(A126,base_sf[],11,0)),I126,VLOOKUP(A126,base_sf[],11,0)) -> 0 | L126: Reliquat | M126: =IF(AND($K126=0,$H126<'Menu General'!$A$10),"En retard",IF($I126=$K126,"Soldé",IF(AND($O126<>0,$O126<$I126),"Partiel","En cours"))) -> En retard | O126: =IF(ISERROR(VLOOKUP(E126,'LX02'!$A$1:$D$150,1,FALSE)),"","X") ->  | Q126: 200979104 | R126: GUIGNOT SILVERE | S126: 2 | T126: 2 | U126: 5 | V126: P761068670 | W126: 33.85
A127: 4700043672-500 | B127: 4700043672 | C127: 500 | E127: R100503609 | F127: BLOUSON TAILLE 2 MATELASSE 2 EN 1 | G127: 2016-06-28 | H127: 2016-09-26 | I127: 1 | J127: =IF(ISERROR(VLOOKUP(A127,base_sf[],6,FALSE)),"","X") ->  | K127: =IF(ISERROR(VLOOKUP(A127,base_sf[],11,0)),I127,VLOOKUP(A127,base_sf[],11,0)) -> 1 | L127: Soldé | M127: =IF(AND($K127=0,$H127<'Menu General'!$A$10),"En retard",IF($I127=$K127,"Soldé",IF(AND($O127<>0,$O127<$I127),"Partiel","En cours"))) -> Soldé | O127: =IF(ISERROR(VLOOKUP(E127,'LX02'!$A$1:$D$150,1,FALSE)),"","X") ->  | Q127: 200979141 | R127: DENIS JEAN CLAUDE | S127: 1 | T127: 1 | U127: 1 | V127: R100503609 | W127: 19.64
A128: 4700043683-270 | B128: 4700043683 | C128: 270 | E128: R100586997 | F128: GANT ELECTRICIEN ISOLANT LATEX CLASSE 00 | G128: 2016-06-29 | H128: 2016-07-04 | I128: 1 | J128: =IF(ISERROR(VLOOKUP(A128,base_sf[],6,FALSE)),"","X") -> X | K128: =IF(ISERROR(VLOOKUP(A128,base_sf[],11,0)),I128,VLOOKUP(A128,base_sf[],11,0)) -> 0 | L128: Reliquat | M128: =IF(AND($K128=0,$H128<'Menu General'!$A$10),"En retard",IF($I128=$K128,"Soldé",IF(AND($O128<>0,$O128<$I128),"Partiel","En cours"))) -> En retard | O128: =IF(ISERROR(VLOOKUP(E128,'LX02'!$A$1:$D$150,1,FALSE)),"","X") ->  | T128: 1 | U128: 1 | V128: R100586997 | W128: 51.25
A129: 4700043718-60 | B129: 4700043718 | C129: 60 | D129: 2 | E129: 4939126180 | F129: ENVELOPPE RENAULT 110X220 FENETRE 1=100 | G129: 2016-07-05 | H129: 2016-07-05 | I129: 8 | J129: =IF(ISERROR(VLOOKUP(A129,base_sf[],6,FALSE)),"","X") ->  | K129: =IF(ISERROR(VLOOKUP(A129,base_sf[],11,0)),I129,VLOOKUP(A129,base_sf[],11,0)) -> 8 | L129: Soldé | M129: =IF(AND($K129=0,$H129<'Menu General'!$A$10),"En retard",IF($I129=$K129,"Soldé",IF(AND($O129<>0,$O129<$I129),"Partiel","En cours"))) -> Soldé | O129: =IF(ISERROR(VLOOKUP(E129,'LX02'!$A$1:$D$150,1,FALSE)),"","X") ->  | Q129: 200976435 | R129: BEAUMONT MARTINE | S129: 5 | T129: 8
A130: 4700043718-50 | B130: 4700043718 | C130: 50 | D130: 2 | E130: 4939000500 | F130: BONS DE SERVICE DPR A4 IMPR. 1=2500 | G130: 2016-07-05 | H130: 2016-07-05 | I130: 80 | J130: =IF(ISERROR(VLOOKUP(A130,base_sf[],6,FALSE)),"","X") ->  | K130: =IF(ISERROR(VLOOKUP(A130,base_sf[],11,0)),I130,VLOOKUP(A130,base_sf[],11,0)) -> 80 | L130: Soldé | M130: =IF(AND($K130=0,$H130<'Menu General'!$A$10),"En retard",IF($I130=$K130,"Soldé",IF(AND($O130<>0,$O130<$I130),"Partiel","En cours"))) -> Soldé | O130: =IF(ISERROR(VLOOKUP(E130,'LX02'!$A$1:$D$150,1,FALSE)),"","X") ->  | Q130: 200977134 | R130: MASSON CHARLES | S130: 80 | T130: 80
A131: =CONCATENATE(B131,"-",C131) -> 4700043718-10 | B131: 4700043718 | C131: 10 | D131: 2 | E131: 4939003490 | F131: DOSSIER ACHAT CONSULT 1=100 | G131: 2016-07-05 | H131: 2016-07-04 | I131: 2 | J131: =IF(ISERROR(VLOOKUP(A131,base_sf[],6,FALSE)),"","X") ->  | K131: =IF(ISERROR(VLOOKUP(A131,base_sf[],11,0)),I131,VLOOKUP(A131,base_sf[],11,0)) -> 2 | L131: =IF(I131=K131,"Soldé",IF(AND(K131<I131,K131<>0),"Litige ou 351","Reliquat")) -> Soldé | M131: =IF(AND($K131=0,$H131<'Menu General'!$A$10),"En retard",IF($I131=$K131,"Soldé",IF(AND($O131<>0,$O131<$I131),"Partiel","En cours"))) -> Soldé | O131: =IF(ISERROR(VLOOKUP(E131,'LX02'!$A$1:$D$150,1,FALSE)),"","X") ->  | Q131: 200977795 | R131: DUPRE MARYLINE | S131: 6 | T131: =I131 -> 2
A132: 4700043718-20 | B132: 4700043718 | C132: 20 | D132: 2 | E132: R100138319 | F132: ENV BLANC 225X350 F/LOG RLT 1=250 | G132: 2016-07-05 | H132: 2016-07-04 | I132: 1 | J132: =IF(ISERROR(VLOOKUP(A132,base_sf[],6,FALSE)),"","X") ->  | K132: =IF(ISERROR(VLOOKUP(A132,base_sf[],11,0)),I132,VLOOKUP(A132,base_sf[],11,0)) -> 1 | L132: Soldé | M132: =IF(AND($K132=0,$H132<'Menu General'!$A$10),"En retard",IF($I132=$K132,"Soldé",IF(AND($O132<>0,$O132<$I132),"Partiel","En cours"))) -> Soldé | O132: =IF(ISERROR(VLOOKUP(E132,'LX02'!$A$1:$D$150,1,FALSE)),"","X") ->  | Q132: 200977144 | R132: MADI YAMINA | S132: 1 | T132: 1
A133: 4700043718-30 | B133: 4700043718 | C133: 30 | D133: 2 | E133: 4939122056 | F133: POCHETTE RENAULT 330X260 RLT 1=100 | G133: 2016-07-05 | H133: 2016-07-04 | I133: 2 | J133: =IF(ISERROR(VLOOKUP(A133,base_sf[],6,FALSE)),"","X") ->  | K133: =IF(ISERROR(VLOOKUP(A133,base_sf[],11,0)),I133,VLOOKUP(A133,base_sf[],11,0)) -> 2 | L133: Soldé | M133: =IF(AND($K133=0,$H133<'Menu General'!$A$10),"En retard",IF($I133=$K133,"Soldé",IF(AND($O133<>0,$O133<$I133),"Partiel","En cours"))) -> Soldé | O133: =IF(ISERROR(VLOOKUP(E133,'LX02'!$A$1:$D$150,1,FALSE)),"","X") ->  | Q133: 200975178 | R133: VEJUS CORINNE | S133: 1 | T133: 2
A134: 4700043718-40 | B134: 4700043718 | C134: 40 | D134: 2 | E134: 4939031085 | F134: FEUILLES BONS COMPLETS CDPR BLANCS 1=500 | G134: 2016-07-05 | H134: 2016-07-05 | I134: 50 | J134: =IF(ISERROR(VLOOKUP(A134,base_sf[],6,FALSE)),"","X") ->  | K134: =IF(ISERROR(VLOOKUP(A134,base_sf[],11,0)),I134,VLOOKUP(A134,base_sf[],11,0)) -> 50 | L134: Soldé | M134: =IF(AND($K134=0,$H134<'Menu General'!$A$10),"En retard",IF($I134=$K134,"Soldé",IF(AND($O134<>0,$O134<$I134),"Partiel","En cours"))) -> Soldé | O134: =IF(ISERROR(VLOOKUP(E134,'LX02'!$A$1:$D$150,1,FALSE)),"","X") ->  | Q134: 200977139 | R134: MASSON CHARLES | S134: 50 | T134: 50
A135: 4700043693-10 | B135: 4700043693 | C135: 10 | D135: 2 | E135: 4939121791 | F135: LOT DE 250 POCHETTES ENVELOPPES INTERSER | G135: 2016-06-30 | H135: 2016-07-05 | I135: 2 | J135: =IF(ISERROR(VLOOKUP(A135,base_sf[],6,FALSE)),"","X") ->  | K135: =IF(ISERROR(VLOOKUP(A135,base_sf[],11,0)),I135,VLOOKUP(A135,base_sf[],11,0)) -> 2 | L135: Soldé | M135: =IF(AND($K135=0,$H135<'Menu General'!$A$10),"En retard",IF($I135=$K135,"Soldé",IF(AND($O135<>0,$O135<$I135),"Partiel","En cours"))) -> Soldé | O135: =IF(ISERROR(VLOOKUP(E135,'LX02'!$A$1:$D$150,1,FALSE)),"","X") ->  | Q135: 200974799 | R135: LABEILLE ALEXANDRA | S135: 3 | T135: 2
A136: 4700043701-10 | B136: 4700043701 | C136: 10 | D136: 2 | E136: 4939126091 | F136: ENVELOPPE BUL. 110X220 INTERNE/API 1=100 | G136: 2016-07-01 | H136: 2016-07-01 | I136: 5 | J136: =IF(ISERROR(VLOOKUP(A136,base_sf[],6,FALSE)),"","X") ->  | K136: =IF(ISERROR(VLOOKUP(A136,base_sf[],11,0)),I136,VLOOKUP(A136,base_sf[],11,0)) -> 5 | L136: Soldé | M136: =IF(AND($K136=0,$H136<'Menu General'!$A$10),"En retard",IF($I136=$K136,"Soldé",IF(AND($O136<>0,$O136<$I136),"Partiel","En cours"))) -> Soldé | O136: =IF(ISERROR(VLOOKUP(E136,'LX02'!$A$1:$D$150,1,FALSE)),"","X") ->  | Q136: 200975097 | R136: VANDENHENDE CHRISTIAN | S136: 1 | T136: 5
A137: 4700043710-10 | B137: 4700043710 | C137: 10 | D137: 2 | E137: 4939126091 | F137: ENVELOPPE BUL. 110X220 INTERNE/API 1=100 | G137: 2016-07-04 | H137: 2016-07-01 | I137: 2 | J137: =IF(ISERROR(VLOOKUP(A137,base_sf[],6,FALSE)),"","X") ->  | K137: =IF(ISERROR(VLOOKUP(A137,base_sf[],11,0)),I137,VLOOKUP(A137,base_sf[],11,0)) -> 2 | L137: Soldé | M137: =IF(AND($K137=0,$H137<'Menu General'!$A$10),"En retard",IF($I137=$K137,"Soldé",IF(AND($O137<>0,$O137<$I137),"Partiel","En cours"))) -> Soldé | O137: =IF(ISERROR(VLOOKUP(E137,'LX02'!$A$1:$D$150,1,FALSE)),"","X") ->  | Q137: 200975097 | R137: VANDENHENDE CHRISTIAN | S137: 1 | T137: 2
A138: 4700043710-20 | B138: 4700043710 | C138: 20 | D138: 2 | E138: 4939121791 | F138: LOT DE 250 POCHETTES ENVELOPPES INTERSER | G138: 2016-07-04 | H138: 2016-07-01 | I138: 1 | J138: =IF(ISERROR(VLOOKUP(A138,base_sf[],6,FALSE)),"","X") ->  | K138: =IF(ISERROR(VLOOKUP(A138,base_sf[],11,0)),I138,VLOOKUP(A138,base_sf[],11,0)) -> 1 | L138: Soldé | M138: =IF(AND($K138=0,$H138<'Menu General'!$A$10),"En retard",IF($I138=$K138,"Soldé",IF(AND($O138<>0,$O138<$I138),"Partiel","En cours"))) -> Soldé | O138: =IF(ISERROR(VLOOKUP(E138,'LX02'!$A$1:$D$150,1,FALSE)),"","X") ->  | Q138: 200974799 | R138: LABEILLE ALEXANDRA | S138: 3 | T138: 1
A139: 4700043710-30 | B139: 4700043710 | C139: 30 | D139: 2 | E139: 4939034208 | F139: ETIQ.ADHES.COURRIER EXPRESS 1=50 | G139: 2016-07-04 | H139: 2016-07-04 | I139: 1 | J139: =IF(ISERROR(VLOOKUP(A139,base_sf[],6,FALSE)),"","X") ->  | K139: =IF(ISERROR(VLOOKUP(A139,base_sf[],11,0)),I139,VLOOKUP(A139,base_sf[],11,0)) -> 1 | L139: Soldé | M139: =IF(AND($K139=0,$H139<'Menu General'!$A$10),"En retard",IF($I139=$K139,"Soldé",IF(AND($O139<>0,$O139<$I139),"Partiel","En cours"))) -> Soldé | O139: =IF(ISERROR(VLOOKUP(E139,'LX02'!$A$1:$D$150,1,FALSE)),"","X") ->  | Q139: 200975100 | R139: FRENAY SYLVIE | S139: 1 | T139: 1
A140: 4700043710-40 | B140: 4700043710 | C140: 40 | D140: 2 | E140: 4939034209 | F140: ETIQ.ADHES.RECOMMANDEE AR 1=50 | G140: 2016-07-04 | H140: 2016-07-04 | I140: 1 | J140: =IF(ISERROR(VLOOKUP(A140,base_sf[],6,FALSE)),"","X") ->  | K140: =IF(ISERROR(VLOOKUP(A140,base_sf[],11,0)),I140,VLOOKUP(A140,base_sf[],11,0)) -> 1 | L140: Soldé | M140: =IF(AND($K140=0,$H140<'Menu General'!$A$10),"En retard",IF($I140=$K140,"Soldé",IF(AND($O140<>0,$O140<$I140),"Partiel","En cours"))) -> Soldé | O140: =IF(ISERROR(VLOOKUP(E140,'LX02'!$A$1:$D$150,1,FALSE)),"","X") ->  | Q140: 200975215 | R140: HUOR SYLVIE | S140: 1 | T140: 1
A141: 4700043709-390 | B141: 4700043709 | C141: 390 | E141: P761068670 | F141: METRE A RUBAN 5M LECTURE DIRECTE LARG:19 | G141: 2016-07-04 | H141: 2016-07-11 | I141: 3 | J141: =IF(ISERROR(VLOOKUP(A141,base_sf[],6,FALSE)),"","X") -> X | K141: =IF(ISERROR(VLOOKUP(A141,base_sf[],11,0)),I141,VLOOKUP(A141,base_sf[],11,0)) -> 0 | L141: Reliquat | M141: =IF(AND($K141=0,$H141<'Menu General'!$A$10),"En retard",IF($I141=$K141,"Soldé",IF(AND($O141<>0,$O141<$I141),"Partiel","En cours"))) -> En retard | O141: =IF(ISERROR(VLOOKUP(E141,'LX02'!$A$1:$D$150,1,FALSE)),"","X") ->  | Q141: 200979104 | R141: GUIGNOT SILVERE | S141: 2 | T141: 3 | U141: 5 | V141: P761068670 | W141: 33.85
A142: 4700043709-400 | B142: 4700043709 | C142: 400 | E142: P761068670 | F142: METRE A RUBAN 5M LECTURE DIRECTE LARG:19 | G142: 2016-07-04 | H142: 2016-07-11 | I142: 2 | J142: =IF(ISERROR(VLOOKUP(A142,base_sf[],6,FALSE)),"","X") -> X | K142: =IF(ISERROR(VLOOKUP(A142,base_sf[],11,0)),I142,VLOOKUP(A142,base_sf[],11,0)) -> 0 | L142: Reliquat | M142: =IF(AND($K142=0,$H142<'Menu General'!$A$10),"En retard",IF($I142=$K142,"Soldé",IF(AND($O142<>0,$O142<$I142),"Partiel","En cours"))) -> En retard | O142: =IF(ISERROR(VLOOKUP(E142,'LX02'!$A$1:$D$150,1,FALSE)),"","X") ->  | Q142: 200979104 | R142: GUIGNOT SILVERE | S142: 2 | T142: 2 | U142: 5 | V142: P761068670 | W142: 33.85
A143: 4700043717-150 | B143: 4700043717 | C143: 150 | E143: X140062050 | F143: EMBOUT OGIVE LAITON PASS.4 PR TUYAU D. | G143: 2016-07-05 | H143: 2016-07-07 | I143: 100 | J143: =IF(ISERROR(VLOOKUP(A143,base_sf[],6,FALSE)),"","X") -> X | K143: =IF(ISERROR(VLOOKUP(A143,base_sf[],11,0)),I143,VLOOKUP(A143,base_sf[],11,0)) -> 0 | L143: Reliquat | M143: =IF(AND($K143=0,$H143<'Menu General'!$A$10),"En retard",IF($I143=$K143,"Soldé",IF(AND($O143<>0,$O143<$I143),"Partiel","En cours"))) -> En retard | O143: =IF(ISERROR(VLOOKUP(E143,'LX02'!$A$1:$D$150,1,FALSE)),"","X") ->  | Q143: 200978817 | R143: PICHOT JEAN CHARLES | S143: 30 | T143: 100 | U143: 4 | V143: X140062050 | W143: 7.52
A144: 4700043717-230 | B144: 4700043717 | C144: 230 | E144: R100438456 | F144: POLO MANCHES COURTES MAILLE PIQUEE GRIS | G144: 2016-07-05 | H144: 2016-10-10 | I144: 3 | J144: =IF(ISERROR(VLOOKUP(A144,base_sf[],6,FALSE)),"","X") ->  | K144: =IF(ISERROR(VLOOKUP(A144,base_sf[],11,0)),I144,VLOOKUP(A144,base_sf[],11,0)) -> 3 | L144: Soldé | M144: =IF(AND($K144=0,$H144<'Menu General'!$A$10),"En retard",IF($I144=$K144,"Soldé",IF(AND($O144<>0,$O144<$I144),"Partiel","En cours"))) -> Soldé | O144: =IF(ISERROR(VLOOKUP(E144,'LX02'!$A$1:$D$150,1,FALSE)),"","X") ->  | Q144: 200976671 | R144: PIGEON WALTER | S144: 600 | T144: 3 | U144: 5 | V144: R100438456 | W144: 37.5
A145: 4700043724-60 | B145: 4700043724 | C145: 60 | D145: 2 | E145: X417205100 | F145: VIS A TETE CYL CHC 6PANS CREUX M 6 | G145: 2016-07-05 | H145: 2016-07-05 | I145: 100 | J145: =IF(ISERROR(VLOOKUP(A145,base_sf[],6,FALSE)),"","X") ->  | K145: =IF(ISERROR(VLOOKUP(A145,base_sf[],11,0)),I145,VLOOKUP(A145,base_sf[],11,0)) -> 100 | L145: Soldé | M145: =IF(AND($K145=0,$H145<'Menu General'!$A$10),"En retard",IF($I145=$K145,"Soldé",IF(AND($O145<>0,$O145<$I145),"Partiel","En cours"))) -> Soldé | O145: =IF(ISERROR(VLOOKUP(E145,'LX02'!$A$1:$D$150,1,FALSE)),"","X") ->  | Q145: 200979883 | R145: MARGUERITE FABIEN | S145: 100 | T145: 100 | U145: 100 | V145: X417205100 | W145: 7.63
A146: 4700043737-10 | B146: 4700043737 | C146: 10 | D146: 2 | E146: 4939031075 | F146: ETIQUETTE COLIS URGENT 1=800 | G146: 2016-07-07 | H146: 2016-07-07 | I146: 60 | J146: =IF(ISERROR(VLOOKUP(A146,base_sf[],6,FALSE)),"","X") ->  | K146: =IF(ISERROR(VLOOKUP(A146,base_sf[],11,0)),I146,VLOOKUP(A146,base_sf[],11,0)) -> 60 | L146: Soldé | M146: =IF(AND($K146=0,$H146<'Menu General'!$A$10),"En retard",IF($I146=$K146,"Soldé",IF(AND($O146<>0,$O146<$I146),"Partiel","En cours"))) -> Soldé | O146: =IF(ISERROR(VLOOKUP(E146,'LX02'!$A$1:$D$150,1,FALSE)),"","X") ->  | Q146: 200975673 | R146: CADET ROBERT | S146: 60 | T146: 60
A147: 4700043737-20 | B147: 4700043737 | C147: 20 | D147: 2 | E147: 4939031080 | F147: ETIQ.COLIS STOCK BLEU/JAUNE 1=1000 | G147: 2016-07-07 | H147: 2016-07-07 | I147: 50 | J147: =IF(ISERROR(VLOOKUP(A147,base_sf[],6,FALSE)),"","X") ->  | K147: =IF(ISERROR(VLOOKUP(A147,base_sf[],11,0)),I147,VLOOKUP(A147,base_sf[],11,0)) -> 50 | L147: Soldé | M147: =IF(AND($K147=0,$H147<'Menu General'!$A$10),"En retard",IF($I147=$K147,"Soldé",IF(AND($O147<>0,$O147<$I147),"Partiel","En cours"))) -> Soldé | O147: =IF(ISERROR(VLOOKUP(E147,'LX02'!$A$1:$D$150,1,FALSE)),"","X") ->  | Q147: 200974789 | R147: BERANGE GERARD VALERIEN | S147: 150 | T147: 50
A148: 4700043737-30 | B148: 4700043737 | C148: 30 | D148: 2 | E148: 4939635036 | F148: FIN B.L.S.LIASSE/LIASSE 1=250 | G148: 2016-07-07 | H148: 2016-07-07 | I148: 1 | J148: =IF(ISERROR(VLOOKUP(A148,base_sf[],6,FALSE)),"","X") ->  | K148: =IF(ISERROR(VLOOKUP(A148,base_sf[],11,0)),I148,VLOOKUP(A148,base_sf[],11,0)) -> 1 | L148: Soldé | M148: =IF(AND($K148=0,$H148<'Menu General'!$A$10),"En retard",IF($I148=$K148,"Soldé",IF(AND($O148<>0,$O148<$I148),"Partiel","En cours"))) -> Soldé | O148: =IF(ISERROR(VLOOKUP(E148,'LX02'!$A$1:$D$150,1,FALSE)),"","X") ->  | Q148: 200975169 | R148: CADET ROBERT | S148: 12 | T148: 1
A149: 4700043737-40 | B149: 4700043737 | C149: 40 | D149: 2 | E149: 4939121791 | F149: LOT DE 250 POCHETTES ENVELOPPES INTERSER | G149: 2016-07-07 | H149: 2016-07-07 | I149: 1 | J149: =IF(ISERROR(VLOOKUP(A149,base_sf[],6,FALSE)),"","X") ->  | K149: =IF(ISERROR(VLOOKUP(A149,base_sf[],11,0)),I149,VLOOKUP(A149,base_sf[],11,0)) -> 1 | L149: Soldé | M149: =IF(AND($K149=0,$H149<'Menu General'!$A$10),"En retard",IF($I149=$K149,"Soldé",IF(AND($O149<>0,$O149<$I149),"Partiel","En cours"))) -> Soldé | O149: =IF(ISERROR(VLOOKUP(E149,'LX02'!$A$1:$D$150,1,FALSE)),"","X") ->  | Q149: 200974799 | R149: LABEILLE ALEXANDRA | S149: 3 | T149: 1
A150: 4700043737-50 | B150: 4700043737 | C150: 50 | D150: 2 | E150: 4939122056 | F150: POCHETTE RENAULT 330X260 RLT 1=100 | G150: 2016-07-07 | H150: 2016-07-07 | I150: 1 | J150: =IF(ISERROR(VLOOKUP(A150,base_sf[],6,FALSE)),"","X") ->  | K150: =IF(ISERROR(VLOOKUP(A150,base_sf[],11,0)),I150,VLOOKUP(A150,base_sf[],11,0)) -> 1 | L150: Soldé | M150: =IF(AND($K150=0,$H150<'Menu General'!$A$10),"En retard",IF($I150=$K150,"Soldé",IF(AND($O150<>0,$O150<$I150),"Partiel","En cours"))) -> Soldé | O150: =IF(ISERROR(VLOOKUP(E150,'LX02'!$A$1:$D$150,1,FALSE)),"","X") ->  | Q150: 200975178 | R150: VEJUS CORINNE | S150: 1 | T150: 1
A151: 4700043745-310 | B151: 4700043745 | C151: 310 | E151: 7711780992 | F151: TEE-SHIRT HOMME CORPORATE NOIR M | G151: 2016-07-08 | H151: 2016-07-11 | I151: 20 | J151: =IF(ISERROR(VLOOKUP(A151,base_sf[],6,FALSE)),"","X") ->  | K151: =IF(ISERROR(VLOOKUP(A151,base_sf[],11,0)),I151,VLOOKUP(A151,base_sf[],11,0)) -> 20 | L151: Soldé | M151: =IF(AND($K151=0,$H151<'Menu General'!$A$10),"En retard",IF($I151=$K151,"Soldé",IF(AND($O151<>0,$O151<$I151),"Partiel","En cours"))) -> Soldé | O151: =IF(ISERROR(VLOOKUP(E151,'LX02'!$A$1:$D$150,1,FALSE)),"","X") ->  | Q151: 200980257 | R151: DEBONNET DIDIER | S151: 20 | T151: 20
A152: 4700043745-320 | B152: 4700043745 | C152: 320 | E152: 7711780993 | F152: TEE-SHIRT HOMME CORPORATE NOIR L | G152: 2016-07-08 | H152: 2016-07-11 | I152: 40 | J152: =IF(ISERROR(VLOOKUP(A152,base_sf[],6,FALSE)),"","X") ->  | K152: =IF(ISERROR(VLOOKUP(A152,base_sf[],11,0)),I152,VLOOKUP(A152,base_sf[],11,0)) -> 40 | L152: Soldé | M152: =IF(AND($K152=0,$H152<'Menu General'!$A$10),"En retard",IF($I152=$K152,"Soldé",IF(AND($O152<>0,$O152<$I152),"Partiel","En cours"))) -> Soldé | O152: =IF(ISERROR(VLOOKUP(E152,'LX02'!$A$1:$D$150,1,FALSE)),"","X") ->  | Q152: 200980257 | R152: DEBONNET DIDIER | S152: 40 | T152: 40
A153: 4700043745-330 | B153: 4700043745 | C153: 330 | E153: 7711780994 | F153: TEE-SHIRT HOMME CORPORATE NOIRXL | G153: 2016-07-08 | H153: 2016-07-11 | I153: 40 | J153: =IF(ISERROR(VLOOKUP(A153,base_sf[],6,FALSE)),"","X") ->  | K153: =IF(ISERROR(VLOOKUP(A153,base_sf[],11,0)),I153,VLOOKUP(A153,base_sf[],11,0)) -> 40 | L153: Soldé | M153: =IF(AND($K153=0,$H153<'Menu General'!$A$10),"En retard",IF($I153=$K153,"Soldé",IF(AND($O153<>0,$O153<$I153),"Partiel","En cours"))) -> Soldé | O153: =IF(ISERROR(VLOOKUP(E153,'LX02'!$A$1:$D$150,1,FALSE)),"","X") ->  | Q153: 200980257 | R153: DEBONNET DIDIER | S153: 40 | T153: 40
A154: 4700043745-340 | B154: 4700043745 | C154: 340 | E154: 7711780995 | F154: TEE-SHIRT HOMME CORPORATE NOIRXXL | G154: 2016-07-08 | H154: 2016-07-11 | I154: 20 | J154: =IF(ISERROR(VLOOKUP(A154,base_sf[],6,FALSE)),"","X") ->  | K154: =IF(ISERROR(VLOOKUP(A154,base_sf[],11,0)),I154,VLOOKUP(A154,base_sf[],11,0)) -> 20 | L154: Soldé | M154: =IF(AND($K154=0,$H154<'Menu General'!$A$10),"En retard",IF($I154=$K154,"Soldé",IF(AND($O154<>0,$O154<$I154),"Partiel","En cours"))) -> Soldé | O154: =IF(ISERROR(VLOOKUP(E154,'LX02'!$A$1:$D$150,1,FALSE)),"","X") ->  | Q154: 200980257 | R154: DEBONNET DIDIER | S154: 20 | T154: 20
A155: 4700043753-50 | B155: 4700043753 | C155: 50 | E155: 7703032175 | F155: ECROU H M5X0,80 8 SA1GS | G155: 2016-07-11 | H155: 2016-07-12 | I155: 6000 | J155: =IF(ISERROR(VLOOKUP(A155,base_sf[],6,FALSE)),"","X") ->  | K155: =IF(ISERROR(VLOOKUP(A155,base_sf[],11,0)),I155,VLOOKUP(A155,base_sf[],11,0)) -> 6000 | L155: Soldé | M155: =IF(AND($K155=0,$H155<'Menu General'!$A$10),"En retard",IF($I155=$K155,"Soldé",IF(AND($O155<>0,$O155<$I155),"Partiel","En cours"))) -> Soldé | O155: =IF(ISERROR(VLOOKUP(E155,'LX02'!$A$1:$D$150,1,FALSE)),"","X") ->  | Q155: 200980431 | R155: GENTIL PRISCILLA | S155: 6000 | T155: 6000
A156: 4700043768-10 | B156: 4700043768 | C156: 10 | D156: 2 | E156: 4939035095 | F156: LIASSE PERMIS DE FEU 1=25 | G156: 2016-07-13 | H156: 2016-07-12 | I156: 15 | J156: =IF(ISERROR(VLOOKUP(A156,base_sf[],6,FALSE)),"","X") ->  | K156: =IF(ISERROR(VLOOKUP(A156,base_sf[],11,0)),I156,VLOOKUP(A156,base_sf[],11,0)) -> 15 | L156: Soldé | M156: =IF(AND($K156=0,$H156<'Menu General'!$A$10),"En retard",IF($I156=$K156,"Soldé",IF(AND($O156<>0,$O156<$I156),"Partiel","En cours"))) -> Soldé | O156: =IF(ISERROR(VLOOKUP(E156,'LX02'!$A$1:$D$150,1,FALSE)),"","X") ->  | Q156: 200980588 | R156: MEUNIER FRANCOIS | S156: 15 | T156: 15
A157: 4700043768-20 | B157: 4700043768 | C157: 20 | D157: 2 | E157: 4939031075 | F157: ETIQUETTE COLIS URGENT 1=800 | G157: 2016-07-13 | H157: 2016-07-12 | I157: 180 | J157: =IF(ISERROR(VLOOKUP(A157,base_sf[],6,FALSE)),"","X") ->  | K157: =IF(ISERROR(VLOOKUP(A157,base_sf[],11,0)),I157,VLOOKUP(A157,base_sf[],11,0)) -> 180 | L157: Soldé | M157: =IF(AND($K157=0,$H157<'Menu General'!$A$10),"En retard",IF($I157=$K157,"Soldé",IF(AND($O157<>0,$O157<$I157),"Partiel","En cours"))) -> Soldé | O157: =IF(ISERROR(VLOOKUP(E157,'LX02'!$A$1:$D$150,1,FALSE)),"","X") ->  | Q157: 200975673 | R157: CADET ROBERT | S157: 60 | T157: 180
A158: 4700043768-30 | B158: 4700043768 | C158: 30 | D158: 2 | E158: 4939031085 | F158: FEUILLES BONS COMPLETS CDPR BLANCS 1=500 | G158: 2016-07-13 | H158: 2016-07-13 | I158: 50 | J158: =IF(ISERROR(VLOOKUP(A158,base_sf[],6,FALSE)),"","X") ->  | K158: =IF(ISERROR(VLOOKUP(A158,base_sf[],11,0)),I158,VLOOKUP(A158,base_sf[],11,0)) -> 50 | L158: Soldé | M158: =IF(AND($K158=0,$H158<'Menu General'!$A$10),"En retard",IF($I158=$K158,"Soldé",IF(AND($O158<>0,$O158<$I158),"Partiel","En cours"))) -> Soldé | O158: =IF(ISERROR(VLOOKUP(E158,'LX02'!$A$1:$D$150,1,FALSE)),"","X") ->  | Q158: 200977139 | R158: MASSON CHARLES | S158: 50 | T158: 50
A159: 4700043768-40 | B159: 4700043768 | C159: 40 | D159: 2 | E159: 4939031086 | F159: FEUILLE BON COMPLET CDPR 1=500 | G159: 2016-07-13 | H159: 2016-07-13 | I159: 50 | J159: =IF(ISERROR(VLOOKUP(A159,base_sf[],6,FALSE)),"","X") ->  | K159: =IF(ISERROR(VLOOKUP(A159,base_sf[],11,0)),I159,VLOOKUP(A159,base_sf[],11,0)) -> 50 | L159: Soldé | M159: =IF(AND($K159=0,$H159<'Menu General'!$A$10),"En retard",IF($I159=$K159,"Soldé",IF(AND($O159<>0,$O159<$I159),"Partiel","En cours"))) -> Soldé | O159: =IF(ISERROR(VLOOKUP(E159,'LX02'!$A$1:$D$150,1,FALSE)),"","X") ->  | Q159: 200977139 | R159: MASSON CHARLES | S159: 50 | T159: 50
A160: 4700043768-50 | B160: 4700043768 | C160: 50 | D160: 2 | E160: 4939031075 | F160: ETIQUETTE COLIS URGENT 1=800 | G160: 2016-07-13 | H160: 2016-07-13 | I160: 12 | J160: =IF(ISERROR(VLOOKUP(A160,base_sf[],6,FALSE)),"","X") ->  | K160: =IF(ISERROR(VLOOKUP(A160,base_sf[],11,0)),I160,VLOOKUP(A160,base_sf[],11,0)) -> 12 | L160: Soldé | M160: =IF(AND($K160=0,$H160<'Menu General'!$A$10),"En retard",IF($I160=$K160,"Soldé",IF(AND($O160<>0,$O160<$I160),"Partiel","En cours"))) -> Soldé | O160: =IF(ISERROR(VLOOKUP(E160,'LX02'!$A$1:$D$150,1,FALSE)),"","X") ->  | Q160: 200975673 | R160: CADET ROBERT | S160: 60 | T160: 12
A161: 4700043728-40 | B161: 4700043728 | C161: 40 | D161: 2 | E161: 4939625600 | F161: POCHETTE PLASTIQUE DECOUPEE 1=100 | G161: 2016-07-06 | H161: 2016-07-11 | I161: 100 | J161: =IF(ISERROR(VLOOKUP(A161,base_sf[],6,FALSE)),"","X") ->  | K161: =IF(ISERROR(VLOOKUP(A161,base_sf[],11,0)),I161,VLOOKUP(A161,base_sf[],11,0)) -> 100 | L161: Soldé | M161: =IF(AND($K161=0,$H161<'Menu General'!$A$10),"En retard",IF($I161=$K161,"Soldé",IF(AND($O161<>0,$O161<$I161),"Partiel","En cours"))) -> Soldé | O161: =IF(ISERROR(VLOOKUP(E161,'LX02'!$A$1:$D$150,1,FALSE)),"","X") ->  | Q161: 200979906 | R161: FLEURIGEON GAELLE | S161: 100 | T161: 100
A162: 4700043728-10 | B162: 4700043728 | C162: 10 | D162: 2 | E162: 4939121791 | F162: LOT DE 250 POCHETTES ENVELOPPES INTERSER | G162: 2016-07-06 | H162: 2016-07-05 | I162: 1 | J162: =IF(ISERROR(VLOOKUP(A162,base_sf[],6,FALSE)),"","X") ->  | K162: =IF(ISERROR(VLOOKUP(A162,base_sf[],11,0)),I162,VLOOKUP(A162,base_sf[],11,0)) -> 1 | L162: Soldé | M162: =IF(AND($K162=0,$H162<'Menu General'!$A$10),"En retard",IF($I162=$K162,"Soldé",IF(AND($O162<>0,$O162<$I162),"Partiel","En cours"))) -> Soldé | O162: =IF(ISERROR(VLOOKUP(E162,'LX02'!$A$1:$D$150,1,FALSE)),"","X") ->  | Q162: 200974799 | R162: LABEILLE ALEXANDRA | S162: 3 | T162: 1
A163: 4700043728-20 | B163: 4700043728 | C163: 20 | D163: 2 | E163: 4939126091 | F163: ENVELOPPE BUL. 110X220 INTERNE/API 1=100 | G163: 2016-07-06 | H163: 2016-07-05 | I163: 1 | J163: =IF(ISERROR(VLOOKUP(A163,base_sf[],6,FALSE)),"","X") ->  | K163: =IF(ISERROR(VLOOKUP(A163,base_sf[],11,0)),I163,VLOOKUP(A163,base_sf[],11,0)) -> 1 | L163: Soldé | M163: =IF(AND($K163=0,$H163<'Menu General'!$A$10),"En retard",IF($I163=$K163,"Soldé",IF(AND($O163<>0,$O163<$I163),"Partiel","En cours"))) -> Soldé | O163: =IF(ISERROR(VLOOKUP(E163,'LX02'!$A$1:$D$150,1,FALSE)),"","X") ->  | Q163: 200975097 | R163: VANDENHENDE CHRISTIAN | S163: 1 | T163: 1
A164: 4700043728-30 | B164: 4700043728 | C164: 30 | D164: 2 | E164: 4939122060 | F164: POCHETTE SOUFFLET 330X290 RENAULT 1=200 | G164: 2016-07-06 | H164: 2016-07-05 | I164: 1 | J164: =IF(ISERROR(VLOOKUP(A164,base_sf[],6,FALSE)),"","X") ->  | K164: =IF(ISERROR(VLOOKUP(A164,base_sf[],11,0)),I164,VLOOKUP(A164,base_sf[],11,0)) -> 1 | L164: Soldé | M164: =IF(AND($K164=0,$H164<'Menu General'!$A$10),"En retard",IF($I164=$K164,"Soldé",IF(AND($O164<>0,$O164<$I164),"Partiel","En cours"))) -> Soldé | O164: =IF(ISERROR(VLOOKUP(E164,'LX02'!$A$1:$D$150,1,FALSE)),"","X") ->  | Q164: 200976882 | R164: PEAUD SYLVIE | S164: 1 | T164: 1
A165: 4700043734-80 | B165: 4700043734 | C165: 80 | D165: 2 | E165: P674911000 | F165: CLE MALE COUDEE A EMPREINTE TORX T15 | G165: 2016-07-06 | H165: 2016-07-06 | I165: 3 | J165: =IF(ISERROR(VLOOKUP(A165,base_sf[],6,FALSE)),"","X") ->  | K165: =IF(ISERROR(VLOOKUP(A165,base_sf[],11,0)),I165,VLOOKUP(A165,base_sf[],11,0)) -> 3 | L165: Soldé | M165: =IF(AND($K165=0,$H165<'Menu General'!$A$10),"En retard",IF($I165=$K165,"Soldé",IF(AND($O165<>0,$O165<$I165),"Partiel","En cours"))) -> Soldé | O165: =IF(ISERROR(VLOOKUP(E165,'LX02'!$A$1:$D$150,1,FALSE)),"","X") ->  | Q165: 200980043 | R165: POHU PHILIPPE | S165: 1 | T165: 3 | U165: 2 | V165: P674911000 | W165: 2.02
A166: 4700043727-340 | B166: 4700043727 | C166: 340 | E166: X140062050 | F166: EMBOUT OGIVE LAITON PASS.4 PR TUYAU D. | G166: 2016-07-06 | H166: 2016-07-08 | I166: 4 | J166: =IF(ISERROR(VLOOKUP(A166,base_sf[],6,FALSE)),"","X") -> X | K166: =IF(ISERROR(VLOOKUP(A166,base_sf[],11,0)),I166,VLOOKUP(A166,base_sf[],11,0)) -> 0 | L166: Reliquat | M166: =IF(AND($K166=0,$H166<'Menu General'!$A$10),"En retard",IF($I166=$K166,"Soldé",IF(AND($O166<>0,$O166<$I166),"Partiel","En cours"))) -> En retard | O166: =IF(ISERROR(VLOOKUP(E166,'LX02'!$A$1:$D$150,1,FALSE)),"","X") ->  | Q166: 200978817 | R166: PICHOT JEAN CHARLES | S166: 30 | T166: 4 | U166: 4 | V166: X140062050 | W166: 7.52
A167: 4700043727-560 | B167: 4700043727 | C167: 560 | E167: R100086289 | F167: UNITE DE BRIDAGE HYDRAULIQUE SIMPLE EFFE | G167: 2016-07-06 | H167: 2016-07-11 | I167: 4 | J167: =IF(ISERROR(VLOOKUP(A167,base_sf[],6,FALSE)),"","X") ->  | K167: =IF(ISERROR(VLOOKUP(A167,base_sf[],11,0)),I167,VLOOKUP(A167,base_sf[],11,0)) -> 4 | L167: Soldé | M167: =IF(AND($K167=0,$H167<'Menu General'!$A$10),"En retard",IF($I167=$K167,"Soldé",IF(AND($O167<>0,$O167<$I167),"Partiel","En cours"))) -> Soldé | O167: =IF(ISERROR(VLOOKUP(E167,'LX02'!$A$1:$D$150,1,FALSE)),"","X") ->  | Q167: 200979751 | R167: VOLLET BINET RAPHAEL | S167: 4 | T167: 4
A168: 4700043727-760 | B168: 4700043727 | C168: 760 | E168: X417203301 | F168: VIS A TETE CYL CHC 6PANS CREUX M 6 | G168: 2016-07-06 | H168: 2016-07-08 | I168: 100 | J168: =IF(ISERROR(VLOOKUP(A168,base_sf[],6,FALSE)),"","X") ->  | K168: =IF(ISERROR(VLOOKUP(A168,base_sf[],11,0)),I168,VLOOKUP(A168,base_sf[],11,0)) -> 100 | L168: Soldé | M168: =IF(AND($K168=0,$H168<'Menu General'!$A$10),"En retard",IF($I168=$K168,"Soldé",IF(AND($O168<>0,$O168<$I168),"Partiel","En cours"))) -> Soldé | O168: =IF(ISERROR(VLOOKUP(E168,'LX02'!$A$1:$D$150,1,FALSE)),"","X") ->  | Q168: 200974539 | R168: FEVRIER JEAN PAUL | S168: 200 | T168: 100 | U168: 100 | V168: X417203301 | W168: 1.93
A169: 4700043727-790 | B169: 4700043727 | C169: 790 | E169: X417254401 | F169: VIS TETE CYL CHC 6 PANS CREUX M8X1,25 LG | G169: 2016-07-06 | H169: 2016-07-08 | I169: 100 | J169: =IF(ISERROR(VLOOKUP(A169,base_sf[],6,FALSE)),"","X") ->  | K169: =IF(ISERROR(VLOOKUP(A169,base_sf[],11,0)),I169,VLOOKUP(A169,base_sf[],11,0)) -> 100 | L169: Soldé | M169: =IF(AND($K169=0,$H169<'Menu General'!$A$10),"En retard",IF($I169=$K169,"Soldé",IF(AND($O169<>0,$O169<$I169),"Partiel","En cours"))) -> Soldé | O169: =IF(ISERROR(VLOOKUP(E169,'LX02'!$A$1:$D$150,1,FALSE)),"","X") ->  | Q169: 200979886 | R169: MARGUERITE FABIEN | S169: 100 | T169: 100 | U169: 100 | V169: X417254401 | W169: 4.98
A170: 4700043736-610 | B170: 4700043736 | C170: 610 | E170: X417454401 | F170: VIS A TETE CYL CHC 6PANS CREUX M16 | G170: 2016-07-07 | H170: 2016-07-11 | I170: 100 | J170: =IF(ISERROR(VLOOKUP(A170,base_sf[],6,FALSE)),"","X") ->  | K170: =IF(ISERROR(VLOOKUP(A170,base_sf[],11,0)),I170,VLOOKUP(A170,base_sf[],11,0)) -> 100 | L170: Soldé | M170: =IF(AND($K170=0,$H170<'Menu General'!$A$10),"En retard",IF($I170=$K170,"Soldé",IF(AND($O170<>0,$O170<$I170),"Partiel","En cours"))) -> Soldé | O170: =IF(ISERROR(VLOOKUP(E170,'LX02'!$A$1:$D$150,1,FALSE)),"","X") ->  | Q170: 200979964 | R170: MARGUERITE FABIEN | S170: 100 | T170: 100 | U170: 200 | V170: X417454401 | W170: 45.35
A171: 4700043746-340 | B171: 4700043746 | C171: 340 | E171: R100576533 | F171: CHAUSSURES DE SECURITE BASSE NOIRES A LA | G171: 2016-07-08 | H171: 2016-07-13 | I171: 2 | J171: =IF(ISERROR(VLOOKUP(A171,base_sf[],6,FALSE)),"","X") -> X | K171: =IF(ISERROR(VLOOKUP(A171,base_sf[],11,0)),I171,VLOOKUP(A171,base_sf[],11,0)) -> 0 | L171: Reliquat | M171: =IF(AND($K171=0,$H171<'Menu General'!$A$10),"En retard",IF($I171=$K171,"Soldé",IF(AND($O171<>0,$O171<$I171),"Partiel","En cours"))) -> En retard | O171: =IF(ISERROR(VLOOKUP(E171,'LX02'!$A$1:$D$150,1,FALSE)),"","X") ->  | Q171: 200980221 | R171: DUCHOSSOY DAMIEN | S171: 2 | T171: 2 | U171: 2 | V171: R100576533 | W171: 58
A172: 4700043746-450 | B172: 4700043746 | C172: 450 | E172: X484020301 | F172: ECROU HEXAGONAL USUEL H M 1,4 EP 1 | G172: 2016-07-08 | H172: 2016-07-11 | I172: 100 | J172: =IF(ISERROR(VLOOKUP(A172,base_sf[],6,FALSE)),"","X") ->  | K172: =IF(ISERROR(VLOOKUP(A172,base_sf[],11,0)),I172,VLOOKUP(A172,base_sf[],11,0)) -> 100 | L172: Soldé | M172: =IF(AND($K172=0,$H172<'Menu General'!$A$10),"En retard",IF($I172=$K172,"Soldé",IF(AND($O172<>0,$O172<$I172),"Partiel","En cours"))) -> Soldé | O172: =IF(ISERROR(VLOOKUP(E172,'LX02'!$A$1:$D$150,1,FALSE)),"","X") ->  | Q172: 200980315 | R172: PAVIE VIANNEY | S172: 100 | T172: 100
A173: 4700043747-10 | B173: 4700043747 | C173: 10 | D173: 2 | E173: 4939121791 | F173: LOT DE 250 POCHETTES ENVELOPPES INTERSER | G173: 2016-07-08 | H173: 2016-07-07 | I173: 1 | J173: =IF(ISERROR(VLOOKUP(A173,base_sf[],6,FALSE)),"","X") ->  | K173: =IF(ISERROR(VLOOKUP(A173,base_sf[],11,0)),I173,VLOOKUP(A173,base_sf[],11,0)) -> 1 | L173: Soldé | M173: =IF(AND($K173=0,$H173<'Menu General'!$A$10),"En retard",IF($I173=$K173,"Soldé",IF(AND($O173<>0,$O173<$I173),"Partiel","En cours"))) -> Soldé | O173: =IF(ISERROR(VLOOKUP(E173,'LX02'!$A$1:$D$150,1,FALSE)),"","X") ->  | Q173: 200974799 | R173: LABEILLE ALEXANDRA | S173: 3 | T173: 1
A174: 4700043747-20 | B174: 4700043747 | C174: 20 | D174: 2 | E174: 4939034208 | F174: ETIQ.ADHES.COURRIER EXPRESS 1=50 | G174: 2016-07-08 | H174: 2016-07-12 | I174: 1 | J174: =IF(ISERROR(VLOOKUP(A174,base_sf[],6,FALSE)),"","X") ->  | K174: =IF(ISERROR(VLOOKUP(A174,base_sf[],11,0)),I174,VLOOKUP(A174,base_sf[],11,0)) -> 1 | L174: Soldé | M174: =IF(AND($K174=0,$H174<'Menu General'!$A$10),"En retard",IF($I174=$K174,"Soldé",IF(AND($O174<>0,$O174<$I174),"Partiel","En cours"))) -> Soldé | O174: =IF(ISERROR(VLOOKUP(E174,'LX02'!$A$1:$D$150,1,FALSE)),"","X") ->  | Q174: 200975100 | R174: FRENAY SYLVIE | S174: 1 | T174: 1
A175: 4700043767-180 | B175: 4700043767 | C175: 180 | E175: X484021301 | F175: ECROU HEXAGONAL USUEL 'HU' M4 PAS:0,7 | G175: 2016-07-13 | H175: 2016-07-15 | I175: 100 | J175: =IF(ISERROR(VLOOKUP(A175,base_sf[],6,FALSE)),"","X") ->  | K175: =IF(ISERROR(VLOOKUP(A175,base_sf[],11,0)),I175,VLOOKUP(A175,base_sf[],11,0)) -> 100 | L175: Soldé | M175: =IF(AND($K175=0,$H175<'Menu General'!$A$10),"En retard",IF($I175=$K175,"Soldé",IF(AND($O175<>0,$O175<$I175),"Partiel","En cours"))) -> Soldé | O175: =IF(ISERROR(VLOOKUP(E175,'LX02'!$A$1:$D$150,1,FALSE)),"","X") ->  | Q175: 200980315 | R175: PAVIE VIANNEY | S175: 100 | T175: 100 | U175: 60 | V175: X484021301 | W175: 0.68
A176: 4700043767-190 | B176: 4700043767 | C176: 190 | E176: X484022001 | F176: ECROU HEXAGONAL USUEL 'HU' M6 PAS:100 | G176: 2016-07-13 | H176: 2016-07-15 | I176: 100 | J176: =IF(ISERROR(VLOOKUP(A176,base_sf[],6,FALSE)),"","X") -> X | K176: =IF(ISERROR(VLOOKUP(A176,base_sf[],11,0)),I176,VLOOKUP(A176,base_sf[],11,0)) -> 0 | L176: Reliquat | M176: =IF(AND($K176=0,$H176<'Menu General'!$A$10),"En retard",IF($I176=$K176,"Soldé",IF(AND($O176<>0,$O176<$I176),"Partiel","En cours"))) -> En retard | O176: =IF(ISERROR(VLOOKUP(E176,'LX02'!$A$1:$D$150,1,FALSE)),"","X") ->  | Q176: 200980632 | R176: MARGUERITE FABIEN | S176: 100 | T176: 100 | U176: 100 | V176: X484022001 | W176: 0.4
A177: 4700043813-450 | B177: 4700043813 | C177: 450 | E177: 8201233965 | F177: PORTILLON VIDE-POCHES CTL | G177: 2016-07-22 | H177: 2016-07-25 | I177: 1 | J177: =IF(ISERROR(VLOOKUP(A177,base_sf[],6,FALSE)),"","X") ->  | K177: =IF(ISERROR(VLOOKUP(A177,base_sf[],11,0)),I177,VLOOKUP(A177,base_sf[],11,0)) -> 1 | L177: Soldé | M177: =IF(AND($K177=0,$H177<'Menu General'!$A$10),"En retard",IF($I177=$K177,"Soldé",IF(AND($O177<>0,$O177<$I177),"Partiel","En cours"))) -> Soldé | O177: =IF(ISERROR(VLOOKUP(E177,'LX02'!$A$1:$D$150,1,FALSE)),"","X") ->  | Q177: 200981258 | R177: DECAUDAIN JEAN FRANCOIS | S177: 1 | T177: 1
A178: 4700043822-170 | B178: 4700043822 | C178: 170 | E178: 7705030156 | F178: RACCORD 2 VOIES 20X20 | G178: 2016-07-25 | H178: 2016-07-26 | I178: 20 | J178: =IF(ISERROR(VLOOKUP(A178,base_sf[],6,FALSE)),"","X") ->  | K178: =IF(ISERROR(VLOOKUP(A178,base_sf[],11,0)),I178,VLOOKUP(A178,base_sf[],11,0)) -> 20 | L178: Soldé | M178: =IF(AND($K178=0,$H178<'Menu General'!$A$10),"En retard",IF($I178=$K178,"Soldé",IF(AND($O178<>0,$O178<$I178),"Partiel","En cours"))) -> Soldé | O178: =IF(ISERROR(VLOOKUP(E178,'LX02'!$A$1:$D$150,1,FALSE)),"","X") ->  | Q178: 200981394 | R178: MORISSE JULIEN CLAUDE | S178: 20 | T178: 20
A179: 4700043829-320 | B179: 4700043829 | C179: 320 | E179: 144B05233R | F179: POMPE EAU ADDITIONNELLE | G179: 2016-07-26 | H179: 2016-07-27 | I179: 2 | J179: =IF(ISERROR(VLOOKUP(A179,base_sf[],6,FALSE)),"","X") ->  | K179: =IF(ISERROR(VLOOKUP(A179,base_sf[],11,0)),I179,VLOOKUP(A179,base_sf[],11,0)) -> 2 | L179: Soldé | M179: =IF(AND($K179=0,$H179<'Menu General'!$A$10),"En retard",IF($I179=$K179,"Soldé",IF(AND($O179<>0,$O179<$I179),"Partiel","En cours"))) -> Soldé | O179: =IF(ISERROR(VLOOKUP(E179,'LX02'!$A$1:$D$150,1,FALSE)),"","X") ->  | Q179: 200981487 | R179: MORISSE JULIEN CLAUDE | S179: 2 | T179: 2
A180: 4700043844-90 | B180: 4700043844 | C180: 90 | E180: 7711381886 | F180: OUTIL DEMONTAGE CONNECTEUR 3 | G180: 2016-07-28 | H180: 2016-07-29 | I180: 1 | J180: =IF(ISERROR(VLOOKUP(A180,base_sf[],6,FALSE)),"","X") ->  | K180: =IF(ISERROR(VLOOKUP(A180,base_sf[],11,0)),I180,VLOOKUP(A180,base_sf[],11,0)) -> 1 | L180: Soldé | M180: =IF(AND($K180=0,$H180<'Menu General'!$A$10),"En retard",IF($I180=$K180,"Soldé",IF(AND($O180<>0,$O180<$I180),"Partiel","En cours"))) -> Soldé | O180: =IF(ISERROR(VLOOKUP(E180,'LX02'!$A$1:$D$150,1,FALSE)),"","X") ->  | Q180: 200981747 | R180: BAUX OLIVIER | S180: 1 | T180: 1
A181: 4700043806-410 | B181: 4700043806 | C181: 410 | E181: X511125200 | F181: RONDELLE PLATE ETROITE D:8,4 X 16 EP:1,5 | G181: 2016-07-21 | H181: 2016-07-25 | I181: 100 | J181: =IF(ISERROR(VLOOKUP(A181,base_sf[],6,FALSE)),"","X") -> X | K181: =IF(ISERROR(VLOOKUP(A181,base_sf[],11,0)),I181,VLOOKUP(A181,base_sf[],11,0)) -> 0 | L181: Reliquat | M181: =IF(AND($K181=0,$H181<'Menu General'!$A$10),"En retard",IF($I181=$K181,"Soldé",IF(AND($O181<>0,$O181<$I181),"Partiel","En cours"))) -> En retard | O181: =IF(ISERROR(VLOOKUP(E181,'LX02'!$A$1:$D$150,1,FALSE)),"","X") ->  | Q181: 200981091 | R181: MARGUERITE FABIEN | S181: 100 | T181: 100 | U181: 20 | V181: X511125200 | W181: 0.1
A182: 4700043754-520 | B182: 4700043754 | C182: 520 | E182: X434303301 | F182: VIS SANS TETE 6 PANS CREUX HC M10 PAS:1 | G182: 2016-07-11 | H182: 2016-07-15 | I182: 100 | J182: =IF(ISERROR(VLOOKUP(A182,base_sf[],6,FALSE)),"","X") ->  | K182: =IF(ISERROR(VLOOKUP(A182,base_sf[],11,0)),I182,VLOOKUP(A182,base_sf[],11,0)) -> 100 | L182: Soldé | M182: =IF(AND($K182=0,$H182<'Menu General'!$A$10),"En retard",IF($I182=$K182,"Soldé",IF(AND($O182<>0,$O182<$I182),"Partiel","En cours"))) -> Soldé | O182: =IF(ISERROR(VLOOKUP(E182,'LX02'!$A$1:$D$150,1,FALSE)),"","X") ->  | Q182: 200980451 | R182: MARGUERITE FABIEN | S182: 100 | T182: 100 | U182: 100 | V182: X434303301 | W182: 6.1
A183: 4700043755-10 | B183: 4700043755 | C183: 10 | D183: 2 | E183: 4939122056 | F183: POCHETTE RENAULT 330X260 RLT 1=100 | G183: 2016-07-11 | H183: 2016-07-11 | I183: 1 | J183: =IF(ISERROR(VLOOKUP(A183,base_sf[],6,FALSE)),"","X") ->  | K183: =IF(ISERROR(VLOOKUP(A183,base_sf[],11,0)),I183,VLOOKUP(A183,base_sf[],11,0)) -> 1 | L183: Soldé | M183: =IF(AND($K183=0,$H183<'Menu General'!$A$10),"En retard",IF($I183=$K183,"Soldé",IF(AND($O183<>0,$O183<$I183),"Partiel","En cours"))) -> Soldé | O183: =IF(ISERROR(VLOOKUP(E183,'LX02'!$A$1:$D$150,1,FALSE)),"","X") ->  | Q183: 200975178 | R183: VEJUS CORINNE | S183: 1 | T183: 1
A184: 4700043755-20 | B184: 4700043755 | C184: 20 | D184: 2 | E184: 4939121791 | F184: LOT DE 250 POCHETTES ENVELOPPES INTERSER | G184: 2016-07-11 | H184: 2016-07-11 | I184: 1 | J184: =IF(ISERROR(VLOOKUP(A184,base_sf[],6,FALSE)),"","X") ->  | K184: =IF(ISERROR(VLOOKUP(A184,base_sf[],11,0)),I184,VLOOKUP(A184,base_sf[],11,0)) -> 1 | L184: Soldé | M184: =IF(AND($K184=0,$H184<'Menu General'!$A$10),"En retard",IF($I184=$K184,"Soldé",IF(AND($O184<>0,$O184<$I184),"Partiel","En cours"))) -> Soldé | O184: =IF(ISERROR(VLOOKUP(E184,'LX02'!$A$1:$D$150,1,FALSE)),"","X") ->  | Q184: 200974799 | R184: LABEILLE ALEXANDRA | S184: 3 | T184: 1
A185: 4700043755-30 | B185: 4700043755 | C185: 30 | D185: 2 | E185: 4939122056 | F185: POCHETTE RENAULT 330X260 RLT 1=100 | G185: 2016-07-11 | H185: 2016-07-11 | I185: 1 | J185: =IF(ISERROR(VLOOKUP(A185,base_sf[],6,FALSE)),"","X") ->  | K185: =IF(ISERROR(VLOOKUP(A185,base_sf[],11,0)),I185,VLOOKUP(A185,base_sf[],11,0)) -> 1 | L185: Soldé | M185: =IF(AND($K185=0,$H185<'Menu General'!$A$10),"En retard",IF($I185=$K185,"Soldé",IF(AND($O185<>0,$O185<$I185),"Partiel","En cours"))) -> Soldé | O185: =IF(ISERROR(VLOOKUP(E185,'LX02'!$A$1:$D$150,1,FALSE)),"","X") ->  | Q185: 200975178 | R185: VEJUS CORINNE | S185: 1 | T185: 1
A186: 4700043755-40 | B186: 4700043755 | C186: 40 | D186: 2 | E186: 4939122170 | F186: ENVELOPPE RENAULT 110X220 SF 1=100 | G186: 2016-07-11 | H186: 2016-07-11 | I186: 1 | J186: =IF(ISERROR(VLOOKUP(A186,base_sf[],6,FALSE)),"","X") ->  | K186: =IF(ISERROR(VLOOKUP(A186,base_sf[],11,0)),I186,VLOOKUP(A186,base_sf[],11,0)) -> 1 | L186: Soldé | M186: =IF(AND($K186=0,$H186<'Menu General'!$A$10),"En retard",IF($I186=$K186,"Soldé",IF(AND($O186<>0,$O186<$I186),"Partiel","En cours"))) -> Soldé | O186: =IF(ISERROR(VLOOKUP(E186,'LX02'!$A$1:$D$150,1,FALSE)),"","X") ->  | Q186: 200975548 | R186: BRACHET LAURENCE | S186: 1 | T186: 1
A187: 4700043781-70 | B187: 4700043781 | C187: 70 | E187: X434254705 | F187: VIS SANS TETE 6 PANS CREUX HCSM 8 LG 60 | G187: 2016-07-18 | H187: 2016-07-21 | I187: 2 | J187: =IF(ISERROR(VLOOKUP(A187,base_sf[],6,FALSE)),"","X") ->  | K187: =IF(ISERROR(VLOOKUP(A187,base_sf[],11,0)),I187,VLOOKUP(A187,base_sf[],11,0)) -> 2 | L187: Soldé | M187: =IF(AND($K187=0,$H187<'Menu General'!$A$10),"En retard",IF($I187=$K187,"Soldé",IF(AND($O187<>0,$O187<$I187),"Partiel","En cours"))) -> Soldé | O187: =IF(ISERROR(VLOOKUP(E187,'LX02'!$A$1:$D$150,1,FALSE)),"","X") ->  | Q187: 200980450 | R187: MARGUERITE FABIEN | S187: 100 | T187: 2 | U187: 2 | V187: X434254705 | W187: 11.38
A188: 4700043795-10 | B188: 4700043795 | C188: 10 | D188: 2 | E188: 8813260031 | F188: MANCHE DE LIME VIROLE D10MM | G188: 2016-07-19 | H188: 2016-07-22 | I188: 3 | J188: =IF(ISERROR(VLOOKUP(A188,base_sf[],6,FALSE)),"","X") ->  | K188: =IF(ISERROR(VLOOKUP(A188,base_sf[],11,0)),I188,VLOOKUP(A188,base_sf[],11,0)) -> 3 | L188: Soldé | M188: =IF(AND($K188=0,$H188<'Menu General'!$A$10),"En retard",IF($I188=$K188,"Soldé",IF(AND($O188<>0,$O188<$I188),"Partiel","En cours"))) -> Soldé | O188: =IF(ISERROR(VLOOKUP(E188,'LX02'!$A$1:$D$150,1,FALSE)),"","X") ->  | Q188: 200980965 | R188: LABORIE GIL | S188: 3 | T188: 3 | U188: 3 | V188: 8813260031 | W188: 1.29
A189: 4700043807-10 | B189: 4700043807 | C189: 10 | D189: 2 | E189: 4939121791 | F189: LOT DE 250 POCHETTES ENVELOPPES INTERSER | G189: 2016-07-21 | H189: 2016-07-21 | I189: 2 | J189: =IF(ISERROR(VLOOKUP(A189,base_sf[],6,FALSE)),"","X") ->  | K189: =IF(ISERROR(VLOOKUP(A189,base_sf[],11,0)),I189,VLOOKUP(A189,base_sf[],11,0)) -> 2 | L189: Soldé | M189: =IF(AND($K189=0,$H189<'Menu General'!$A$10),"En retard",IF($I189=$K189,"Soldé",IF(AND($O189<>0,$O189<$I189),"Partiel","En cours"))) -> Soldé | O189: =IF(ISERROR(VLOOKUP(E189,'LX02'!$A$1:$D$150,1,FALSE)),"","X") ->  | Q189: 200974799 | R189: LABEILLE ALEXANDRA | S189: 3 | T189: 2
A190: 4700043807-20 | B190: 4700043807 | C190: 20 | D190: 2 | E190: R100138319 | F190: ENV BLANC 225X350 F/LOG RLT 1=250 | G190: 2016-07-21 | H190: 2016-07-21 | I190: 4 | J190: =IF(ISERROR(VLOOKUP(A190,base_sf[],6,FALSE)),"","X") ->  | K190: =IF(ISERROR(VLOOKUP(A190,base_sf[],11,0)),I190,VLOOKUP(A190,base_sf[],11,0)) -> 4 | L190: Soldé | M190: =IF(AND($K190=0,$H190<'Menu General'!$A$10),"En retard",IF($I190=$K190,"Soldé",IF(AND($O190<>0,$O190<$I190),"Partiel","En cours"))) -> Soldé | O190: =IF(ISERROR(VLOOKUP(E190,'LX02'!$A$1:$D$150,1,FALSE)),"","X") ->  | Q190: 200977144 | R190: MADI YAMINA | S190: 1 | T190: 4
A191: 4700043807-30 | B191: 4700043807 | C191: 30 | D191: 2 | E191: 4939122170 | F191: ENVELOPPE RENAULT 110X220 SF 1=100 | G191: 2016-07-21 | H191: 2016-07-21 | I191: 3 | J191: =IF(ISERROR(VLOOKUP(A191,base_sf[],6,FALSE)),"","X") ->  | K191: =IF(ISERROR(VLOOKUP(A191,base_sf[],11,0)),I191,VLOOKUP(A191,base_sf[],11,0)) -> 3 | L191: Soldé | M191: =IF(AND($K191=0,$H191<'Menu General'!$A$10),"En retard",IF($I191=$K191,"Soldé",IF(AND($O191<>0,$O191<$I191),"Partiel","En cours"))) -> Soldé | O191: =IF(ISERROR(VLOOKUP(E191,'LX02'!$A$1:$D$150,1,FALSE)),"","X") ->  | Q191: 200975548 | R191: BRACHET LAURENCE | S191: 1 | T191: 3
A192: 4700043807-40 | B192: 4700043807 | C192: 40 | D192: 2 | E192: 4939126180 | F192: ENVELOPPE RENAULT 110X220 FENETRE 1=100 | G192: 2016-07-21 | H192: 2016-07-21 | I192: 2 | J192: =IF(ISERROR(VLOOKUP(A192,base_sf[],6,FALSE)),"","X") ->  | K192: =IF(ISERROR(VLOOKUP(A192,base_sf[],11,0)),I192,VLOOKUP(A192,base_sf[],11,0)) -> 2 | L192: Soldé | M192: =IF(AND($K192=0,$H192<'Menu General'!$A$10),"En retard",IF($I192=$K192,"Soldé",IF(AND($O192<>0,$O192<$I192),"Partiel","En cours"))) -> Soldé | O192: =IF(ISERROR(VLOOKUP(E192,'LX02'!$A$1:$D$150,1,FALSE)),"","X") ->  | Q192: 200976435 | R192: BEAUMONT MARTINE | S192: 5 | T192: 2
A193: 4700043807-50 | B193: 4700043807 | C193: 50 | D193: 2 | E193: 4939034209 | F193: ETIQ.ADHES.RECOMMANDEE AR 1=50 | G193: 2016-07-21 | H193: 2016-07-21 | I193: 20 | J193: =IF(ISERROR(VLOOKUP(A193,base_sf[],6,FALSE)),"","X") ->  | K193: =IF(ISERROR(VLOOKUP(A193,base_sf[],11,0)),I193,VLOOKUP(A193,base_sf[],11,0)) -> 20 | L193: Soldé | M193: =IF(AND($K193=0,$H193<'Menu General'!$A$10),"En retard",IF($I193=$K193,"Soldé",IF(AND($O193<>0,$O193<$I193),"Partiel","En cours"))) -> Soldé | O193: =IF(ISERROR(VLOOKUP(E193,'LX02'!$A$1:$D$150,1,FALSE)),"","X") ->  | Q193: 200975215 | R193: HUOR SYLVIE | S193: 1 | T193: 20
A194: 4700043806-390 | B194: 4700043806 | C194: 390 | E194: X511116200 | F194: RONDELLE PLATE ETROITE D 5,3 X 10 E | G194: 2016-07-21 | H194: 2016-07-25 | I194: 600 | J194: =IF(ISERROR(VLOOKUP(A194,base_sf[],6,FALSE)),"","X") -> X | K194: =IF(ISERROR(VLOOKUP(A194,base_sf[],11,0)),I194,VLOOKUP(A194,base_sf[],11,0)) -> 0 | L194: Reliquat | M194: =IF(AND($K194=0,$H194<'Menu General'!$A$10),"En retard",IF($I194=$K194,"Soldé",IF(AND($O194<>0,$O194<$I194),"Partiel","En cours"))) -> En retard | O194: =IF(ISERROR(VLOOKUP(E194,'LX02'!$A$1:$D$150,1,FALSE)),"","X") ->  | Q194: 200981091 | R194: MARGUERITE FABIEN | S194: 100 | T194: 600 | U194: 600 | V194: X511116200 | W194: 0.84
A195: =CONCATENATE(B195,"-",C195) -> 4700043815-10 | B195: 4700043815 | C195: 10 | D195: 2 | E195: 4939122056 | F195: POCHETTE RENAULT 330X260 RLT 1=100 | G195: 2016-07-22 | H195: 2016-07-21 | I195: 1 | J195: =IF(ISERROR(VLOOKUP(A195,base_sf[],6,FALSE)),"","X") ->  | K195: =IF(ISERROR(VLOOKUP(A195,base_sf[],11,0)),I195,VLOOKUP(A195,base_sf[],11,0)) -> 1 | L195: =IF(I195=K195,"Soldé",IF(AND(K195<I195,K195<>0),"Litige ou 351","Reliquat")) -> Soldé | M195: =IF(AND($K195=0,$H195<'Menu General'!$A$10),"En retard",IF($I195=$K195,"Soldé",IF(AND($O195<>0,$O195<$I195),"Partiel","En cours"))) -> Soldé | O195: =IF(ISERROR(VLOOKUP(E195,'LX02'!$A$1:$D$150,1,FALSE)),"","X") ->  | Q195: 200975178 | R195: VEJUS CORINNE | S195: 1 | T195: =I195 -> 1
A196: 4700043815-20 | B196: 4700043815 | C196: 20 | D196: 2 | E196: 4939126091 | F196: ENVELOPPE BUL. 110X220 INTERNE/API 1=100 | G196: 2016-07-22 | H196: 2016-07-26 | I196: 3 | J196: =IF(ISERROR(VLOOKUP(A196,base_sf[],6,FALSE)),"","X") ->  | K196: =IF(ISERROR(VLOOKUP(A196,base_sf[],11,0)),I196,VLOOKUP(A196,base_sf[],11,0)) -> 3 | L196: Soldé | M196: =IF(AND($K196=0,$H196<'Menu General'!$A$10),"En retard",IF($I196=$K196,"Soldé",IF(AND($O196<>0,$O196<$I196),"Partiel","En cours"))) -> Soldé | O196: =IF(ISERROR(VLOOKUP(E196,'LX02'!$A$1:$D$150,1,FALSE)),"","X") ->  | Q196: 200975097 | R196: VANDENHENDE CHRISTIAN | S196: 1 | T196: 3
A197: 4700043830-230 | B197: 4700043830 | C197: 230 | E197: R100478693 | F197: LIME RONDE 1/2 DOUCE DE 200 RD.MD.200 (P | G197: 2016-07-26 | H197: 2016-08-01 | I197: 1 | J197: =IF(ISERROR(VLOOKUP(A197,base_sf[],6,FALSE)),"","X") -> X | K197: =IF(ISERROR(VLOOKUP(A197,base_sf[],11,0)),I197,VLOOKUP(A197,base_sf[],11,0)) -> 0 | L197: Reliquat | M197: =IF(AND($K197=0,$H197<'Menu General'!$A$10),"En retard",IF($I197=$K197,"Soldé",IF(AND($O197<>0,$O197<$I197),"Partiel","En cours"))) -> En retard | O197: =IF(ISERROR(VLOOKUP(E197,'LX02'!$A$1:$D$150,1,FALSE)),"","X") ->  | Q197: 200981194 | R197: VIAU CHRISTIAN BERNARD | S197: 1 | T197: 1 | U197: 1 | V197: R100478693 | W197: 0.01
A198: 4700043851-140 | B198: 4700043851 | C198: 140 | E198: 7711780994 | F198: TEE-SHIRT HOMME CORPORATE NOIRXL | G198: 2016-07-29 | H198: 2016-08-01 | I198: 46 | J198: =IF(ISERROR(VLOOKUP(A198,base_sf[],6,FALSE)),"","X") ->  | K198: =IF(ISERROR(VLOOKUP(A198,base_sf[],11,0)),I198,VLOOKUP(A198,base_sf[],11,0)) -> 46 | L198: Soldé | M198: =IF(AND($K198=0,$H198<'Menu General'!$A$10),"En retard",IF($I198=$K198,"Soldé",IF(AND($O198<>0,$O198<$I198),"Partiel","En cours"))) -> Soldé | O198: =IF(ISERROR(VLOOKUP(E198,'LX02'!$A$1:$D$150,1,FALSE)),"","X") ->  | Q198: 200980257 | R198: DEBONNET DIDIER | S198: 40 | T198: 46
A199: 4700043864-310 | B199: 4700043864 | C199: 310 | E199: 7711782372 | F199: SPINBOARD ALPINE | G199: 2016-08-02 | H199: 2016-08-03 | I199: 1 | J199: =IF(ISERROR(VLOOKUP(A199,base_sf[],6,FALSE)),"","X") ->  | K199: =IF(ISERROR(VLOOKUP(A199,base_sf[],11,0)),I199,VLOOKUP(A199,base_sf[],11,0)) -> 1 | L199: Soldé | M199: =IF(AND($K199=0,$H199<'Menu General'!$A$10),"En retard",IF($I199=$K199,"Soldé",IF(AND($O199<>0,$O199<$I199),"Partiel","En cours"))) -> Soldé | O199: =IF(ISERROR(VLOOKUP(E199,'LX02'!$A$1:$D$150,1,FALSE)),"","X") ->  | Q199: 200981969 | R199: BEAUDOUIN ENRIQUE | S199: 1 | T199: 1
A200: 4700043905-70 | B200: 4700043905 | C200: 70 | E200: 7711230417 | F200: PINCE A SERTIR TYPE | G200: 2016-08-10 | H200: 2016-08-11 | I200: 1 | J200: =IF(ISERROR(VLOOKUP(A200,base_sf[],6,FALSE)),"","X") ->  | K200: =IF(ISERROR(VLOOKUP(A200,base_sf[],11,0)),I200,VLOOKUP(A200,base_sf[],11,0)) -> 1 | L200: Soldé | M200: =IF(AND($K200=0,$H200<'Menu General'!$A$10),"En retard",IF($I200=$K200,"Soldé",IF(AND($O200<>0,$O200<$I200),"Partiel","En cours"))) -> Soldé | O200: =IF(ISERROR(VLOOKUP(E200,'LX02'!$A$1:$D$150,1,FALSE)),"","X") ->  | Q200: 200975483 | R200: EL MENANI HASSAN | S200: 1 | T200: 1
... 1044 more rows

Sheet SF
A1: Contrôle | B1: LF | C1: Suivi SF | D1: N° de commande | E1: Ligne | F1: Référence | G1: Désignation | H1: Date commande | I1: Date réception | J1: Qté C | K1: Qté R
A2: =CONCATENATE(base_sf[[#This Row],[N° de commande]],"-",base_sf[[#This Row],[Ligne]]) -> 4700044074-260 | B2: =IF(base_sf[[#This Row],[Qté C]]=base_sf[[#This Row],[Qté R]],"X","") ->  | C2: =IF(ISERROR(VLOOKUP(A2,base_suivi_sof,1,FALSE)),"","X") -> X | D2: 4700044074 | E2: 260 | F2: R100115136 | G2: PAIRE DE GANTS 5DGTS NITRILE INTEGRAL SU | H2: 2016-09-08 | I2: 2016-09-12 | J2: 1 | K2: 0
A3: =CONCATENATE(base_sf[[#This Row],[N° de commande]],"-",base_sf[[#This Row],[Ligne]]) -> 4700044074-380 | B3: =IF(base_sf[[#This Row],[Qté C]]=base_sf[[#This Row],[Qté R]],"X","") ->  | C3: X | D3: 4700044074 | E3: 380 | F3: X725071400 | G3: COSSE TUBULAIRE ISOLEE TR. 6,4 16,0-2 | H3: 2016-09-08 | I3: 2016-09-12 | J3: 6 | K3: 0
A4: =CONCATENATE(base_sf[[#This Row],[N° de commande]],"-",base_sf[[#This Row],[Ligne]]) -> 4700044129-340 | B4: =IF(base_sf[[#This Row],[Qté C]]=base_sf[[#This Row],[Qté R]],"X","") ->  | C4: X | D4: 4700044129 | E4: 340 | F4: P681137276 | G4: DOUILLE HEXAGONALE DE 13 A ENTRAINEMEN | H4: 2016-09-16 | I4: 2016-09-19 | J4: 10 | K4: 6
A5: =CONCATENATE(base_sf[[#This Row],[N° de commande]],"-",base_sf[[#This Row],[Ligne]]) -> 4700044129-360 | B5: =IF(base_sf[[#This Row],[Qté C]]=base_sf[[#This Row],[Qté R]],"X","") ->  | C5: X | D5: 4700044129 | E5: 360 | F5: P683220670 | G5: DOUILLE HEXAGONALE DE 6 A ENTRAINEMEN | H5: 2016-09-16 | I5: 2016-09-19 | J5: 10 | K5: 8
A6: =CONCATENATE(base_sf[[#This Row],[N° de commande]],"-",base_sf[[#This Row],[Ligne]]) -> 4700044129-480 | B6: =IF(base_sf[[#This Row],[Qté C]]=base_sf[[#This Row],[Qté R]],"X","") ->  | C6: X | D6: 4700044129 | E6: 480 | F6: R100081956 | G6: CASQUE DE PROTECTION AVEC LUNETTES DE S | H6: 2016-09-16 | I6: 2016-09-23 | J6: 10 | K6: 0
A7: =CONCATENATE(base_sf[[#This Row],[N° de commande]],"-",base_sf[[#This Row],[Ligne]]) -> 4700044138-40 | B7: =IF(base_sf[[#This Row],[Qté C]]=base_sf[[#This Row],[Qté R]],"X","") ->  | C7: X | D7: 4700044138 | E7: 40 | F7: X831534500 | G7: RESISTANCE A COUCHE METAL 68U 5% 0,5 | H7: 2016-09-19 | I7: 2016-09-26 | J7: 50 | K7: 0
A8: =CONCATENATE(base_sf[[#This Row],[N° de commande]],"-",base_sf[[#This Row],[Ligne]]) -> 4700044138-60 | B8: =IF(base_sf[[#This Row],[Qté C]]=base_sf[[#This Row],[Qté R]],"X","") ->  | C8: X | D8: 4700044138 | E8: 60 | F8: R100156535 | G8: JEU DE CHASSE GOUPILLES ET CHASSE CLOUS | H8: 2016-09-19 | I8: 2016-09-21 | J8: 1 | K8: 0
A9: =CONCATENATE(base_sf[[#This Row],[N° de commande]],"-",base_sf[[#This Row],[Ligne]]) -> 4700044138-450 | B9: =IF(base_sf[[#This Row],[Qté C]]=base_sf[[#This Row],[Qté R]],"X","") ->  | D9: 4700044138 | E9: 450 | F9: P681137300 | G9: DOUILLE 6 PANS DE 13 ENTRAINEMENT CARRE | H9: 2016-09-19 | I9: 2016-09-22 | J9: 10 | K9: 8
A10: =CONCATENATE(base_sf[[#This Row],[N° de commande]],"-",base_sf[[#This Row],[Ligne]]) -> 4700044138-690 | B10: =IF(base_sf[[#This Row],[Qté C]]=base_sf[[#This Row],[Qté R]],"X","") ->  | C10: X | D10: 4700044138 | E10: 690 | F10: R100606828 | G10: PDTI CAB CABLE SECTEUR ALIMENTATION L | H10: 2016-09-19 | I10: 2016-10-04 | J10: 2 | K10: 0
A11: =CONCATENATE(base_sf[[#This Row],[N° de commande]],"-",base_sf[[#This Row],[Ligne]]) -> 4700044167-190 | B11: =IF(base_sf[[#This Row],[Qté C]]=base_sf[[#This Row],[Qté R]],"X","") ->  | C11: X | D11: 4700044167 | E11: 190 | F11: R100518617 | G11: CHAUSSURES DE SECURITE AMAGNETIQUES "VIL | H11: 2016-09-22 | I11: 2016-10-03 | J11: 1 | K11: 0
A12: =CONCATENATE(base_sf[[#This Row],[N° de commande]],"-",base_sf[[#This Row],[Ligne]]) -> 4700044167-200 | B12: =IF(base_sf[[#This Row],[Qté C]]=base_sf[[#This Row],[Qté R]],"X","") ->  | C12: X | D12: 4700044167 | E12: 200 | F12: R100518618 | G12: CHAUSSURES DE SECURITE AMAGNETIQUES "VIL | H12: 2016-09-22 | I12: 2016-10-03 | J12: 1 | K12: 0
A13: =CONCATENATE(base_sf[[#This Row],[N° de commande]],"-",base_sf[[#This Row],[Ligne]]) -> 4700044167-280 | B13: =IF(base_sf[[#This Row],[Qté C]]=base_sf[[#This Row],[Qté R]],"X","") ->  | C13: X | D13: 4700044167 | E13: 280 | F13: P681137300 | G13: DOUILLE 6 PANS DE 13 ENTRAINEMENT CARRE | H13: 2016-09-22 | I13: 2016-09-26 | J13: 2 | K13: 0
A14: =CONCATENATE(base_sf[[#This Row],[N° de commande]],"-",base_sf[[#This Row],[Ligne]]) -> 4700044167-290 | B14: =IF(base_sf[[#This Row],[Qté C]]=base_sf[[#This Row],[Qté R]],"X","") ->  | C14: X | D14: 4700044167 | E14: 290 | F14: P950661470 | G14: ELINGUE TUBULAIRE SS.FIN LA:30 LG.UT:0,5 | H14: 2016-09-22 | I14: 2016-09-26 | J14: 10 | K14: 4
A15: =CONCATENATE(base_sf[[#This Row],[N° de commande]],"-",base_sf[[#This Row],[Ligne]]) -> 4700044167-420 | B15: =IF(base_sf[[#This Row],[Qté C]]=base_sf[[#This Row],[Qté R]],"X","") ->  | C15: X | D15: 4700044167 | E15: 420 | F15: R100318455 | G15: VENTOUSE ELECTROMAGNETIQUE CYL.30X25 EP. | H15: 2016-09-22 | I15: 2016-09-27 | J15: 5 | K15: 2
A16: =CONCATENATE(base_sf[[#This Row],[N° de commande]],"-",base_sf[[#This Row],[Ligne]]) -> 4700044167-450 | B16: =IF(base_sf[[#This Row],[Qté C]]=base_sf[[#This Row],[Qté R]],"X","") ->  | C16: X | D16: 4700044167 | E16: 450 | F16: R100438327 | G16: BLOUSE H STANDARD SERGE GRIS CLAIR | H16: 2016-09-22 | I16: 2016-10-12 | J16: 1 | K16: 0
A17: =CONCATENATE(base_sf[[#This Row],[N° de commande]],"-",base_sf[[#This Row],[Ligne]]) -> 4700044167-460 | B17: =IF(base_sf[[#This Row],[Qté C]]=base_sf[[#This Row],[Qté R]],"X","") ->  | C17: X | D17: 4700044167 | E17: 460 | F17: R100438328 | G17: BLOUSE H STANDARD SERGE GRIS CLAIR | H17: 2016-09-22 | I17: 2016-10-12 | J17: 2 | K17: 0
A18: =CONCATENATE(base_sf[[#This Row],[N° de commande]],"-",base_sf[[#This Row],[Ligne]]) -> 4700044167-530 | B18: =IF(base_sf[[#This Row],[Qté C]]=base_sf[[#This Row],[Qté R]],"X","") ->  | C18: X | D18: 4700044167 | E18: 530 | F18: X195142601 | G18: UNION SIMPLE MALE TUBE 8 GAZ CO.3/8" | H18: 2016-09-22 | I18: 2016-09-27 | J18: 1 | K18: 0
A19: =CONCATENATE(base_sf[[#This Row],[N° de commande]],"-",base_sf[[#This Row],[Ligne]]) -> 4700044167-600 | B19: =IF(base_sf[[#This Row],[Qté C]]=base_sf[[#This Row],[Qté R]],"X","") ->  | C19: X | D19: 4700044167 | E19: 600 | F19: X723011200 | G19: GAINE TRESSEE POLYESTER D.INT.8MM EXPAND | H19: 2016-09-22 | I19: 2016-09-26 | J19: 100 | K19: 0
A20: =CONCATENATE(base_sf[[#This Row],[N° de commande]],"-",base_sf[[#This Row],[Ligne]]) -> 4700044167-620 | B20: =IF(base_sf[[#This Row],[Qté C]]=base_sf[[#This Row],[Qté R]],"X","") ->  | C20: X | D20: 4700044167 | E20: 620 | F20: X723031352 | G20: GAINE THERMORETRACTABLE SEMI-FLEXIBLE D | H20: 2016-09-22 | I20: 2016-09-26 | J20: 50 | K20: 25
A21: =CONCATENATE(base_sf[[#This Row],[N° de commande]],"-",base_sf[[#This Row],[Ligne]]) -> 4700044167-630 | B21: =IF(base_sf[[#This Row],[Qté C]]=base_sf[[#This Row],[Qté R]],"X","") ->  | C21: X | D21: 4700044167 | E21: 630 | F21: X725061500 | G21: COSSE TUBULAIRE ISOLEE TR. 8,4 1 | H21: 2016-09-22 | I21: 2016-09-26 | J21: 300 | K21: 38
A22: =CONCATENATE(base_sf[[#This Row],[N° de commande]],"-",base_sf[[#This Row],[Ligne]]) -> 4700044216-330 | B22: =IF(base_sf[[#This Row],[Qté C]]=base_sf[[#This Row],[Qté R]],"X","") ->  | D22: 4700044216 | E22: 330 | F22: P674429905 | G22: JEU DE CLES MALES AMERICAINS (10 CLES EN | H22: 2016-09-30 | I22: 2016-10-03 | J22: 1 | K22: 0
A23: =CONCATENATE(base_sf[[#This Row],[N° de commande]],"-",base_sf[[#This Row],[Ligne]]) -> 4700044216-340 | B23: =IF(base_sf[[#This Row],[Qté C]]=base_sf[[#This Row],[Qté R]],"X","") ->  | D23: 4700044216 | E23: 340 | F23: P683220670 | G23: DOUILLE HEXAGONALE DE 6 A ENTRAINEMEN | H23: 2016-09-30 | I23: 2016-10-03 | J23: 2 | K23: 0
A24: =CONCATENATE(base_sf[[#This Row],[N° de commande]],"-",base_sf[[#This Row],[Ligne]]) -> 4700044216-430 | B24: =IF(base_sf[[#This Row],[Qté C]]=base_sf[[#This Row],[Qté R]],"X","") ->  | D24: 4700044216 | E24: 430 | F24: R100289065 | G24: TETE BOUTON POUSSOIR DEPASSANT COULEUR N | H24: 2016-09-30 | I24: 2016-10-05 | J24: 5 | K24: 0
A25: =CONCATENATE(base_sf[[#This Row],[N° de commande]],"-",base_sf[[#This Row],[Ligne]]) -> 4700044216-600 | B25: =IF(base_sf[[#This Row],[Qté C]]=base_sf[[#This Row],[Qté R]],"X","") ->  | D25: 4700044216 | E25: 600 | F25: X683210003 | G25: CANNE BOULON H17 TYPE K D. 2MM LG.SS | H25: 2016-09-30 | I25: 2016-10-03 | J25: 20 | K25: 0
A26: =CONCATENATE(base_sf[[#This Row],[N° de commande]],"-",base_sf[[#This Row],[Ligne]]) -> 4700044216-610 | B26: =IF(base_sf[[#This Row],[Qté C]]=base_sf[[#This Row],[Qté R]],"X","") ->  | D26: 4700044216 | E26: 610 | F26: X683210104 | G26: CANNE BOULON TYPE K D.2MM LG. SOUS TE | H26: 2016-09-30 | I26: 2016-10-10 | J26: 60 | K26: 0
A27: =CONCATENATE(base_sf[[#This Row],[N° de commande]],"-",base_sf[[#This Row],[Ligne]]) -> 4700044216-650 | B27: =IF(base_sf[[#This Row],[Qté C]]=base_sf[[#This Row],[Qté R]],"X","") ->  | D27: 4700044216 | E27: 650 | F27: X953129400 | G27: GANTS CUIR ANTI-CHALEUR "RENOVE" PAUME B | H27: 2016-09-30 | I27: 2016-10-03 | J27: 10 | K27: 6
A28: =CONCATENATE(base_sf[[#This Row],[N° de commande]],"-",base_sf[[#This Row],[Ligne]]) -> 4700044224-200 | B28: =IF(base_sf[[#This Row],[Qté C]]=base_sf[[#This Row],[Qté R]],"X","") ->  | C28: X | D28: 4700044224 | E28: 200 | F28: R100456080 | G28: CABLE INTERFACE DIAGNOSTIC POUR VEHICULE | H28: 2016-10-03 | I28: 2016-10-18 | J28: 3 | K28: 0
A29: =CONCATENATE(base_sf[[#This Row],[N° de commande]],"-",base_sf[[#This Row],[Ligne]]) -> 4700043377-500 | B29: =IF(base_sf[[#This Row],[Qté C]]=base_sf[[#This Row],[Qté R]],"X","") ->  | C29: X | D29: 4700043377 | E29: 500 | F29: P481115803 | G29: PINCE-ETAU A GRANDE CAPACITE MAXI 120 LG | H29: 2016-05-13 | I29: 2016-05-17 | J29: 1 | K29: 0
A30: =CONCATENATE(base_sf[[#This Row],[N° de commande]],"-",base_sf[[#This Row],[Ligne]]) -> 4700043830-230 | B30: =IF(base_sf[[#This Row],[Qté C]]=base_sf[[#This Row],[Qté R]],"X","") ->  | C30: X | D30: 4700043830 | E30: 230 | F30: R100478693 | G30: LIME RONDE 1/2 DOUCE DE 200 RD.MD.200 (P | H30: 2016-07-26 | I30: 2016-08-01 | J30: 1 | K30: 0
A31: =CONCATENATE(base_sf[[#This Row],[N° de commande]],"-",base_sf[[#This Row],[Ligne]]) -> 4700043900-120 | B31: =IF(base_sf[[#This Row],[Qté C]]=base_sf[[#This Row],[Qté R]],"X","") ->  | C31: X | D31: 4700043900 | E31: 120 | F31: P68631700A | G31: RALLONGE CARRE CONDUCTEUR MALE 3/8" FE | H31: 2016-08-09 | I31: 2016-08-18 | J31: 4 | K31: 0
A32: =CONCATENATE(base_sf[[#This Row],[N° de commande]],"-",base_sf[[#This Row],[Ligne]]) -> 4700043997-10 | B32: =IF(base_sf[[#This Row],[Qté C]]=base_sf[[#This Row],[Qté R]],"X","") ->  | C32: X | D32: 4700043997 | E32: 10 | F32: P256177103 | G32: LAME DE SCIE DROITE A METAUX A MAIN | H32: 2016-08-29 | I32: 2016-08-31 | J32: 2 | K32: 0
A33: =CONCATENATE(base_sf[[#This Row],[N° de commande]],"-",base_sf[[#This Row],[Ligne]]) -> 4700044064-300 | B33: =IF(base_sf[[#This Row],[Qté C]]=base_sf[[#This Row],[Qté R]],"X","") ->  | C33: X | D33: 4700044064 | E33: 300 | F33: R100081956 | G33: CASQUE DE PROTECTION AVEC LUNETTES DE S | H33: 2016-09-07 | I33: 2016-09-14 | J33: 7 | K33: 0
A34: =CONCATENATE(base_sf[[#This Row],[N° de commande]],"-",base_sf[[#This Row],[Ligne]]) -> 4700044064-390 | B34: =IF(base_sf[[#This Row],[Qté C]]=base_sf[[#This Row],[Qté R]],"X","") ->  | C34: X | D34: 4700044064 | E34: 390 | F34: R100576533 | G34: CHAUSSURES DE SECURITE BASSE NOIRES A LA | H34: 2016-09-07 | I34: 2016-09-12 | J34: 2 | K34: 0
A35: =CONCATENATE(base_sf[[#This Row],[N° de commande]],"-",base_sf[[#This Row],[Ligne]]) -> 4700044083-670 | B35: =IF(base_sf[[#This Row],[Qté C]]=base_sf[[#This Row],[Qté R]],"X","") ->  | C35: X | D35: 4700044083 | E35: 670 | F35: X434132102 | G35: VIS SANS TETE 6 PANS CREUX HCM 4 LG 16 | H35: 2016-09-09 | I35: 2016-09-12 | J35: 2 | K35: 0
A36: =CONCATENATE(base_sf[[#This Row],[N° de commande]],"-",base_sf[[#This Row],[Ligne]]) -> 4700044111-30 | B36: =IF(base_sf[[#This Row],[Qté C]]=base_sf[[#This Row],[Qté R]],"X","") ->  | C36: X | D36: 4700044111 | E36: 30 | F36: P681349370 | G36: DOUILLE HEXAGONALE DE 18 A ENTRAIN. C | H36: 2016-09-14 | I36: 2016-09-19 | J36: 2 | K36: 0
A37: =CONCATENATE(base_sf[[#This Row],[N° de commande]],"-",base_sf[[#This Row],[Ligne]]) -> 4700044118-20 | B37: =IF(base_sf[[#This Row],[Qté C]]=base_sf[[#This Row],[Qté R]],"X","") ->  | C37: X | D37: 4700044118 | E37: 20 | F37: P671146100 | G37: PINCE A BECS RONDS TRES POINTUS SERIE " | H37: 2016-09-14 | I37: 2016-09-14 | J37: 1 | K37: 0
A38: =CONCATENATE(base_sf[[#This Row],[N° de commande]],"-",base_sf[[#This Row],[Ligne]]) -> 4700044147-80 | B38: =IF(base_sf[[#This Row],[Qté C]]=base_sf[[#This Row],[Qté R]],"X","") ->  | C38: X | D38: 4700044147 | E38: 80 | F38: R100307197 | G38: LOT DE 4 ACCU RECHARGEABLE NI-MH TYPE AA | H38: 2016-09-20 | I38: 2016-09-30 | J38: 4 | K38: 0
A39: =CONCATENATE(base_sf[[#This Row],[N° de commande]],"-",base_sf[[#This Row],[Ligne]]) -> 4700044175-210 | B39: =IF(base_sf[[#This Row],[Qté C]]=base_sf[[#This Row],[Qté R]],"X","") ->  | C39: X | D39: 4700044175 | E39: 210 | F39: X215121907 | G39: TUYAU SOUPLE PVC TRANSLUCIDE 8 X 14 | H39: 2016-09-23 | I39: 2016-09-26 | J39: 25 | K39: 0
A40: =CONCATENATE(base_sf[[#This Row],[N° de commande]],"-",base_sf[[#This Row],[Ligne]]) -> 4700044175-240 | B40: =IF(base_sf[[#This Row],[Qté C]]=base_sf[[#This Row],[Qté R]],"X","") ->  | C40: X | D40: 4700044175 | E40: 240 | F40: R100438372 | G40: BLOUSE F STANDARD SERGE GRIS CLAIR | H40: 2016-09-23 | I40: 2016-10-13 | J40: 2 | K40: 0
A41: =CONCATENATE(base_sf[[#This Row],[N° de commande]],"-",base_sf[[#This Row],[Ligne]]) -> 4700044175-380 | B41: =IF(base_sf[[#This Row],[Qté C]]=base_sf[[#This Row],[Qté R]],"X","") ->  | C41: X | D41: 4700044175 | E41: 380 | F41: R100014124 | G41: ADAPTATEUR MALE NPT 1/8" & FEM.BSP CY.1/ | H41: 2016-09-23 | I41: 2016-09-28 | J41: 200 | K41: 0
A42: =CONCATENATE(base_sf[[#This Row],[N° de commande]],"-",base_sf[[#This Row],[Ligne]]) -> 4700044175-390 | B42: =IF(base_sf[[#This Row],[Qté C]]=base_sf[[#This Row],[Qté R]],"X","") ->  | C42: X | D42: 4700044175 | E42: 390 | F42: R100058611 | G42: ACCUMULATEUR NI-CD-DIAM:22,4X42MM-1,2V-1 | H42: 2016-09-23 | I42: 2016-09-28 | J42: 5 | K42: 1
A43: =CONCATENATE(base_sf[[#This Row],[N° de commande]],"-",base_sf[[#This Row],[Ligne]]) -> 4700044175-490 | B43: =IF(base_sf[[#This Row],[Qté C]]=base_sf[[#This Row],[Qté R]],"X","") ->  | C43: X | D43: 4700044175 | E43: 490 | F43: R100582895 | G43: CASQUETTE COTON POLYESTER NOIR VISIERE R | H43: 2016-09-23 | I43: 2016-10-10 | J43: 10 | K43: 0
A44: =CONCATENATE(base_sf[[#This Row],[N° de commande]],"-",base_sf[[#This Row],[Ligne]]) -> 4700044175-510 | B44: =IF(base_sf[[#This Row],[Qté C]]=base_sf[[#This Row],[Qté R]],"X","") ->  | C44: X | D44: 4700044175 | E44: 510 | F44: X215142103 | G44: TUYAU SOUPLE D.10 X 16 PVC TRANSLUCIDE | H44: 2016-09-23 | I44: 2016-09-26 | J44: 25 | K44: 0
A45: =CONCATENATE(base_sf[[#This Row],[N° de commande]],"-",base_sf[[#This Row],[Ligne]]) -> 4700044175-530 | B45: =IF(base_sf[[#This Row],[Qté C]]=base_sf[[#This Row],[Qté R]],"X","") ->  | C45: X | D45: 4700044175 | E45: 530 | F45: X489043000 | G45: TIGE FILETEE M10X1,5 LG:1000MM ACIER:8 | H45: 2016-09-23 | I45: 2016-09-26 | J45: 5 | K45: 0
A46: =CONCATENATE(base_sf[[#This Row],[N° de commande]],"-",base_sf[[#This Row],[Ligne]]) -> 4700044175-550 | B46: =IF(base_sf[[#This Row],[Qté C]]=base_sf[[#This Row],[Qté R]],"X","") ->  | C46: X | D46: 4700044175 | E46: 550 | F46: X756100401 | G46: FICHE BANANE ISOLEE BLANCHE D.2 5A A | H46: 2016-09-23 | I46: 2016-09-26 | J46: 50 | K46: 26
A47: =CONCATENATE(base_sf[[#This Row],[N° de commande]],"-",base_sf[[#This Row],[Ligne]]) -> 4700044183-60 | B47: =IF(base_sf[[#This Row],[Qté C]]=base_sf[[#This Row],[Qté R]],"X","") ->  | C47: X | D47: 4700044183 | E47: 60 | F47: P761068670 | G47: METRE A RUBAN 5M LECTURE DIRECTE LARG:28 | H47: 2016-09-26 | I47: 2016-10-03 | J47: 2 | K47: 0
A48: =CONCATENATE(base_sf[[#This Row],[N° de commande]],"-",base_sf[[#This Row],[Ligne]]) -> 4700044183-90 | B48: =IF(base_sf[[#This Row],[Qté C]]=base_sf[[#This Row],[Qté R]],"X","") ->  | C48: X | D48: 4700044183 | E48: 90 | F48: R100438329 | G48: BLOUSE H STANDARD SERGE GRIS CLAIR | H48: 2016-09-26 | I48: 2016-10-17 | J48: 1 | K48: 0
A49: =CONCATENATE(base_sf[[#This Row],[N° de commande]],"-",base_sf[[#This Row],[Ligne]]) -> 4700044183-100 | B49: =IF(base_sf[[#This Row],[Qté C]]=base_sf[[#This Row],[Qté R]],"X","") ->  | C49: X | D49: 4700044183 | E49: 100 | F49: R100438372 | G49: BLOUSE F STANDARD SERGE GRIS CLAIR | H49: 2016-09-26 | I49: 2016-10-17 | J49: 1 | K49: 0
A50: =CONCATENATE(base_sf[[#This Row],[N° de commande]],"-",base_sf[[#This Row],[Ligne]]) -> 4700044183-110 | B50: =IF(base_sf[[#This Row],[Qté C]]=base_sf[[#This Row],[Qté R]],"X","") ->  | C50: X | D50: 4700044183 | E50: 110 | F50: R100518619 | G50: CHAUSSURES DE SECURITE AMAGNETIQUES "VIL | H50: 2016-09-26 | I50: 2016-10-06 | J50: 1 | K50: 0
A51: =CONCATENATE(base_sf[[#This Row],[N° de commande]],"-",base_sf[[#This Row],[Ligne]]) -> 4700044190-50 | B51: =IF(base_sf[[#This Row],[Qté C]]=base_sf[[#This Row],[Qté R]],"X","") ->  | C51: X | D51: 4700044190 | E51: 50 | F51: X115572504 | G51: BAGUE DE SERTISSAGE ACIER TUBE 8 ERMETO | H51: 2016-09-27 | I51: 2016-10-03 | J51: 166 | K51: 0
A52: =CONCATENATE(base_sf[[#This Row],[N° de commande]],"-",base_sf[[#This Row],[Ligne]]) -> 4700044190-60 | B52: =IF(base_sf[[#This Row],[Qté C]]=base_sf[[#This Row],[Qté R]],"X","") ->  | C52: X | D52: 4700044190 | E52: 60 | F52: X153060703 | G52: UNION SIMPLE MALE LAITON TUBE 8 GAZ CO | H52: 2016-09-27 | I52: 2016-10-04 | J52: 200 | K52: 67
A53: =CONCATENATE(base_sf[[#This Row],[N° de commande]],"-",base_sf[[#This Row],[Ligne]]) -> 4700044190-80 | B53: =IF(base_sf[[#This Row],[Qté C]]=base_sf[[#This Row],[Qté R]],"X","") ->  | C53: X | D53: 4700044190 | E53: 80 | F53: X971143180 | G53: MARQUEUR FEUTRE EDDING 750 COULEUR RO | H53: 2016-09-27 | I53: 2016-09-29 | J53: 10 | K53: 0
A54: =CONCATENATE(base_sf[[#This Row],[N° de commande]],"-",base_sf[[#This Row],[Ligne]]) -> 4700044206-60 | B54: =IF(base_sf[[#This Row],[Qté C]]=base_sf[[#This Row],[Qté R]],"X","") ->  | C54: X | D54: 4700044206 | E54: 60 | F54: R100387920 | G54: MODULE COMPACT ASI IP67 V3,AVEC 4 X 1E/1 | H54: 2016-09-29 | I54: 2016-10-10 | J54: 2 | K54: 0
A55: =CONCATENATE(base_sf[[#This Row],[N° de commande]],"-",base_sf[[#This Row],[Ligne]]) -> 4700044206-70 | B55: =IF(base_sf[[#This Row],[Qté C]]=base_sf[[#This Row],[Qté R]],"X","") ->  | C55: X | D55: 4700044206 | E55: 70 | F55: R100428625 | G55: EMBASEK45 PROFILE SYM POUR MODULE COMPAC | H55: 2016-09-29 | I55: 2016-10-10 | J55: 2 | K55: 0
A56: =CONCATENATE(base_sf[[#This Row],[N° de commande]],"-",base_sf[[#This Row],[Ligne]]) -> 4700044206-130 | B56: =IF(base_sf[[#This Row],[Qté C]]=base_sf[[#This Row],[Qté R]],"X","") ->  | C56: X | D56: 4700044206 | E56: 130 | F56: R100209761 | G56: GILET HAUTE VISIBILITE JAUNE FLUO EN 471 | H56: 2016-09-29 | I56: 2016-10-10 | J56: 1 | K56: 0
A57: =CONCATENATE(base_sf[[#This Row],[N° de commande]],"-",base_sf[[#This Row],[Ligne]]) -> 4700044206-140 | B57: =IF(base_sf[[#This Row],[Qté C]]=base_sf[[#This Row],[Qté R]],"X","") ->  | C57: X | D57: 4700044206 | E57: 140 | F57: R100364714 | G57: PAIRE DE CHAUSSURES BASSE EN CUIR NOIR,T | H57: 2016-09-29 | I57: 2016-10-10 | J57: 1 | K57: 0
A58: =CONCATENATE(base_sf[[#This Row],[N° de commande]],"-",base_sf[[#This Row],[Ligne]]) -> 4700044206-290 | B58: =IF(base_sf[[#This Row],[Qté C]]=base_sf[[#This Row],[Qté R]],"X","") ->  | C58: X | D58: 4700044206 | E58: 290 | F58: X953153454 | G58: PAIRE DE GANTS ELECTRICIEN ISOLANT LATEX | H58: 2016-09-29 | I58: 2016-10-03 | J58: 5 | K58: 0
A59: =CONCATENATE(base_sf[[#This Row],[N° de commande]],"-",base_sf[[#This Row],[Ligne]]) -> 4700044224-30 | B59: =IF(base_sf[[#This Row],[Qté C]]=base_sf[[#This Row],[Qté R]],"X","") ->  | C59: X | D59: 4700044224 | E59: 30 | F59: R100364713 | G59: PAIRE DE CHAUSSURES BASSE EN CUIR NOIR,T | H59: 2016-10-03 | I59: 2016-10-12 | J59: 1 | K59: 0
A60: =CONCATENATE(base_sf[[#This Row],[N° de commande]],"-",base_sf[[#This Row],[Ligne]]) -> 4700044224-40 | B60: =IF(base_sf[[#This Row],[Qté C]]=base_sf[[#This Row],[Qté R]],"X","") ->  | C60: X | D60: 4700044224 | E60: 40 | F60: P931594704 | G60: PISTOLET A CREMAILLIERE MANUEL POUR CART | H60: 2016-10-03 | I60: 2016-10-06 | J60: 3 | K60: 0
A61: =CONCATENATE(base_sf[[#This Row],[N° de commande]],"-",base_sf[[#This Row],[Ligne]]) -> 4700044224-50 | B61: =IF(base_sf[[#This Row],[Qté C]]=base_sf[[#This Row],[Qté R]],"X","") ->  | C61: X | D61: 4700044224 | E61: 50 | F61: R100115468 | G61: AEROSOL 150ML LE SPRAY DU MARCHEUR | H61: 2016-10-03 | I61: 2016-10-13 | J61: 5 | K61: 0
A62: =CONCATENATE(base_sf[[#This Row],[N° de commande]],"-",base_sf[[#This Row],[Ligne]]) -> 4700044224-70 | B62: =IF(base_sf[[#This Row],[Qté C]]=base_sf[[#This Row],[Qté R]],"X","") ->  | C62: X | D62: 4700044224 | E62: 70 | F62: R100207469 | G62: .IGE DE TRACTION M6 POUR RIVETEUR P320 | H62: 2016-10-03 | I62: 2016-10-13 | J62: 3 | K62: 0
A63: =CONCATENATE(base_sf[[#This Row],[N° de commande]],"-",base_sf[[#This Row],[Ligne]]) -> 4700044224-110 | B63: =IF(base_sf[[#This Row],[Qté C]]=base_sf[[#This Row],[Qté R]],"X","") ->  | C63: X | D63: 4700044224 | E63: 110 | F63: R100090222 | G63: ESSUYEURS "KIMWIPES CLASSIC 1000 BLANCS" | H63: 2016-10-03 | I63: 2016-10-13 | J63: 5 | K63: 0
A64: =CONCATENATE(base_sf[[#This Row],[N° de commande]],"-",base_sf[[#This Row],[Ligne]]) -> 4700044224-130 | B64: =IF(base_sf[[#This Row],[Qté C]]=base_sf[[#This Row],[Qté R]],"X","") ->  | C64: X | D64: 4700044224 | E64: 130 | F64: R100247337 | G64: PINCE MULTIPRISE LG:250 CHROMEE GAINEE C | H64: 2016-10-03 | I64: 2016-10-13 | J64: 2 | K64: 0
A65: =CONCATENATE(base_sf[[#This Row],[N° de commande]],"-",base_sf[[#This Row],[Ligne]]) -> 4700044224-160 | B65: =IF(base_sf[[#This Row],[Qté C]]=base_sf[[#This Row],[Qté R]],"X","") ->  | C65: X | D65: 4700044224 | E65: 160 | F65: R100491109 | G65: CASQUETTE DE PROTECTION A VISIERE TYPE B | H65: 2016-10-03 | I65: 2016-10-13 | J65: 2 | K65: 0
A66: =CONCATENATE(base_sf[[#This Row],[N° de commande]],"-",base_sf[[#This Row],[Ligne]]) -> 4700044224-180 | B66: =IF(base_sf[[#This Row],[Qté C]]=base_sf[[#This Row],[Qté R]],"X","") ->  | C66: =IF(ISERROR(VLOOKUP(A66,base_suivi_sof,1,FALSE)),"","X") -> X | D66: 4700044224 | E66: 180 | F66: R100518618 | G66: CHAUSSURES DE SECURITE AMAGNETIQUES "VIL | H66: 2016-10-03 | I66: 2016-10-13 | J66: 2 | K66: 0
A67: =CONCATENATE(base_sf[[#This Row],[N° de commande]],"-",base_sf[[#This Row],[Ligne]]) -> 4700044120-560 | B67: =IF(base_sf[[#This Row],[Qté C]]=base_sf[[#This Row],[Qté R]],"X","") ->  | C67: X | D67: 4700044120 | E67: 560 | F67: X428203000 | G67: VIS TETE FRAISEE 6 PANS CREUX FHC M | H67: 2016-09-15 | I67: 2016-09-19 | J67: 20 | K67: 0
A68: =CONCATENATE(base_sf[[#This Row],[N° de commande]],"-",base_sf[[#This Row],[Ligne]]) -> 4700044120-630 | B68: =IF(base_sf[[#This Row],[Qté C]]=base_sf[[#This Row],[Qté R]],"X","") ->  | C68: X | D68: 4700044120 | E68: 630 | F68: X725061400 | G68: COSSE TUBULAIRE ISOLEE TR. 6,4 1 | H68: 2016-09-15 | I68: 2016-09-19 | J68: 100 | K68: 62
A69: =CONCATENATE(base_sf[[#This Row],[N° de commande]],"-",base_sf[[#This Row],[Ligne]]) -> 4700044120-640 | B69: =IF(base_sf[[#This Row],[Qté C]]=base_sf[[#This Row],[Qté R]],"X","") ->  | C69: X | D69: 4700044120 | E69: 640 | F69: X725091570 | G69: COSSE A SERTIR TUB. NUE CUIVRE ETAME 50M | H69: 2016-09-15 | I69: 2016-09-19 | J69: 100 | K69: 75
A70: =CONCATENATE(base_sf[[#This Row],[N° de commande]],"-",base_sf[[#This Row],[Ligne]]) -> 4700044206-340 | B70: =IF(base_sf[[#This Row],[Qté C]]=base_sf[[#This Row],[Qté R]],"X","") ->  | C70: X | D70: 4700044206 | E70: 340 | F70: R100438372 | G70: BLOUSE F STANDARD SERGE GRIS CLAIR | H70: 2016-09-29 | I70: 2016-10-19 | J70: 1 | K70: 0
A71: =CONCATENATE(base_sf[[#This Row],[N° de commande]],"-",base_sf[[#This Row],[Ligne]]) -> 4700044206-700 | B71: =IF(base_sf[[#This Row],[Qté C]]=base_sf[[#This Row],[Qté R]],"X","") ->  | C71: X | D71: 4700044206 | E71: 700 | F71: T533205250 | G71: RUBAN ADHESIF PVC PLASTIFIE NOIR | H71: 2016-09-29 | I71: 2016-10-04 | J71: 20 | K71: 0
A72: =CONCATENATE(base_sf[[#This Row],[N° de commande]],"-",base_sf[[#This Row],[Ligne]]) -> 4700044206-760 | B72: =IF(base_sf[[#This Row],[Qté C]]=base_sf[[#This Row],[Qté R]],"X","") ->  | C72: X | D72: 4700044206 | E72: 760 | F72: X528114200 | G72: RIVET AVEUGLE POP TETE PLATE D 3 LG | H72: 2016-09-29 | I72: 2016-10-03 | J72: 1000 | K72: 400
A73: =CONCATENATE(base_sf[[#This Row],[N° de commande]],"-",base_sf[[#This Row],[Ligne]]) -> 4700044224-410 | B73: =IF(base_sf[[#This Row],[Qté C]]=base_sf[[#This Row],[Qté R]],"X","") ->  | C73: X | D73: 4700044224 | E73: 410 | F73: R100525243 | G73: GANTS ENDUIT POLYURETHANE/NITRILE NOIR E | H73: 2016-10-03 | I73: 2016-10-13 | J73: 10 | K73: 0
A74: =CONCATENATE(base_sf[[#This Row],[N° de commande]],"-",base_sf[[#This Row],[Ligne]]) -> 4700044224-450 | B74: =IF(base_sf[[#This Row],[Qté C]]=base_sf[[#This Row],[Qté R]],"X","") ->  | C74: X | D74: 4700044224 | E74: 450 | F74: X234441814 | G74: ROB BOIS SPHER DR 2V F F G 1/4 P 7 13 | H74: 2016-10-03 | I74: 2016-10-05 | J74: 60 | K74: 0
A75: =CONCATENATE(base_sf[[#This Row],[N° de commande]],"-",base_sf[[#This Row],[Ligne]]) -> 4700044224-470 | B75: =IF(base_sf[[#This Row],[Qté C]]=base_sf[[#This Row],[Qté R]],"X","") ->  | C75: X | D75: 4700044224 | E75: 470 | F75: X345454501 | G75: EMBOUT A ROTULE MALE 16 X 38 X | H75: 2016-10-03 | I75: 2016-11-02 | J75: 2 | K75: 0
A76: =CONCATENATE(base_sf[[#This Row],[N° de commande]],"-",base_sf[[#This Row],[Ligne]]) -> 4700044224-480 | B76: =IF(base_sf[[#This Row],[Qté C]]=base_sf[[#This Row],[Qté R]],"X","") ->  | C76: X | D76: 4700044224 | E76: 480 | F76: X452133002 | G76: VIS A BOIS AGGLO.TETE FRAISEE POZIDR."FZ | H76: 2016-10-03 | I76: 2016-10-05 | J76: 60 | K76: 0
A77: =CONCATENATE(base_sf[[#This Row],[N° de commande]],"-",base_sf[[#This Row],[Ligne]]) -> 4700044224-490 | B77: =IF(base_sf[[#This Row],[Qté C]]=base_sf[[#This Row],[Qté R]],"X","") ->  | C77: X | D77: 4700044224 | E77: 490 | F77: X683210003 | G77: CANNE BOULON H17 TYPE K D. 2MM LG.SS | H77: 2016-10-03 | I77: 2016-10-05 | J77: 60 | K77: 0
A78: =CONCATENATE(base_sf[[#This Row],[N° de commande]],"-",base_sf[[#This Row],[Ligne]]) -> 4700044224-500 | B78: =IF(base_sf[[#This Row],[Qté C]]=base_sf[[#This Row],[Qté R]],"X","") ->  | C78: X | D78: 4700044224 | E78: 500 | F78: X683210104 | G78: CANNE BOULON TYPE K D.2MM LG. SOUS TE | H78: 2016-10-03 | I78: 2016-10-13 | J78: 80 | K78: 0
A79: =CONCATENATE(base_sf[[#This Row],[N° de commande]],"-",base_sf[[#This Row],[Ligne]]) -> 4700044224-530 | B79: =IF(base_sf[[#This Row],[Qté C]]=base_sf[[#This Row],[Qté R]],"X","") ->  | C79: X | D79: 4700044224 | E79: 530 | F79: X951506724 | G79: PAIRE DE BOUCHONS D'OREILLE REUTILISABLE | H79: 2016-10-03 | I79: 2016-10-10 | J79: 10 | K79: 0
A80: =CONCATENATE(base_sf[[#This Row],[N° de commande]],"-",base_sf[[#This Row],[Ligne]]) -> 4700044235-130 | B80: =IF(base_sf[[#This Row],[Qté C]]=base_sf[[#This Row],[Qté R]],"X","") ->  | C80: X | D80: 4700044235 | E80: 130 | F80: R000111100 | G80: PACK DE 10 PILES ALCALINE TYPE CEI :LR6 | H80: 2016-10-04 | I80: 2016-10-07 | J80: 120 | K80: 0
A81: =CONCATENATE(base_sf[[#This Row],[N° de commande]],"-",base_sf[[#This Row],[Ligne]]) -> 4700044235-140 | B81: =IF(base_sf[[#This Row],[Qté C]]=base_sf[[#This Row],[Qté R]],"X","") ->  | C81: X | D81: 4700044235 | E81: 140 | F81: R100021247 | G81: UNION SIMPLE MALE LAITON TUBE 8 FIL.G. | H81: 2016-10-04 | I81: 2016-10-06 | J81: 30 | K81: 0
A82: =CONCATENATE(base_sf[[#This Row],[N° de commande]],"-",base_sf[[#This Row],[Ligne]]) -> 4700044235-150 | B82: =IF(base_sf[[#This Row],[Qté C]]=base_sf[[#This Row],[Qté R]],"X","") ->  | C82: X | D82: 4700044235 | E82: 150 | F82: R100057687 | G82: AEROSOL 650ML GAZ SEC ODP "0" (CONT. NET | H82: 2016-10-04 | I82: 2016-10-10 | J82: 8 | K82: 0
A83: =CONCATENATE(base_sf[[#This Row],[N° de commande]],"-",base_sf[[#This Row],[Ligne]]) -> 4700044235-170 | B83: =IF(base_sf[[#This Row],[Qté C]]=base_sf[[#This Row],[Qté R]],"X","") ->  | C83: X | D83: 4700044235 | E83: 170 | F83: R100150297 | G83: GANT TRICOTE 5DGTS 3FILS COTON POIGNET | H83: 2016-10-04 | I83: 2016-10-10 | J83: 500 | K83: 0
A84: =CONCATENATE(base_sf[[#This Row],[N° de commande]],"-",base_sf[[#This Row],[Ligne]]) -> 4700044235-650 | B84: =IF(base_sf[[#This Row],[Qté C]]=base_sf[[#This Row],[Qté R]],"X","") ->  | C84: X | D84: 4700044235 | E84: 650 | F84: X191160703 | G84: ABOUT DE RACCORD.PASS.8MM PR TUYAU CAOUT | H84: 2016-10-04 | I84: 2016-10-14 | J84: 10 | K84: 0
A85: =CONCATENATE(base_sf[[#This Row],[N° de commande]],"-",base_sf[[#This Row],[Ligne]]) -> 4700043297-310 | B85: =IF(base_sf[[#This Row],[Qté C]]=base_sf[[#This Row],[Qté R]],"X","") ->  | C85: X | D85: 4700043297 | E85: 310 | F85: R100179987 | G85: PINCE ETAU A GACHETTE "SERIE T5"DIM:250X | H85: 2016-04-29 | I85: 2016-05-09 | J85: 1 | K85: 0
A86: =CONCATENATE(base_sf[[#This Row],[N° de commande]],"-",base_sf[[#This Row],[Ligne]]) -> 4700043399-530 | B86: =IF(base_sf[[#This Row],[Qté C]]=base_sf[[#This Row],[Qté R]],"X","") ->  | C86: X | D86: 4700043399 | E86: 530 | F86: R100320578 | G86: SERVANTE-COFFRE 650X400X520 5 CASES | H86: 2016-05-18 | I86: 2016-05-23 | J86: 2 | K86: 0
A87: =CONCATENATE(base_sf[[#This Row],[N° de commande]],"-",base_sf[[#This Row],[Ligne]]) -> 4700043538-110 | B87: =IF(base_sf[[#This Row],[Qté C]]=base_sf[[#This Row],[Qté R]],"X","") ->  | C87: X | D87: 4700043538 | E87: 110 | F87: R100438457 | G87: POLO MANCHES COURTES MAILLE PIQUEE GRIS | H87: 2016-06-07 | I87: 2016-06-15 | J87: 500 | K87: 100
A88: =CONCATENATE(base_sf[[#This Row],[N° de commande]],"-",base_sf[[#This Row],[Ligne]]) -> 4700043538-200 | B88: =IF(base_sf[[#This Row],[Qté C]]=base_sf[[#This Row],[Qté R]],"X","") ->  | C88: X | D88: 4700043538 | E88: 200 | F88: R100438456 | G88: POLO MANCHES COURTES MAILLE PIQUEE GRIS | H88: 2016-06-07 | I88: 2016-06-15 | J88: 600 | K88: 100
A89: =CONCATENATE(base_sf[[#This Row],[N° de commande]],"-",base_sf[[#This Row],[Ligne]]) -> 4700043566-360 | B89: =IF(base_sf[[#This Row],[Qté C]]=base_sf[[#This Row],[Qté R]],"X","") ->  | C89: X | D89: 4700043566 | E89: 360 | F89: R100115136 | G89: PAIRE DE GANTS 5DGTS NITRILE INTEGRAL SU | H89: 2016-06-10 | I89: 2016-06-13 | J89: 1 | K89: 0
A90: =CONCATENATE(base_sf[[#This Row],[N° de commande]],"-",base_sf[[#This Row],[Ligne]]) -> 4700043575-230 | B90: =IF(base_sf[[#This Row],[Qté C]]=base_sf[[#This Row],[Qté R]],"X","") ->  | C90: X | D90: 4700043575 | E90: 230 | F90: P481115803 | G90: PINCE-ETAU A GRANDE CAPACITE MAXI 120 LG | H90: 2016-06-13 | I90: 2016-06-16 | J90: 2 | K90: 0
A91: =CONCATENATE(base_sf[[#This Row],[N° de commande]],"-",base_sf[[#This Row],[Ligne]]) -> 4700043602-720 | B91: =IF(base_sf[[#This Row],[Qté C]]=base_sf[[#This Row],[Qté R]],"X","") ->  | C91: X | D91: 4700043602 | E91: 720 | F91: X417102503 | G91: VIS TETE CYL.CHC 6PANS CREUX M 3X0,5 LG. | H91: 2016-06-16 | I91: 2016-06-20 | J91: 160 | K91: 40
A92: =CONCATENATE(base_sf[[#This Row],[N° de commande]],"-",base_sf[[#This Row],[Ligne]]) -> 4700043627-260 | B92: =IF(base_sf[[#This Row],[Qté C]]=base_sf[[#This Row],[Qté R]],"X","") ->  | C92: X | D92: 4700043627 | E92: 260 | F92: R100121820 | G92: BOUTEILLE 0,95L INK 16-8530 | H92: 2016-06-21 | I92: 2016-06-27 | J92: 1 | K92: 0
A93: =CONCATENATE(base_sf[[#This Row],[N° de commande]],"-",base_sf[[#This Row],[Ligne]]) -> 4700043636-380 | B93: =IF(base_sf[[#This Row],[Qté C]]=base_sf[[#This Row],[Qté R]],"X","") ->  | C93: X | D93: 4700043636 | E93: 380 | F93: P935171772 | G93: ECOUVILLON D:12,5 FIL ACIER THR 0,22 DBL | H93: 2016-06-22 | I93: 2016-06-27 | J93: 2 | K93: 0
A94: =CONCATENATE(base_sf[[#This Row],[N° de commande]],"-",base_sf[[#This Row],[Ligne]]) -> 4700043653-240 | B94: =IF(base_sf[[#This Row],[Qté C]]=base_sf[[#This Row],[Qté R]],"X","") ->  | C94: X | D94: 4700043653 | E94: 240 | F94: R100135045 | G94: HUILE ANTI CORROSION CONTRAKOR 16 L BIDO | H94: 2016-06-24 | I94: 2016-06-29 | J94: 20 | K94: 14
A95: =CONCATENATE(base_sf[[#This Row],[N° de commande]],"-",base_sf[[#This Row],[Ligne]]) -> 4700043661-120 | B95: =IF(base_sf[[#This Row],[Qté C]]=base_sf[[#This Row],[Qté R]],"X","") ->  | C95: X | D95: 4700043661 | E95: 120 | F95: R100438457 | G95: POLO MANCHES COURTES MAILLE PIQUEE GRIS | H95: 2016-06-27 | I95: 2016-10-10 | J95: 4 | K95: 0
A96: =CONCATENATE(base_sf[[#This Row],[N° de commande]],"-",base_sf[[#This Row],[Ligne]]) -> 4700043661-130 | B96: =IF(base_sf[[#This Row],[Qté C]]=base_sf[[#This Row],[Qté R]],"X","") ->  | C96: X | D96: 4700043661 | E96: 130 | F96: X140062050 | G96: EMBOUT OGIVE LAITON PASS.4 PR TUYAU D. | H96: 2016-06-27 | I96: 2016-06-29 | J96: 30 | K96: 0
A97: =CONCATENATE(base_sf[[#This Row],[N° de commande]],"-",base_sf[[#This Row],[Ligne]]) -> 4700043672-100 | B97: =IF(base_sf[[#This Row],[Qté C]]=base_sf[[#This Row],[Qté R]],"X","") ->  | C97: X | D97: 4700043672 | E97: 100 | F97: P761068670 | G97: METRE A RUBAN 5M LECTURE DIRECTE LARG:19 | H97: 2016-06-28 | I97: 2016-07-08 | J97: 2 | K97: 0
A98: =CONCATENATE(base_sf[[#This Row],[N° de commande]],"-",base_sf[[#This Row],[Ligne]]) -> 4700043683-270 | B98: =IF(base_sf[[#This Row],[Qté C]]=base_sf[[#This Row],[Qté R]],"X","") ->  | C98: X | D98: 4700043683 | E98: 270 | F98: R100586997 | G98: GANT ELECTRICIEN ISOLANT LATEX CLASSE 00 | H98: 2016-06-29 | I98: 2016-07-04 | J98: 1 | K98: 0
A99: =CONCATENATE(base_sf[[#This Row],[N° de commande]],"-",base_sf[[#This Row],[Ligne]]) -> 4700043709-390 | B99: =IF(base_sf[[#This Row],[Qté C]]=base_sf[[#This Row],[Qté R]],"X","") ->  | C99: X | D99: 4700043709 | E99: 390 | F99: P761068670 | G99: METRE A RUBAN 5M LECTURE DIRECTE LARG:19 | H99: 2016-07-04 | I99: 2016-07-11 | J99: 3 | K99: 0
A100: =CONCATENATE(base_sf[[#This Row],[N° de commande]],"-",base_sf[[#This Row],[Ligne]]) -> 4700043709-400 | B100: =IF(base_sf[[#This Row],[Qté C]]=base_sf[[#This Row],[Qté R]],"X","") ->  | C100: X | D100: 4700043709 | E100: 400 | F100: P761068670 | G100: METRE A RUBAN 5M LECTURE DIRECTE LARG:19 | H100: 2016-07-04 | I100: 2016-07-11 | J100: 2 | K100: 0
A101: =CONCATENATE(base_sf[[#This Row],[N° de commande]],"-",base_sf[[#This Row],[Ligne]]) -> 4700043717-150 | B101: =IF(base_sf[[#This Row],[Qté C]]=base_sf[[#This Row],[Qté R]],"X","") ->  | C101: X | D101: 4700043717 | E101: 150 | F101: X140062050 | G101: EMBOUT OGIVE LAITON PASS.4 PR TUYAU D. | H101: 2016-07-05 | I101: 2016-07-07 | J101: 100 | K101: 0
A102: =CONCATENATE(base_sf[[#This Row],[N° de commande]],"-",base_sf[[#This Row],[Ligne]]) -> 4700043727-340 | B102: =IF(base_sf[[#This Row],[Qté C]]=base_sf[[#This Row],[Qté R]],"X","") ->  | C102: X | D102: 4700043727 | E102: 340 | F102: X140062050 | G102: EMBOUT OGIVE LAITON PASS.4 PR TUYAU D. | H102: 2016-07-06 | I102: 2016-07-08 | J102: 4 | K102: 0
A103: =CONCATENATE(base_sf[[#This Row],[N° de commande]],"-",base_sf[[#This Row],[Ligne]]) -> 4700043746-340 | B103: =IF(base_sf[[#This Row],[Qté C]]=base_sf[[#This Row],[Qté R]],"X","") ->  | C103: X | D103: 4700043746 | E103: 340 | F103: R100576533 | G103: CHAUSSURES DE SECURITE BASSE NOIRES A LA | H103: 2016-07-08 | I103: 2016-07-13 | J103: 2 | K103: 0
A104: =CONCATENATE(base_sf[[#This Row],[N° de commande]],"-",base_sf[[#This Row],[Ligne]]) -> 4700043767-190 | B104: =IF(base_sf[[#This Row],[Qté C]]=base_sf[[#This Row],[Qté R]],"X","") ->  | C104: X | D104: 4700043767 | E104: 190 | F104: X484022001 | G104: ECROU HEXAGONAL USUEL 'HU' M6 PAS:100 | H104: 2016-07-13 | I104: 2016-07-15 | J104: 100 | K104: 0
A105: =CONCATENATE(base_sf[[#This Row],[N° de commande]],"-",base_sf[[#This Row],[Ligne]]) -> 4700043806-390 | B105: =IF(base_sf[[#This Row],[Qté C]]=base_sf[[#This Row],[Qté R]],"X","") ->  | C105: X | D105: 4700043806 | E105: 390 | F105: X511116200 | G105: RONDELLE PLATE ETROITE D 5,3 X 10 E | H105: 2016-07-21 | I105: 2016-07-25 | J105: 100 | K105: 0
A106: =CONCATENATE(base_sf[[#This Row],[N° de commande]],"-",base_sf[[#This Row],[Ligne]]) -> 4700043806-410 | B106: =IF(base_sf[[#This Row],[Qté C]]=base_sf[[#This Row],[Qté R]],"X","") ->  | C106: X | D106: 4700043806 | E106: 410 | F106: X511125200 | G106: RONDELLE PLATE ETROITE D:8,4 X 16 EP:1,5 | H106: 2016-07-21 | I106: 2016-07-25 | J106: 100 | K106: 0
A107: =CONCATENATE(base_sf[[#This Row],[N° de commande]],"-",base_sf[[#This Row],[Ligne]]) -> 4700043823-160 | B107: =IF(base_sf[[#This Row],[Qté C]]=base_sf[[#This Row],[Qté R]],"X","") ->  | C107: X | D107: 4700043823 | E107: 160 | F107: R100234745 | G107: ADAPTATEUR A ENTRAINEMENT CARRE FEM. 9 | H107: 2016-07-25 | I107: 2016-08-03 | J107: 4 | K107: 0
A108: =CONCATENATE(base_sf[[#This Row],[N° de commande]],"-",base_sf[[#This Row],[Ligne]]) -> 4700043852-60 | B108: =IF(base_sf[[#This Row],[Qté C]]=base_sf[[#This Row],[Qté R]],"X","") ->  | C108: X | D108: 4700043852 | E108: 60 | F108: R100021288 | G108: OEILLET DE MAINTIEN D.INT.:12 ACIER GAL | H108: 2016-07-29 | I108: 2016-08-03 | J108: 1 | K108: 0
A109: =CONCATENATE(base_sf[[#This Row],[N° de commande]],"-",base_sf[[#This Row],[Ligne]]) -> 4700043891-120 | B109: =IF(base_sf[[#This Row],[Qté C]]=base_sf[[#This Row],[Qté R]],"X","") ->  | C109: X | D109: 4700043891 | E109: 120 | F109: R100478708 | G109: PINCE A DENUDER EN BOUT 194.17 CPE | H109: 2016-08-08 | I109: 2016-08-11 | J109: 1 | K109: 0
A110: =CONCATENATE(base_sf[[#This Row],[N° de commande]],"-",base_sf[[#This Row],[Ligne]]) -> 4700043955-10 | B110: =IF(base_sf[[#This Row],[Qté C]]=base_sf[[#This Row],[Qté R]],"X","") ->  | C110: X | D110: 4700043955 | E110: 10 | F110: X511159401 | G110: RONDELLE PLATE LARGE D 25 X 60 E | H110: 2016-08-19 | I110: 2016-08-19 | J110: 30 | K110: 0
A111: =CONCATENATE(base_sf[[#This Row],[N° de commande]],"-",base_sf[[#This Row],[Ligne]]) -> 4700043972-320 | B111: =IF(base_sf[[#This Row],[Qté C]]=base_sf[[#This Row],[Qté R]],"X","") ->  | C111: X | D111: 4700043972 | E111: 320 | F111: X511311600 | G111: RONDELLE GROWER W 5 ACIER | H111: 2016-08-24 | I111: 2016-08-26 | J111: 500 | K111: 0
A112: =CONCATENATE(base_sf[[#This Row],[N° de commande]],"-",base_sf[[#This Row],[Ligne]]) -> 4700043979-160 | B112: =IF(base_sf[[#This Row],[Qté C]]=base_sf[[#This Row],[Qté R]],"X","") ->  | C112: X | D112: 4700043979 | E112: 160 | F112: X708022600 | G112: CABLE SOUPLE BLINDE 2 X 1, | H112: 2016-08-25 | I112: 2016-08-30 | J112: 100 | K112: 50
A113: =CONCATENATE(base_sf[[#This Row],[N° de commande]],"-",base_sf[[#This Row],[Ligne]]) -> 4700044005-80 | B113: =IF(base_sf[[#This Row],[Qté C]]=base_sf[[#This Row],[Qté R]],"X","") ->  | C113: X | D113: 4700044005 | E113: 80 | F113: P761068670 | G113: METRE A RUBAN 5M LECTURE DIRECTE LARG:28 | H113: 2016-08-30 | I113: 2016-09-06 | J113: 5 | K113: 0
A114: =CONCATENATE(base_sf[[#This Row],[N° de commande]],"-",base_sf[[#This Row],[Ligne]]) -> 4700044005-170 | B114: =IF(base_sf[[#This Row],[Qté C]]=base_sf[[#This Row],[Qté R]],"X","") ->  | C114: X | D114: 4700044005 | E114: 170 | F114: R100645812 | G114: GANTS TRICOTE TEGERA 868 NEUF | H114: 2016-08-30 | I114: 2016-09-09 | J114: 30 | K114: 0
A115: =CONCATENATE(base_sf[[#This Row],[N° de commande]],"-",base_sf[[#This Row],[Ligne]]) -> 4700044005-460 | B115: =IF(base_sf[[#This Row],[Qté C]]=base_sf[[#This Row],[Qté R]],"X","") ->  | C115: X | D115: 4700044005 | E115: 460 | F115: X452206102 | G115: VIS A BOIS AGGLO.TETE FRAISEE POZIDR."FZ | H115: 2016-08-30 | I115: 2016-09-02 | J115: 200 | K115: 145
A116: =CONCATENATE(base_sf[[#This Row],[N° de commande]],"-",base_sf[[#This Row],[Ligne]]) -> 4700044023-390 | B116: =IF(base_sf[[#This Row],[Qté C]]=base_sf[[#This Row],[Qté R]],"X","") ->  | C116: X | D116: 4700044023 | E116: 390 | F116: X573518200 | G116: COLLIER A VIS SERRAGE REGLABLE DE 32 A 5 | H116: 2016-09-01 | I116: 2016-09-06 | J116: 20 | K116: 13
A117: =CONCATENATE(base_sf[[#This Row],[N° de commande]],"-",base_sf[[#This Row],[Ligne]]) -> 4700044041-30 | B117: =IF(base_sf[[#This Row],[Qté C]]=base_sf[[#This Row],[Qté R]],"X","") ->  | C117: X | D117: 4700044041 | E117: 30 | F117: X434162501 | G117: VIS SANS TETE 6 PANS CREUX "HC" M5X0,8 L | H117: 2016-09-02 | I117: 2016-09-02 | J117: 100 | K117: 0
A118: =CONCATENATE(base_sf[[#This Row],[N° de commande]],"-",base_sf[[#This Row],[Ligne]]) -> 4700044041-50 | B118: =IF(base_sf[[#This Row],[Qté C]]=base_sf[[#This Row],[Qté R]],"X","") ->  | C118: X | D118: 4700044041 | E118: 50 | F118: P137003401 | G118: FILIERE RONDE EXTENSIBLE M12 PAS 1,50 OU | H118: 2016-09-02 | I118: 2016-09-02 | J118: 3 | K118: 2
A119: =CONCATENATE(base_sf[[#This Row],[N° de commande]],"-",base_sf[[#This Row],[Ligne]]) -> 4700044043-410 | B119: =IF(base_sf[[#This Row],[Qté C]]=base_sf[[#This Row],[Qté R]],"X","") ->  | C119: X | D119: 4700044043 | E119: 410 | F119: R100076412 | G119: REGLET SEMI-RIGIDE SURFACE SATINEE MATE, | H119: 2016-09-05 | I119: 2016-09-08 | J119: 10 | K119: 5
A120: =CONCATENATE(base_sf[[#This Row],[N° de commande]],"-",base_sf[[#This Row],[Ligne]]) -> 4700044043-610 | B120: =IF(base_sf[[#This Row],[Qté C]]=base_sf[[#This Row],[Qté R]],"X","") ->  | C120: X | D120: 4700044043 | E120: 610 | F120: X417253903 | G120: VIS A TETE CYL CHC 6PANS CREUX M 8 | H120: 2016-09-05 | I120: 2016-09-15 | J120: 20 | K120: 0
A121: =CONCATENATE(base_sf[[#This Row],[N° de commande]],"-",base_sf[[#This Row],[Ligne]]) -> 4700044043-690 | B121: =IF(base_sf[[#This Row],[Qté C]]=base_sf[[#This Row],[Qté R]],"X","") ->  | C121: X | D121: 4700044043 | E121: 690 | F121: X434254401 | G121: VIS SANS TETE 6 PANS CREUX HCS M 8 LG 50 | H121: 2016-09-05 | I121: 2016-09-12 | J121: 100 | K121: 30
A122: =CONCATENATE(base_sf[[#This Row],[N° de commande]],"-",base_sf[[#This Row],[Ligne]]) -> 4700044043-720 | B122: =IF(base_sf[[#This Row],[Qté C]]=base_sf[[#This Row],[Qté R]],"X","") ->  | C122: X | D122: 4700044043 | E122: 720 | F122: X511125200 | G122: RONDELLE PLATE ETROITE D:8,4 X 16 EP:1,5 | H122: 2016-09-05 | I122: 2016-09-08 | J122: 20 | K122: 0
A123: =CONCATENATE(base_sf[[#This Row],[N° de commande]],"-",base_sf[[#This Row],[Ligne]]) -> 4700044053-60 | B123: =IF(base_sf[[#This Row],[Qté C]]=base_sf[[#This Row],[Qté R]],"X","") ->  | C123: X | D123: 4700044053 | E123: 60 | F123: X410133903 | G123: VIS A TETE HEXAGONALE H M4 LG.S/T:40 FIL | H123: 2016-09-06 | I123: 2016-09-06 | J123: 100 | K123: 0
A124: =CONCATENATE(base_sf[[#This Row],[N° de commande]],"-",base_sf[[#This Row],[Ligne]]) -> 4700044053-570 | B124: =IF(base_sf[[#This Row],[Qté C]]=base_sf[[#This Row],[Qté R]],"X","") ->  | C124: X | D124: 4700044053 | E124: 570 | F124: R100565609 | G124: MODULE D'ENTREE, COURTCIRCUIT/SURCHARGE, | H124: 2016-09-06 | I124: 2016-09-26 | J124: 2 | K124: 0
A125: =CONCATENATE(base_sf[[#This Row],[N° de commande]],"-",base_sf[[#This Row],[Ligne]]) -> 4700044100-810 | B125: =IF(base_sf[[#This Row],[Qté C]]=base_sf[[#This Row],[Qté R]],"X","") ->  | C125: X | D125: 4700044100 | E125: 810 | F125: X511140102 | G125: RONDELLE PLATE ETROITE D 15 X 27 E | H125: 2016-09-13 | I125: 2016-09-15 | J125: 60 | K125: 0
A126: =CONCATENATE(base_sf[[#This Row],[N° de commande]],"-",base_sf[[#This Row],[Ligne]]) -> 4700044111-350 | B126: =IF(base_sf[[#This Row],[Qté C]]=base_sf[[#This Row],[Qté R]],"X","") ->  | C126: X | D126: 4700044111 | E126: 350 | F126: R100081956 | G126: CASQUE DE PROTECTION AVEC LUNETTES DE S | H126: 2016-09-14 | I126: 2016-09-21 | J126: 1 | K126: 0
A127: =CONCATENATE(base_sf[[#This Row],[N° de commande]],"-",base_sf[[#This Row],[Ligne]]) -> 4700044111-530 | B127: =IF(base_sf[[#This Row],[Qté C]]=base_sf[[#This Row],[Qté R]],"X","") ->  | C127: X | D127: 4700044111 | E127: 530 | F127: X452132102 | G127: VIS A BOIS AGGLO.TETE FRAISEE POZIDR."FZ | H127: 2016-09-14 | I127: 2016-09-16 | J127: 100 | K127: 0
A128: =CONCATENATE(base_sf[[#This Row],[N° de commande]],"-",base_sf[[#This Row],[Ligne]]) -> 4700044120-310 | B128: =IF(base_sf[[#This Row],[Qté C]]=base_sf[[#This Row],[Qté R]],"X","") ->  | C128: X | D128: 4700044120 | E128: 310 | F128: R100081956 | G128: CASQUE DE PROTECTION AVEC LUNETTES DE S | H128: 2016-09-15 | I128: 2016-09-22 | J128: 10 | K128: 0
A129: =CONCATENATE(base_sf[[#This Row],[N° de commande]],"-",base_sf[[#This Row],[Ligne]]) -> 4700044120-520 | B129: =IF(base_sf[[#This Row],[Qté C]]=base_sf[[#This Row],[Qté R]],"X","") ->  | C129: X | D129: 4700044120 | E129: 520 | F129: R901569055 | G129: PINCE CROCODILE TYPE "+" | H129: 2016-09-15 | I129: 2016-09-20 | J129: 30 | K129: 29
A130: =CONCATENATE(base_sf[[#This Row],[N° de commande]],"-",base_sf[[#This Row],[Ligne]]) -> 4700044147-420 | B130: =IF(base_sf[[#This Row],[Qté C]]=base_sf[[#This Row],[Qté R]],"X","") ->  | C130: =IF(ISERROR(VLOOKUP(A130,base_suivi_sof,1,FALSE)),"","X") -> X | D130: 4700044147 | E130: 420 | F130: X145591301 | G130: REDUCTION SUR RACCORD LAITON D 6 4 | H130: 2016-09-20 | I130: 2016-09-22 | J130: 100 | K130: 22
A131: =CONCATENATE(base_sf[[#This Row],[N° de commande]],"-",base_sf[[#This Row],[Ligne]]) -> 4700044147-460 | B131: =IF(base_sf[[#This Row],[Qté C]]=base_sf[[#This Row],[Qté R]],"X","") ->  | C131: X | D131: 4700044147 | E131: 460 | F131: X452101702 | G131: VIS A BOIS AGGLO.TETE FRAISEE POZIDR."FZ | H131: 2016-09-20 | I131: 2016-09-22 | J131: 100 | K131: 6
A132: =CONCATENATE(base_sf[[#This Row],[N° de commande]],"-",base_sf[[#This Row],[Ligne]]) -> 4700044147-530 | B132: =IF(base_sf[[#This Row],[Qté C]]=base_sf[[#This Row],[Qté R]],"X","") ->  | C132: X | D132: 4700044147 | E132: 530 | F132: X683210003 | G132: CANNE BOULON H17 TYPE K D. 2MM LG.SS | H132: 2016-09-20 | I132: 2016-09-22 | J132: 20 | K132: 0
A133: =CONCATENATE(base_sf[[#This Row],[N° de commande]],"-",base_sf[[#This Row],[Ligne]]) -> 4700044156-160 | B133: =IF(base_sf[[#This Row],[Qté C]]=base_sf[[#This Row],[Qté R]],"X","") ->  | C133: X | D133: 4700044156 | E133: 160 | F133: X573496001 | G133: COLLIER RILSAN LARG. 2,5 LG 100 PR T | H133: 2016-09-21 | I133: 2016-10-03 | J133: 100 | K133: 0
A134: =CONCATENATE(base_sf[[#This Row],[N° de commande]],"-",base_sf[[#This Row],[Ligne]]) -> 4700044156-230 | B134: =IF(base_sf[[#This Row],[Qté C]]=base_sf[[#This Row],[Qté R]],"X","") ->  | C134: X | D134: 4700044156 | E134: 230 | F134: R100456080 | G134: CABLE INTERFACE DIAGNOSTIC POUR VEHICULE | H134: 2016-09-21 | I134: 2016-10-06 | J134: 3 | K134: 0
A135: =CONCATENATE(base_sf[[#This Row],[N° de commande]],"-",base_sf[[#This Row],[Ligne]]) -> 4700044156-500 | B135: =IF(base_sf[[#This Row],[Qté C]]=base_sf[[#This Row],[Qté R]],"X","") ->  | C135: X | D135: 4700044156 | E135: 500 | F135: R100089910 | G135: EMBOUT TOURNEVIS A HEXAGONE CONDUCTEUR M | H135: 2016-09-21 | I135: 2016-09-26 | J135: 2 | K135: 1
A136: =CONCATENATE(base_sf[[#This Row],[N° de commande]],"-",base_sf[[#This Row],[Ligne]]) -> 4700044156-590 | B136: =IF(base_sf[[#This Row],[Qté C]]=base_sf[[#This Row],[Qté R]],"X","") ->  | C136: X | D136: 4700044156 | E136: 590 | F136: R100518514 | G136: PAIRE DE CHAUSSURES FEMMES MONTANTES NOI | H136: 2016-09-21 | I136: 2016-09-26 | J136: 3 | K136: 1
A137: =CONCATENATE(base_sf[[#This Row],[N° de commande]],"-",base_sf[[#This Row],[Ligne]]) -> 4700044156-640 | B137: =IF(base_sf[[#This Row],[Qté C]]=base_sf[[#This Row],[Qté R]],"X","") ->  | C137: X | D137: 4700044156 | E137: 640 | F137: T533205250 | G137: RUBAN ADHESIF PVC PLASTIFIE NOIR | H137: 2016-09-21 | I137: 2016-09-26 | J137: 10 | K137: 0
A138: =CONCATENATE(base_sf[[#This Row],[N° de commande]],"-",base_sf[[#This Row],[Ligne]]) -> 4700044183-250 | B138: =IF(base_sf[[#This Row],[Qté C]]=base_sf[[#This Row],[Qté R]],"X","") ->  | C138: X | D138: 4700044183 | E138: 250 | F138: P674422001 | G138: CLE MALE COUDEE POUR VIS A 6 PANS CREUX | H138: 2016-09-26 | I138: 2016-10-03 | J138: 10 | K138: 2
A139: =CONCATENATE(base_sf[[#This Row],[N° de commande]],"-",base_sf[[#This Row],[Ligne]]) -> 4700044183-290 | B139: =IF(base_sf[[#This Row],[Qté C]]=base_sf[[#This Row],[Qté R]],"X","") ->  | C139: X | D139: 4700044183 | E139: 290 | F139: R100182999 | G139: CABLE DE COMPENSATION PVC/PVC LG 1M50 CO | H139: 2016-09-26 | I139: 2016-09-29 | J139: 200 | K139: 0
A140: =CONCATENATE(base_sf[[#This Row],[N° de commande]],"-",base_sf[[#This Row],[Ligne]]) -> 4700044183-350 | B140: =IF(base_sf[[#This Row],[Qté C]]=base_sf[[#This Row],[Qté R]],"X","") ->  | C140: X | D140: 4700044183 | E140: 350 | F140: X123011013 | G140: UNION DOUBLE ACIER INOX POUR TUBE DE 8 | H140: 2016-09-26 | I140: 2016-09-28 | J140: 100 | K140: 0
A141: =CONCATENATE(base_sf[[#This Row],[N° de commande]],"-",base_sf[[#This Row],[Ligne]]) -> 4700044195-10 | B141: =IF(base_sf[[#This Row],[Qté C]]=base_sf[[#This Row],[Qté R]],"X","") ->  | C141: X | D141: 4700044195 | E141: 10 | F141: X550415801 | G141: POINTE A TETE PLATE D 4,5 LG100 ACIER | H141: 2016-09-27 | I141: 2016-09-27 | J141: 5 | K141: 0
A142: =CONCATENATE(base_sf[[#This Row],[N° de commande]],"-",base_sf[[#This Row],[Ligne]]) -> 4700044190-120 | B142: =IF(base_sf[[#This Row],[Qté C]]=base_sf[[#This Row],[Qté R]],"X","") ->  | C142: X | D142: 4700044190 | E142: 120 | F142: R100438371 | G142: BLOUSE F STANDARD SERGE GRIS CLAIR | H142: 2016-09-27 | I142: 2016-10-17 | J142: 1 | K142: 0
A143: =CONCATENATE(base_sf[[#This Row],[N° de commande]],"-",base_sf[[#This Row],[Ligne]]) -> 4700044190-200 | B143: =IF(base_sf[[#This Row],[Qté C]]=base_sf[[#This Row],[Qté R]],"X","") ->  | C143: X | D143: 4700044190 | E143: 200 | F143: R100438329 | G143: BLOUSE H STANDARD SERGE GRIS CLAIR | H143: 2016-09-27 | I143: 2016-10-17 | J143: 2 | K143: 0
A144: =CONCATENATE(base_sf[[#This Row],[N° de commande]],"-",base_sf[[#This Row],[Ligne]]) -> 4700044190-250 | B144: =IF(base_sf[[#This Row],[Qté C]]=base_sf[[#This Row],[Qté R]],"X","") ->  | C144: X | D144: 4700044190 | E144: 250 | F144: R100518618 | G144: CHAUSSURES DE SECURITE AMAGNETIQUES "VIL | H144: 2016-09-27 | I144: 2016-10-07 | J144: 1 | K144: 0
A145: =CONCATENATE(base_sf[[#This Row],[N° de commande]],"-",base_sf[[#This Row],[Ligne]]) -> 4700044190-260 | B145: =IF(base_sf[[#This Row],[Qté C]]=base_sf[[#This Row],[Qté R]],"X","") ->  | C145: X | D145: 4700044190 | E145: 260 | F145: R100456080 | G145: CABLE INTERFACE DIAGNOSTIC POUR VEHICULE | H145: 2016-09-27 | I145: 2016-10-12 | J145: 3 | K145: 0
A146: =CONCATENATE(base_sf[[#This Row],[N° de commande]],"-",base_sf[[#This Row],[Ligne]]) -> 4700044190-350 | B146: =IF(base_sf[[#This Row],[Qté C]]=base_sf[[#This Row],[Qté R]],"X","") ->  | C146: X | D146: 4700044190 | E146: 350 | F146: R100081956 | G146: CASQUE DE PROTECTION AVEC LUNETTES DE S | H146: 2016-09-27 | I146: 2016-10-04 | J146: 3 | K146: 0
A147: =CONCATENATE(base_sf[[#This Row],[N° de commande]],"-",base_sf[[#This Row],[Ligne]]) -> 4700044190-430 | B147: =IF(base_sf[[#This Row],[Qté C]]=base_sf[[#This Row],[Qté R]],"X","") ->  | C147: X | D147: 4700044190 | E147: 430 | F147: R100182999 | G147: CABLE DE COMPENSATION PVC/PVC LG 1M50 CO | H147: 2016-09-27 | I147: 2016-09-30 | J147: 20 | K147: 0
A148: =CONCATENATE(base_sf[[#This Row],[N° de commande]],"-",base_sf[[#This Row],[Ligne]]) -> 4700044190-520 | B148: =IF(base_sf[[#This Row],[Qté C]]=base_sf[[#This Row],[Qté R]],"X","") ->  | C148: X | D148: 4700044190 | E148: 520 | F148: X771101522 | G148: BLISTER DE 2 PILES ALCALINE 1,5V D:11,6M | H148: 2016-09-27 | I148: 2016-09-29 | J148: 2 | K148: 0
A149: =CONCATENATE(base_sf[[#This Row],[N° de commande]],"-",base_sf[[#This Row],[Ligne]]) -> 4700044197-210 | B149: =IF(base_sf[[#This Row],[Qté C]]=base_sf[[#This Row],[Qté R]],"X","") ->  | C149: X | D149: 4700044197 | E149: 210 | F149: P021198101 | G149: FORET D:5,90 LG.TOT:93 LG.UTIL:57 Q.CYL. | H149: 2016-09-28 | I149: 2016-10-03 | J149: 10 | K149: 0
A150: =CONCATENATE(base_sf[[#This Row],[N° de commande]],"-",base_sf[[#This Row],[Ligne]]) -> 4700044197-290 | B150: =IF(base_sf[[#This Row],[Qté C]]=base_sf[[#This Row],[Qté R]],"X","") ->  | C150: X | D150: 4700044197 | E150: 290 | F150: P134477201 | G150: TARAUD MAIN 1/4POUCE 18FIL NPTF JEU | H150: 2016-09-28 | I150: 2016-11-07 | J150: 1 | K150: 0
A151: =CONCATENATE(base_sf[[#This Row],[N° de commande]],"-",base_sf[[#This Row],[Ligne]]) -> 4700044197-450 | B151: =IF(base_sf[[#This Row],[Qté C]]=base_sf[[#This Row],[Qté R]],"X","") ->  | C151: X | D151: 4700044197 | E151: 450 | F151: R100582895 | G151: CASQUETTE COTON POLYESTER NOIR VISIERE R | H151: 2016-09-28 | I151: 2016-10-03 | J151: 80 | K151: 0
A152: =CONCATENATE(base_sf[[#This Row],[N° de commande]],"-",base_sf[[#This Row],[Ligne]]) -> 4700044197-480 | B152: =IF(base_sf[[#This Row],[Qté C]]=base_sf[[#This Row],[Qté R]],"X","") ->  | C152: X | D152: 4700044197 | E152: 480 | F152: X434351701 | G152: VIS SANS TETE 6 PANS CREUX HC M12 LG 12 | H152: 2016-09-28 | I152: 2016-09-30 | J152: 100 | K152: 0
A153: =CONCATENATE(base_sf[[#This Row],[N° de commande]],"-",base_sf[[#This Row],[Ligne]]) -> 4700044197-520 | B153: =IF(base_sf[[#This Row],[Qté C]]=base_sf[[#This Row],[Qté R]],"X","") ->  | C153: X | D153: 4700044197 | E153: 520 | F153: X756844154 | G153: CORDON COAXIAL 2 FICHES BNC DROITES DIAM | H153: 2016-09-28 | I153: 2016-10-03 | J153: 5 | K153: 0
A154: =CONCATENATE(base_sf[[#This Row],[N° de commande]],"-",base_sf[[#This Row],[Ligne]]) -> 4700044197-570 | B154: =IF(base_sf[[#This Row],[Qté C]]=base_sf[[#This Row],[Qté R]],"X","") ->  | C154: X | D154: 4700044197 | E154: 570 | F154: X953152458 | G154: PAIRE DE GANTS ELECTRICIEN ISOLANT LATEX | H154: 2016-09-28 | I154: 2016-10-05 | J154: 5 | K154: 0
A155: =CONCATENATE(base_sf[[#This Row],[N° de commande]],"-",base_sf[[#This Row],[Ligne]]) -> 4700044197-590 | B155: =IF(base_sf[[#This Row],[Qté C]]=base_sf[[#This Row],[Qté R]],"X","") ->  | C155: X | D155: 4700044197 | E155: 590 | F155: X953153452 | G155: PAIRE DE GANTS ELECTRICIEN ISOLANT LATEX | H155: 2016-09-28 | I155: 2016-11-07 | J155: 5 | K155: 0
A156: =CONCATENATE(base_sf[[#This Row],[N° de commande]],"-",base_sf[[#This Row],[Ligne]]) -> 4700044206-510 | B156: =IF(base_sf[[#This Row],[Qté C]]=base_sf[[#This Row],[Qté R]],"X","") ->  | C156: X | D156: 4700044206 | E156: 510 | F156: R100055095 | G156: DETROMPEUR POUR PRISE 2P+T REF:74114/741 | H156: 2016-09-29 | I156: 2016-10-03 | J156: 50 | K156: 18
A157: =CONCATENATE(base_sf[[#This Row],[N° de commande]],"-",base_sf[[#This Row],[Ligne]]) -> 4700044206-620 | B157: =IF(base_sf[[#This Row],[Qté C]]=base_sf[[#This Row],[Qté R]],"X","") ->  | C157: X | D157: 4700044206 | E157: 620 | F157: R100438326 | G157: BLOUSE H STANDARD SERGE GRIS CLAIR | H157: 2016-09-29 | I157: 2016-10-19 | J157: 1 | K157: 0
A158: =CONCATENATE(base_sf[[#This Row],[N° de commande]],"-",base_sf[[#This Row],[Ligne]]) -> 4700044206-630 | B158: =IF(base_sf[[#This Row],[Qté C]]=base_sf[[#This Row],[Qté R]],"X","") ->  | C158: X | D158: 4700044206 | E158: 630 | F158: R100438327 | G158: BLOUSE H STANDARD SERGE GRIS CLAIR | H158: 2016-09-29 | I158: 2016-10-19 | J158: 1 | K158: 0
A159: =CONCATENATE(base_sf[[#This Row],[N° de commande]],"-",base_sf[[#This Row],[Ligne]]) -> 4700044206-670 | B159: =IF(base_sf[[#This Row],[Qté C]]=base_sf[[#This Row],[Qté R]],"X","") ->  | C159: X | D159: 4700044206 | E159: 670 | F159: R100582895 | G159: CASQUETTE COTON POLYESTER NOIR VISIERE R | H159: 2016-09-29 | I159: 2016-10-04 | J159: 15 | K159: 0
A160: =CONCATENATE(base_sf[[#This Row],[N° de commande]],"-",base_sf[[#This Row],[Ligne]]) -> 4700044224-240 | B160: =IF(base_sf[[#This Row],[Qté C]]=base_sf[[#This Row],[Qté R]],"X","") ->  | C160: X | D160: 4700044224 | E160: 240 | F160: P681125300 | G160: DOUILLE HEXAGONALE DE 8 A ENTRAINEMEN | H160: 2016-10-03 | I160: 2016-10-05 | J160: 5 | K160: 2
A161: =CONCATENATE(base_sf[[#This Row],[N° de commande]],"-",base_sf[[#This Row],[Ligne]]) -> 4700044224-280 | B161: =IF(base_sf[[#This Row],[Qté C]]=base_sf[[#This Row],[Qté R]],"X","") ->  | C161: X | D161: 4700044224 | E161: 280 | F161: P888550078 | G161: TIGE DE TRACTION M8 | H161: 2016-10-03 | I161: 2016-10-12 | J161: 3 | K161: 0
A162: =CONCATENATE(base_sf[[#This Row],[N° de commande]],"-",base_sf[[#This Row],[Ligne]]) -> 4700044224-290 | B162: =IF(base_sf[[#This Row],[Qté C]]=base_sf[[#This Row],[Qté R]],"X","") ->  | C162: X | D162: 4700044224 | E162: 290 | F162: P931523715 | G162: PISTOLET A COLLE TYPE:E900A BATONNETS | H162: 2016-10-03 | I162: 2016-10-06 | J162: 6 | K162: 0
A163: =CONCATENATE(base_sf[[#This Row],[N° de commande]],"-",base_sf[[#This Row],[Ligne]]) -> 4700044224-300 | B163: =IF(base_sf[[#This Row],[Qté C]]=base_sf[[#This Row],[Qté R]],"X","") ->  | C163: X | D163: 4700044224 | E163: 300 | F163: R100023101 | G163: PERCEUSE R.ANGLE VARIAT.VIT.0A800T/MN BA | H163: 2016-10-03 | I163: 2016-10-06 | J163: 4 | K163: 0
A164: =CONCATENATE(base_sf[[#This Row],[N° de commande]],"-",base_sf[[#This Row],[Ligne]]) -> 4700044224-310 | B164: =IF(base_sf[[#This Row],[Qté C]]=base_sf[[#This Row],[Qté R]],"X","") ->  | C164: X | D164: 4700044224 | E164: 310 | F164: R100031746 | G164: RUBAN ASTRAKAN TISSE NOIR 100% POLYAMI | H164: 2016-10-03 | I164: 2016-10-05 | J164: 100 | K164: 0
A165: =CONCATENATE(base_sf[[#This Row],[N° de commande]],"-",base_sf[[#This Row],[Ligne]]) -> 4700044224-350 | B165: =IF(base_sf[[#This Row],[Qté C]]=base_sf[[#This Row],[Qté R]],"X","") ->  | C165: X | D165: 4700044224 | E165: 350 | F165: R100103543 | G165: EMBOUT A ROTULE FEMELLE 10 X 43 X | H165: 2016-10-03 | I165: 2016-10-06 | J165: 2 | K165: 0
A166: =CONCATENATE(base_sf[[#This Row],[N° de commande]],"-",base_sf[[#This Row],[Ligne]]) -> 4700044224-360 | B166: =IF(base_sf[[#This Row],[Qté C]]=base_sf[[#This Row],[Qté R]],"X","") ->  | C166: X | D166: 4700044224 | E166: 360 | F166: R100172308 | G166: ENROULEUR AUTOMATIQUE 240V LEGRAND 10M D | H166: 2016-10-03 | I166: 2016-10-06 | J166: 3 | K166: 0
A167: =CONCATENATE(base_sf[[#This Row],[N° de commande]],"-",base_sf[[#This Row],[Ligne]]) -> 4700044232-10 | B167: =IF(base_sf[[#This Row],[Qté C]]=base_sf[[#This Row],[Qté R]],"X","") ->  | C167: X | D167: 4700044232 | E167: 10 | F167: X191160714 | G167: ABOUT DE RACCORDEMENT A OGIVE GAZ COMBUS | H167: 2016-10-03 | I167: 2016-10-03 | J167: 20 | K167: 11
A168: =CONCATENATE(base_sf[[#This Row],[N° de commande]],"-",base_sf[[#This Row],[Ligne]]) -> 4700044235-90 | B168: =IF(base_sf[[#This Row],[Qté C]]=base_sf[[#This Row],[Qté R]],"X","") ->  | C168: X | D168: 4700044235 | E168: 90 | F168: R100364714 | G168: PAIRE DE CHAUSSURES BASSE EN CUIR NOIR,T | H168: 2016-10-04 | I168: 2016-10-14 | J168: 1 | K168: 0
A169: =CONCATENATE(base_sf[[#This Row],[N° de commande]],"-",base_sf[[#This Row],[Ligne]]) -> 4700044235-100 | B169: =IF(base_sf[[#This Row],[Qté C]]=base_sf[[#This Row],[Qté R]],"X","") ->  | C169: X | D169: 4700044235 | E169: 100 | F169: R100364715 | G169: PAIRE DE CHAUSSURES BASSE EN CUIR NOIR,T | H169: 2016-10-04 | I169: 2016-10-13 | J169: 1 | K169: 0
A170: =CONCATENATE(base_sf[[#This Row],[N° de commande]],"-",base_sf[[#This Row],[Ligne]]) -> 4700044235-110 | B170: =IF(base_sf[[#This Row],[Qté C]]=base_sf[[#This Row],[Qté R]],"X","") ->  | C170: X | D170: 4700044235 | E170: 110 | F170: R100364716 | G170: PAIRE DE CHAUSSURES BASSE EN CUIR NOIR,T | H170: 2016-10-04 | I170: 2016-10-14 | J170: 2 | K170: 0
A171: =CONCATENATE(base_sf[[#This Row],[N° de commande]],"-",base_sf[[#This Row],[Ligne]]) -> 4700044235-120 | B171: =IF(base_sf[[#This Row],[Qté C]]=base_sf[[#This Row],[Qté R]],"X","") ->  | C171: X | D171: 4700044235 | E171: 120 | F171: T853454141 | G171: TUBE 20G COLLE LOCTITE 401 | H171: 2016-10-04 | I171: 2016-10-11 | J171: 4 | K171: 0
A172: =CONCATENATE(base_sf[[#This Row],[N° de commande]],"-",base_sf[[#This Row],[Ligne]]) -> 4700044235-180 | B172: =IF(base_sf[[#This Row],[Qté C]]=base_sf[[#This Row],[Qté R]],"X","") ->  | C172: X | D172: 4700044235 | E172: 180 | F172: R100150298 | G172: GANT TRICOTE 5DGTS 3FILS COTON POIGNET | H172: 2016-10-04 | I172: 2016-10-07 | J172: 500 | K172: 0
A173: =CONCATENATE(base_sf[[#This Row],[N° de commande]],"-",base_sf[[#This Row],[Ligne]]) -> 4700044235-190 | B173: =IF(base_sf[[#This Row],[Qté C]]=base_sf[[#This Row],[Qté R]],"X","") ->  | C173: X | D173: 4700044235 | E173: 190 | F173: R100176238 | G173: SUPPORT BADGE A ENROULEUR D=3CM FIL:60CM | H173: 2016-10-04 | I173: 2016-10-07 | J173: 15 | K173: 0
A174: =CONCATENATE(base_sf[[#This Row],[N° de commande]],"-",base_sf[[#This Row],[Ligne]]) -> 4700044235-200 | B174: =IF(base_sf[[#This Row],[Qté C]]=base_sf[[#This Row],[Qté R]],"X","") ->  | C174: X | D174: 4700044235 | E174: 200 | F174: R100329823 | G174: AEROSOL 650ML REMFOR | H174: 2016-10-04 | I174: 2016-10-06 | J174: 3 | K174: 0
A175: =CONCATENATE(base_sf[[#This Row],[N° de commande]],"-",base_sf[[#This Row],[Ligne]]) -> 4700044235-210 | B175: =IF(base_sf[[#This Row],[Qté C]]=base_sf[[#This Row],[Qté R]],"X","") ->  | C175: X | D175: 4700044235 | E175: 210 | F175: R100364316 | G175: PAIRE DE CHAUSSURES BASSE FEMME A LACET | H175: 2016-10-04 | I175: 2016-10-11 | J175: 1 | K175: 0
A176: =CONCATENATE(base_sf[[#This Row],[N° de commande]],"-",base_sf[[#This Row],[Ligne]]) -> 4700044235-220 | B176: =IF(base_sf[[#This Row],[Qté C]]=base_sf[[#This Row],[Qté R]],"X","") ->  | C176: X | D176: 4700044235 | E176: 220 | F176: R100388724 | G176: SURLUNETTE INCOLORE MONOBLOC POLYCARBON | H176: 2016-10-04 | I176: 2016-10-11 | J176: 10 | K176: 0
A177: =CONCATENATE(base_sf[[#This Row],[N° de commande]],"-",base_sf[[#This Row],[Ligne]]) -> 4700044235-230 | B177: =IF(base_sf[[#This Row],[Qté C]]=base_sf[[#This Row],[Qté R]],"X","") ->  | C177: X | D177: 4700044235 | E177: 230 | F177: R100450312 | G177: AEROSOL 400ML SERIE 7000 RAL3001 ROUGE | H177: 2016-10-04 | I177: 2016-10-07 | J177: 6 | K177: 0
A178: =CONCATENATE(base_sf[[#This Row],[N° de commande]],"-",base_sf[[#This Row],[Ligne]]) -> 4700044235-240 | B178: =IF(base_sf[[#This Row],[Qté C]]=base_sf[[#This Row],[Qté R]],"X","") ->  | C178: X | D178: 4700044235 | E178: 240 | F178: R100518645 | G178: CHAUSSURES DE SECURITE BASSES TYPE BASKE | H178: 2016-10-04 | I178: 2016-10-07 | J178: 1 | K178: 0
A179: =CONCATENATE(base_sf[[#This Row],[N° de commande]],"-",base_sf[[#This Row],[Ligne]]) -> 4700044235-250 | B179: =IF(base_sf[[#This Row],[Qté C]]=base_sf[[#This Row],[Qté R]],"X","") ->  | C179: X | D179: 4700044235 | E179: 250 | F179: R100552571 | G179: CADENAS DE SECURITE ROUGE 2 CLES PLATES | H179: 2016-10-04 | I179: 2016-10-14 | J179: 10 | K179: 0
A180: =CONCATENATE(base_sf[[#This Row],[N° de commande]],"-",base_sf[[#This Row],[Ligne]]) -> 4700044235-260 | B180: =IF(base_sf[[#This Row],[Qté C]]=base_sf[[#This Row],[Qté R]],"X","") ->  | C180: X | D180: 4700044235 | E180: 260 | F180: R100608486 | G180: BOITE DE 50 GANTS T10 NITRILE BLEU AMBID | H180: 2016-10-04 | I180: 2016-10-10 | J180: 10 | K180: 0
A181: =CONCATENATE(base_sf[[#This Row],[N° de commande]],"-",base_sf[[#This Row],[Ligne]]) -> 4700044235-270 | B181: =IF(base_sf[[#This Row],[Qté C]]=base_sf[[#This Row],[Qté R]],"X","") ->  | C181: X | D181: 4700044235 | E181: 270 | F181: T855810261 | G181: PACK 2K LOCTITE 3455 A+B RESINE+DURCISSE | H181: 2016-10-04 | I181: 2016-10-10 | J181: 2 | K181: 0
A182: =CONCATENATE(base_sf[[#This Row],[N° de commande]],"-",base_sf[[#This Row],[Ligne]]) -> 4700044235-280 | B182: =IF(base_sf[[#This Row],[Qté C]]=base_sf[[#This Row],[Qté R]],"X","") ->  | C182: X | D182: 4700044235 | E182: 280 | F182: X191161102 | G182: ABOUT DE RACCORDEMENT PASS 8 TUYAU CAOU | H182: 2016-10-04 | I182: 2016-10-11 | J182: 10 | K182: 0
A183: =CONCATENATE(base_sf[[#This Row],[N° de commande]],"-",base_sf[[#This Row],[Ligne]]) -> 4700044235-290 | B183: =IF(base_sf[[#This Row],[Qté C]]=base_sf[[#This Row],[Qté R]],"X","") ->  | C183: X | D183: 4700044235 | E183: 290 | F183: X511120300 | G183: RONDELLE PLATE LARGE D 6,4 X 18 E | H183: 2016-10-04 | I183: 2016-10-06 | J183: 20 | K183: 0
A184: =CONCATENATE(base_sf[[#This Row],[N° de commande]],"-",base_sf[[#This Row],[Ligne]]) -> 4700044235-300 | B184: =IF(base_sf[[#This Row],[Qté C]]=base_sf[[#This Row],[Qté R]],"X","") ->  | C184: X | D184: 4700044235 | E184: 300 | F184: X771127002 | G184: PILE PLATE SALINE 4,5V 62X22 HT:66 IE | H184: 2016-10-04 | I184: 2016-10-07 | J184: 4 | K184: 0
A185: =CONCATENATE(base_sf[[#This Row],[N° de commande]],"-",base_sf[[#This Row],[Ligne]]) -> 4700044235-310 | B185: =IF(base_sf[[#This Row],[Qté C]]=base_sf[[#This Row],[Qté R]],"X","") ->  | C185: X | D185: 4700044235 | E185: 310 | F185: P935852471 | G185: CHIFFONS COTON BLANC SAC DE 10 KG. | H185: 2016-10-04 | I185: 2016-10-10 | J185: 10 | K185: 0
A186: =CONCATENATE(base_sf[[#This Row],[N° de commande]],"-",base_sf[[#This Row],[Ligne]]) -> 4700044235-320 | B186: =IF(base_sf[[#This Row],[Qté C]]=base_sf[[#This Row],[Qté R]],"X","") ->  | C186: X | D186: 4700044235 | E186: 320 | F186: R100090222 | G186: ESSUYEURS "KIMWIPES CLASSIC 1000 BLANCS" | H186: 2016-10-04 | I186: 2016-10-14 | J186: 2 | K186: 0
A187: =CONCATENATE(base_sf[[#This Row],[N° de commande]],"-",base_sf[[#This Row],[Ligne]]) -> 4700044235-330 | B187: =IF(base_sf[[#This Row],[Qté C]]=base_sf[[#This Row],[Qté R]],"X","") ->  | C187: X | D187: 4700044235 | E187: 330 | F187: R100132502 | G187: BOITE DE 10 POCHETTES HUMIDES DIM:130X75 | H187: 2016-10-04 | I187: 2016-10-07 | J187: 20 | K187: 0
A188: =CONCATENATE(base_sf[[#This Row],[N° de commande]],"-",base_sf[[#This Row],[Ligne]]) -> 4700044235-340 | B188: =IF(base_sf[[#This Row],[Qté C]]=base_sf[[#This Row],[Qté R]],"X","") ->  | C188: X | D188: 4700044235 | E188: 340 | F188: R100438329 | G188: BLOUSE H STANDARD SERGE GRIS CLAIR | H188: 2016-10-04 | I188: 2016-10-24 | J188: 3 | K188: 0
A189: =CONCATENATE(base_sf[[#This Row],[N° de commande]],"-",base_sf[[#This Row],[Ligne]]) -> 4700044235-350 | B189: =IF(base_sf[[#This Row],[Qté C]]=base_sf[[#This Row],[Qté R]],"X","") ->  | C189: X | D189: 4700044235 | E189: 350 | F189: R100450310 | G189: AEROSOL 400ML SERIE 7000 RAL9017 NOIR BR | H189: 2016-10-04 | I189: 2016-10-07 | J189: 6 | K189: 0
A190: =CONCATENATE(base_sf[[#This Row],[N° de commande]],"-",base_sf[[#This Row],[Ligne]]) -> 4700044235-360 | B190: =IF(base_sf[[#This Row],[Qté C]]=base_sf[[#This Row],[Qté R]],"X","") ->  | C190: X | D190: 4700044235 | E190: 360 | F190: R100518649 | G190: CHAUSSURES DE SECURITE BASSES TYPE BASKE | H190: 2016-10-04 | I190: 2016-10-10 | J190: 1 | K190: 0
A191: =CONCATENATE(base_sf[[#This Row],[N° de commande]],"-",base_sf[[#This Row],[Ligne]]) -> 4700044235-370 | B191: =IF(base_sf[[#This Row],[Qté C]]=base_sf[[#This Row],[Qté R]],"X","") ->  | C191: X | D191: 4700044235 | E191: 370 | F191: R100518628 | G191: CHAUSSURES DE SECURITE "VILLE" TYPE MOCA | H191: 2016-10-04 | I191: 2016-10-24 | J191: 1 | K191: 0
A192: =CONCATENATE(base_sf[[#This Row],[N° de commande]],"-",base_sf[[#This Row],[Ligne]]) -> 4700044235-380 | B192: =IF(base_sf[[#This Row],[Qté C]]=base_sf[[#This Row],[Qté R]],"X","") ->  | C192: X | D192: 4700044235 | E192: 380 | F192: R100666592 | G192: LUNETTE SECURITE POLYCARBONATEINCOLORE T | H192: 2016-10-04 | I192: 2016-10-11 | J192: 9 | K192: 0
A193: =CONCATENATE(base_sf[[#This Row],[N° de commande]],"-",base_sf[[#This Row],[Ligne]]) -> 4700044235-390 | B193: =IF(base_sf[[#This Row],[Qté C]]=base_sf[[#This Row],[Qté R]],"X","") ->  | C193: X | D193: 4700044235 | E193: 390 | F193: P021064102 | G193: FORET D:2 LG.TOT:49 LG.TAIL:24 Q.CYL.2 C | H193: 2016-10-04 | I193: 2016-10-14 | J193: 10 | K193: 0
A194: =CONCATENATE(base_sf[[#This Row],[N° de commande]],"-",base_sf[[#This Row],[Ligne]]) -> 4700044235-400 | B194: =IF(base_sf[[#This Row],[Qté C]]=base_sf[[#This Row],[Qté R]],"X","") ->  | C194: =IF(ISERROR(VLOOKUP(A194,base_suivi_sof,1,FALSE)),"","X") -> X | D194: 4700044235 | E194: 400 | F194: P021084102 | G194: FORET D:2,5 LG.TOT:57 LG.TAIL:30 Q.CYL.A | H194: 2016-10-04 | I194: 2016-10-14 | J194: 30 | K194: 0
A195: =CONCATENATE(base_sf[[#This Row],[N° de commande]],"-",base_sf[[#This Row],[Ligne]]) -> 4700044235-410 | B195: =IF(base_sf[[#This Row],[Qté C]]=base_sf[[#This Row],[Qté R]],"X","") ->  | C195: X | D195: 4700044235 | E195: 410 | F195: P021351101 | G195: FORET D:12 LG.TOT:151 LG.UTIL:101 Q.CYL. | H195: 2016-10-04 | I195: 2016-10-07 | J195: 2 | K195: 0
A196: =CONCATENATE(base_sf[[#This Row],[N° de commande]],"-",base_sf[[#This Row],[Ligne]]) -> 4700044235-420 | B196: =IF(base_sf[[#This Row],[Qté C]]=base_sf[[#This Row],[Qté R]],"X","") ->  | C196: X | D196: 4700044235 | E196: 420 | F196: P021376101 | G196: FORET D:13 LG.TOT:151 LG.TAIL:101 Q.CYL. | H196: 2016-10-04 | I196: 2016-10-07 | J196: 2 | K196: 0
A197: =CONCATENATE(base_sf[[#This Row],[N° de commande]],"-",base_sf[[#This Row],[Ligne]]) -> 4700044235-430 | B197: =IF(base_sf[[#This Row],[Qté C]]=base_sf[[#This Row],[Qté R]],"X","") ->  | C197: X | D197: 4700044235 | E197: 430 | F197: P023521102 | G197: FORET Q CM2 D19,5 LG275X177 HEL30DEG T | H197: 2016-10-04 | I197: 2016-10-07 | J197: 1 | K197: 0
A198: =CONCATENATE(base_sf[[#This Row],[N° de commande]],"-",base_sf[[#This Row],[Ligne]]) -> 4700044235-440 | B198: =IF(base_sf[[#This Row],[Qté C]]=base_sf[[#This Row],[Qté R]],"X","") ->  | C198: X | D198: 4700044235 | E198: 440 | F198: P023541103 | G198: FORET Q CM2 D20,50 LG282X184 HEL30DEG T | H198: 2016-10-04 | I198: 2016-10-06 | J198: 1 | K198: 0
A199: =CONCATENATE(base_sf[[#This Row],[N° de commande]],"-",base_sf[[#This Row],[Ligne]]) -> 4700044235-450 | B199: =IF(base_sf[[#This Row],[Qté C]]=base_sf[[#This Row],[Qté R]],"X","") ->  | C199: X | D199: 4700044235 | E199: 450 | F199: P097136003 | G199: FRAISE-LIME CYLINDRIQUE (TAILLE EN BOUT) | H199: 2016-10-04 | I199: 2016-10-14 | J199: 1 | K199: 0
A200: =CONCATENATE(base_sf[[#This Row],[N° de commande]],"-",base_sf[[#This Row],[Ligne]]) -> 4700044235-460 | B200: =IF(base_sf[[#This Row],[Qté C]]=base_sf[[#This Row],[Qté R]],"X","") ->  | C200: X | D200: 4700044235 | E200: 460 | F200: P672497703 | G200: JEU DE 5 TOURNEVIS POUR VIS A FENTE DIAM | H200: 2016-10-04 | I200: 2016-10-07 | J200: 1 | K200: 0
... 4800 more rows

Sheet P04
A1: Article | B1: Cde achat | C1: Date doc. | D1: TDVt | E1: Doc. cial | F1: Poste | G1: Don. ordre | H1: QtéCdéeCum | I1: UQ | J1: Net | K1: Dev.
A2: R100119105 | B2: 4700044269 | C2: 07.10.2016 | D2: ZCFD | E2: 2500545060 | F2: 10 | G2: RE03 | H2: 4 | I2: PCE | J2: 1.312,00 | K2: EUR
A3: X955464726 | B3: 4700044269 | C3: 07.10.2016 | D3: ZCFD | E3: 2500545059 | F3: 10 | G3: RE03 | H3: 1 | I3: PCE | J3: 18.65 | K3: EUR
A4: X951506723 | B4: 4700044261 | C4: 07.10.2016 | D4: ZCFN | E4: 2500545058 | F4: 10 | G4: RE03 | H4: 1 | I4: PCE | J4: 30.64 | K4: EUR
A5: X951506704 | B5: 4700044261 | C5: 07.10.2016 | D5: ZCFN | E5: 2500545057 | F5: 10 | G5: RE03 | H5: 1.000 | I5: PCE | J5: 80 | K5: EUR
A6: X912167670 | B6: 4700044261 | C6: 07.10.2016 | D6: ZCFN | E6: 2500545056 | F6: 10 | G6: RE03 | H6: 1 | I6: PCE | J6: 5.01 | K6: EUR
A7: X75600442A | B7: 4700044261 | C7: 07.10.2016 | D7: ZCFN | E7: 2500545055 | F7: 10 | G7: RE03 | H7: 200 | I7: PCE | J7: 266 | K7: EUR
A8: X725071500 | B8: 4700044261 | C8: 07.10.2016 | D8: ZCFN | E8: 2500545054 | F8: 10 | G8: RE03 | H8: 100 | I8: PCE | J8: 85 | K8: EUR
A9: X725051500 | B9: 4700044261 | C9: 07.10.2016 | D9: ZCFN | E9: 2500545053 | F9: 10 | G9: RE03 | H9: 300 | I9: PCE | J9: 207 | K9: EUR
A10: X723031050 | B10: 4700044261 | C10: 07.10.2016 | D10: ZCFN | E10: 2500545052 | F10: 10 | G10: RE03 | H10: 12 | I10: PCE | J10: 6.24 | K10: EUR
A11: X723030850 | B11: 4700044261 | C11: 07.10.2016 | D11: ZCFN | E11: 2500545051 | F11: 10 | G11: RE03 | H11: 12 | I11: PCE | J11: 5.28 | K11: EUR
A12: X723030470 | B12: 4700044261 | C12: 07.10.2016 | D12: ZCFN | E12: 2500545050 | F12: 10 | G12: RE03 | H12: 12 | I12: PCE | J12: 24.6 | K12: EUR
A13: X723030250 | B13: 4700044261 | C13: 07.10.2016 | D13: ZCFN | E13: 2500545049 | F13: 10 | G13: RE03 | H13: 12 | I13: M | J13: 4.56 | K13: EUR
A14: X723011200 | B14: 4700044261 | C14: 07.10.2016 | D14: ZCFN | E14: 2500545048 | F14: 10 | G14: RE03 | H14: 100 | I14: M | J14: 125 | K14: EUR
A15: X516743200 | B15: 4700044261 | C15: 07.10.2016 | D15: ZCFN | E15: 2500545047 | F15: 10 | G15: RE03 | H15: 20 | I15: PCE | J15: 117.2 | K15: EUR
A16: X489043006 | B16: 4700044261 | C16: 07.10.2016 | D16: ZCFN | E16: 2500545046 | F16: 10 | G16: RE03 | H16: 2 | I16: PCE | J16: 14.04 | K16: EUR
A17: X489042005 | B17: 4700044261 | C17: 07.10.2016 | D17: ZCFN | E17: 2500545045 | F17: 10 | G17: RE03 | H17: 7 | I17: PCE | J17: 17.57 | K17: EUR
A18: X489041306 | B18: 4700044261 | C18: 07.10.2016 | D18: ZCFN | E18: 2500545044 | F18: 10 | G18: RE03 | H18: 5 | I18: PCE | J18: 10 | K18: EUR
A19: X489041301 | B19: 4700044261 | C19: 07.10.2016 | D19: ZCFN | E19: 2500545043 | F19: 10 | G19: RE03 | H19: 2 | I19: PCE | J19: 0.28 | K19: EUR
A20: X484112000 | B20: 4700044261 | C20: 07.10.2016 | D20: ZCFN | E20: 2500545042 | F20: 10 | G20: RE03 | H20: 160 | I20: PCE | J20: 2.3 | K20: EUR
A21: X48402452A | B21: 4700044261 | C21: 07.10.2016 | D21: ZCFN | E21: 2500545041 | F21: 10 | G21: RE03 | H21: 2 | I21: PCE | J21: 0.17 | K21: EUR
A22: X484021609 | B22: 4700044261 | C22: 07.10.2016 | D22: ZCFN | E22: 2500545040 | F22: 10 | G22: RE03 | H22: 50 | I22: PCE | J22: 0.35 | K22: EUR
A23: X452164102 | B23: 4700044261 | C23: 07.10.2016 | D23: ZCFN | E23: 2500545039 | F23: 10 | G23: RE03 | H23: 100 | I23: PCE | J23: 1.02 | K23: EUR
A24: X413204101 | B24: 4700044261 | C24: 07.10.2016 | D24: ZCFN | E24: 2500545038 | F24: 10 | G24: RE03 | H24: 2 | I24: PCE | J24: 10.54 | K24: EUR
A25: X413203001 | B25: 4700044261 | C25: 07.10.2016 | D25: ZCFN | E25: 2500545037 | F25: 10 | G25: RE03 | H25: 2 | I25: PCE | J25: 60.42 | K25: EUR
A26: X045443101 | B26: 4700044261 | C26: 07.10.2016 | D26: ZCFN | E26: 2500545036 | F26: 10 | G26: RE03 | H26: 10 | I26: PCE | J26: 0.68 | K26: EUR
A27: T853454151 | B27: 4700044261 | C27: 07.10.2016 | D27: ZCFN | E27: 2500545035 | F27: 10 | G27: RE03 | H27: 5 | I27: PCE | J27: 33.6 | K27: EUR
A28: T853454121 | B28: 4700044261 | C28: 07.10.2016 | D28: ZCFN | E28: 2500545034 | F28: 10 | G28: RE03 | H28: 34 | I28: PCE | J28: 252.96 | K28: EUR
A29: T853454101 | B29: 4700044261 | C29: 07.10.2016 | D29: ZCFN | E29: 2500545033 | F29: 10 | G29: RE03 | H29: 20 | I29: PCE | J29: 126.8 | K29: EUR
A30: T533206250 | B30: 4700044261 | C30: 07.10.2016 | D30: ZCFN | E30: 2500545032 | F30: 10 | G30: RE03 | H30: 4 | I30: PCE | J30: 0.56 | K30: EUR
A31: T511373370 | B31: 4700044261 | C31: 07.10.2016 | D31: ZCFN | E31: 2500545031 | F31: 10 | G31: RE03 | H31: 6 | I31: PCE | J31: 20.22 | K31: EUR
A32: R100583447 | B32: 4700044261 | C32: 07.10.2016 | D32: ZCFN | E32: 2500545030 | F32: 10 | G32: RE03 | H32: 2 | I32: PCE | J32: 64 | K32: EUR
A33: R100583446 | B33: 4700044261 | C33: 07.10.2016 | D33: ZCFN | E33: 2500545029 | F33: 10 | G33: RE03 | H33: 1 | I33: PCE | J33: 32 | K33: EUR
A34: R100583445 | B34: 4700044261 | C34: 07.10.2016 | D34: ZCFN | E34: 2500545028 | F34: 10 | G34: RE03 | H34: 4 | I34: PCE | J34: 128 | K34: EUR
A35: R100546264 | B35: 4700044261 | C35: 07.10.2016 | D35: ZCFN | E35: 2500545027 | F35: 10 | G35: RE03 | H35: 1 | I35: PCE | J35: 20 | K35: EUR
A36: R100495255 | B36: 4700044261 | C36: 07.10.2016 | D36: ZCFN | E36: 2500545026 | F36: 10 | G36: RE03 | H36: 1 | I36: PCE | J36: 600.03 | K36: EUR
A37: R100478635 | B37: 4700044261 | C37: 07.10.2016 | D37: ZCFN | E37: 2500545025 | F37: 10 | G37: RE03 | H37: 1 | I37: PCE | J37: 4.31 | K37: EUR
A38: R100478634 | B38: 4700044261 | C38: 07.10.2016 | D38: ZCFN | E38: 2500545024 | F38: 10 | G38: RE03 | H38: 1 | I38: PCE | J38: 4.17 | K38: EUR
A39: R100478633 | B39: 4700044261 | C39: 07.10.2016 | D39: ZCFN | E39: 2500545023 | F39: 10 | G39: RE03 | H39: 1 | I39: PCE | J39: 3.68 | K39: EUR
A40: R100438328 | B40: 4700044261 | C40: 07.10.2016 | D40: ZCFN | E40: 2500545022 | F40: 10 | G40: RE03 | H40: 4 | I40: PCE | J40: 34.84 | K40: EUR
A41: R100438327 | B41: 4700044261 | C41: 07.10.2016 | D41: ZCFN | E41: 2500545021 | F41: 10 | G41: RE03 | H41: 2 | I41: PCE | J41: 17.42 | K41: EUR
A42: R100438326 | B42: 4700044261 | C42: 07.10.2016 | D42: ZCFN | E42: 2500545020 | F42: 10 | G42: RE03 | H42: 1 | I42: PCE | J42: 8.71 | K42: EUR
A43: R100364319 | B43: 4700044261 | C43: 07.10.2016 | D43: ZCFN | E43: 2500545019 | F43: 10 | G43: RE03 | H43: 1 | I43: PCE | J43: 33.4 | K43: EUR
A44: R100326832 | B44: 4700044261 | C44: 07.10.2016 | D44: ZCFN | E44: 2500545018 | F44: 10 | G44: RE03 | H44: 3 | I44: PCE | J44: 13.2 | K44: EUR
A45: R100296383 | B45: 4700044261 | C45: 07.10.2016 | D45: ZCFN | E45: 2500545017 | F45: 10 | G45: RE03 | H45: 10 | I45: PCE | J45: 44.7 | K45: EUR
A46: R100222695 | B46: 4700044261 | C46: 07.10.2016 | D46: ZCFN | E46: 2500545016 | F46: 10 | G46: RE03 | H46: 3 | I46: PCE | J46: 28.8 | K46: EUR
A47: R100134987 | B47: 4700044261 | C47: 07.10.2016 | D47: ZCFN | E47: 2500545015 | F47: 10 | G47: RE03 | H47: 2 | I47: PCE | J47: 3.04 | K47: EUR
A48: R100127627 | B48: 4700044261 | C48: 07.10.2016 | D48: ZCFN | E48: 2500545014 | F48: 10 | G48: RE03 | H48: 7 | I48: PCE | J48: 100.52 | K48: EUR
A49: R100091242 | B49: 4700044261 | C49: 07.10.2016 | D49: ZCFN | E49: 2500545013 | F49: 10 | G49: RE03 | H49: 200 | I49: M | J49: 152.9 | K49: EUR
A50: R100079718 | B50: 4700044261 | C50: 07.10.2016 | D50: ZCFN | E50: 2500545012 | F50: 10 | G50: RE03 | H50: 50 | I50: PCE | J50: 259 | K50: EUR
A51: R100079712 | B51: 4700044261 | C51: 07.10.2016 | D51: ZCFN | E51: 2500545011 | F51: 10 | G51: RE03 | H51: 50 | I51: PCE | J51: 175 | K51: EUR
A52: P935585370 | B52: 4700044261 | C52: 07.10.2016 | D52: ZCFN | E52: 2500545010 | F52: 10 | G52: RE03 | H52: 3 | I52: PCE | J52: 33.06 | K52: EUR
A53: P931114100 | B53: 4700044261 | C53: 07.10.2016 | D53: ZCFN | E53: 2500545009 | F53: 10 | G53: RE03 | H53: 24 | I53: PCE | J53: 6.84 | K53: EUR
A54: P761013000 | B54: 4700044261 | C54: 07.10.2016 | D54: ZCFN | E54: 2500545008 | F54: 10 | G54: RE03 | H54: 10 | I54: PCE | J54: 14 | K54: EUR
A55: P761012570 | B55: 4700044261 | C55: 07.10.2016 | D55: ZCFN | E55: 2500545007 | F55: 10 | G55: RE03 | H55: 10 | I55: PCE | J55: 11.21 | K55: EUR
A56: P761012000 | B56: 4700044261 | C56: 07.10.2016 | D56: ZCFN | E56: 2500545006 | F56: 10 | G56: RE03 | H56: 10 | I56: PCE | J56: 7.95 | K56: EUR
A57: P674123000 | B57: 4700044261 | C57: 07.10.2016 | D57: ZCFN | E57: 2500545005 | F57: 10 | G57: RE03 | H57: 50 | I57: PCE | J57: 54.5 | K57: EUR
A58: P672410175 | B58: 4700044261 | C58: 07.10.2016 | D58: ZCFN | E58: 2500545004 | F58: 10 | G58: RE03 | H58: 3 | I58: PCE | J58: 4.11 | K58: EUR
A59: P551540170 | B59: 4700044261 | C59: 07.10.2016 | D59: ZCFN | E59: 2500545003 | F59: 10 | G59: RE03 | H59: 60 | I59: PCE | J59: 54 | K59: EUR
A60: P131100002 | B60: 4700044261 | C60: 07.10.2016 | D60: ZCFN | E60: 2500545002 | F60: 10 | G60: RE03 | H60: 2 | I60: PCE | J60: 59.84 | K60: EUR
A61: P131040004 | B61: 4700044261 | C61: 07.10.2016 | D61: ZCFN | E61: 2500545001 | F61: 10 | G61: RE03 | H61: 3 | I61: PCE | J61: 6.3 | K61: EUR
A62: R100666592 | B62: 4700044261 | C62: 07.10.2016 | D62: ZCFN | E62: 2500545000 | F62: 10 | G62: RE03 | H62: 20 | I62: PCE | J62: 60 | K62: EUR
A63: R100456080 | B63: 4700044261 | C63: 07.10.2016 | D63: ZCFN | E63: 2500544999 | F63: 10 | G63: RE03 | H63: 1 | I63: PCE | J63: 290 | K63: EUR
A64: R100518629 | B64: 4700044261 | C64: 07.10.2016 | D64: ZCFN | E64: 2500544998 | F64: 10 | G64: RE03 | H64: 2 | I64: PCE | J64: 56.44 | K64: EUR
A65: R100518603 | B65: 4700044261 | C65: 07.10.2016 | D65: ZCFN | E65: 2500544997 | F65: 10 | G65: RE03 | H65: 2 | I65: PCE | J65: 42.58 | K65: EUR
A66: R100438329 | B66: 4700044261 | C66: 07.10.2016 | D66: ZCFN | E66: 2500544996 | F66: 10 | G66: RE03 | H66: 1 | I66: PCE | J66: 8.71 | K66: EUR
A67: R100136536 | B67: 4700044261 | C67: 07.10.2016 | D67: ZCFN | E67: 2500544995 | F67: 10 | G67: RE03 | H67: 6 | I67: PCE | J67: 127.8 | K67: EUR
A68: X771101523 | B68: 4700044261 | C68: 07.10.2016 | D68: ZCFN | E68: 2500544994 | F68: 10 | G68: RE03 | H68: 10 | I68: PCE | J68: 8 | K68: EUR
A69: T533515452 | B69: 4700044261 | C69: 07.10.2016 | D69: ZCFN | E69: 2500544993 | F69: 10 | G69: RE03 | H69: 8 | I69: PCE | J69: 87.92 | K69: EUR
A70: R100583444 | B70: 4700044261 | C70: 07.10.2016 | D70: ZCFN | E70: 2500544992 | F70: 10 | G70: RE03 | H70: 5 | I70: PCE | J70: 160 | K70: EUR
A71: R100518602 | B71: 4700044261 | C71: 07.10.2016 | D71: ZCFN | E71: 2500544991 | F71: 10 | G71: RE03 | H71: 1 | I71: PCE | J71: 21.4 | K71: EUR
A72: R100360834 | B72: 4700044261 | C72: 07.10.2016 | D72: ZCFN | E72: 2500544990 | F72: 10 | G72: RE03 | H72: 5 | I72: PCE | J72: 182.5 | K72: EUR
A73: R100257658 | B73: 4700044261 | C73: 07.10.2016 | D73: ZCFN | E73: 2500544989 | F73: 10 | G73: RE03 | H73: 1 | I73: PCE | J73: 3.5 | K73: EUR
A74: R100217083 | B74: 4700044261 | C74: 07.10.2016 | D74: ZCFN | E74: 2500544988 | F74: 10 | G74: RE03 | H74: 2 | I74: PCE | J74: 2.82 | K74: EUR
A75: R100176238 | B75: 4700044261 | C75: 07.10.2016 | D75: ZCFN | E75: 2500544987 | F75: 10 | G75: RE03 | H75: 8 | I75: PCE | J75: 2.64 | K75: EUR
A76: T853454141 | B76: 4700044261 | C76: 07.10.2016 | D76: ZCFN | E76: 2500544986 | F76: 10 | G76: RE03 | H76: 20 | I76: PCE | J76: 127 | K76: EUR
A77: R100364714 | B77: 4700044261 | C77: 07.10.2016 | D77: ZCFN | E77: 2500544985 | F77: 10 | G77: RE03 | H77: 1 | I77: PCE | J77: 36.5 | K77: EUR

Sheet Archives
A1: Concatener | B1: Commande RE03 | C1: Poste | D1: Flux D/N | E1: Reference | F1: Designation | G1: Date de la commande | H1: Date previsionnel de reception | I1: Qté commandée re03 | J1: Attendu | K1: SF | L1: Qté livrée | M1: Motif | N1: Motif différé sofra | O1: LX02 | P1: Délai livraison | Q1: Cde client | R1: Nom du Client | S1: qté Cdée Client | T1: P04 | U1: Qté Cdée SF | V1: Gestionnaire | W1: Relance | X1: Commentaire

Sheet LX02

Sheet DATE
A1: 2016
A2: Jour exclus | B2: Jour férié + ARTT année N
A3: 1900-01-01 | B3: 2016-03-28
A4: 1900-01-07 | B4: 2016-05-05
B5: 2016-05-06
B6: 2016-05-16
B7: 2016-07-14
B8: 2016-07-15
B9: 2016-08-15
B10: 2016-10-31
B11: 2016-11-01
B12: 2016-12-23
B13: 2016-12-26
B14: 2016-12-27
B15: 2016-12-28
B16: 2016-12-29
B17: 2016-12-30
B20: =DATE(2009,12,31) -> 2009-12-31
